{"text_format":"3","workbook":"xlsx","n_sheets":12,"sheets":["UPDATES","Table of Contents","PaperCut MF","PaperCut Integrations","PaperCut MFS","PaperCut Hive","Scanshare","Intuitive _PC","FaxCore Cloud Faxing","Square 9","Synappx","Software Services"],"not_rendered":{"images":1,"defined_names":67},"read":"whole","date_system":"1900"}

{"sheet":"UPDATES","index":0,"n_rows":9,"n_cols":2,"rows_kept":9,"merged":[[0,0,0,7]]}
["SUMMARY OF UPDATES TO THE PRICE LIST"]
[]
["2025-11-03","PaperCut MF - SKU's Added, SKUS Removed,Pricing Changes"]
[null,"PaperCut Integrations - SKU's Added, Descriptions Updated and Pricing Changes"]
[null,"PaperCut MFS - SKU's Added, Descriptions Updated and Pricing Changes"]
[null,"PaperCut Hive -SKU's Added, SKU's Removed, Pricing Changes"]
[null,"Scanshare - SKU's Added, SKU's Removed"]
[null,"Intuitive for PaperCut- New Tab, All new SKU's Added"]
[null,"Square 9 - SKU's Added, SKUS Removed,Pricing Changes"]

{"sheet":"Table of Contents","index":1,"n_rows":24,"n_cols":1,"rows_kept":24}
[]
["NASPO ValuePoint Contract #188627"]
[]
["Software Table of Contents"]
[]
["PaperCut MF"]
[]
["PaperCut Integrations"]
[]
["PaperCut MFS"]
[]
["PaperCut Hive"]
[]
["Scanshare"]
[]
["Intuitive PC"]
[]
["FaxCore Cloud Faxing"]
[]
["Square 9"]
[]
["Synappx"]
[]
["Software Related Services"]

{"sheet":"PaperCut MF","index":2,"n_rows":582,"n_cols":5,"rows_kept":582,"merged":[[1,0,1,4],[2,0,2,4],[4,0,5,4]]}
["Return to Table of Contents"]
["PaperCut MF"]
[]
[]
["PaperCut MF is a comprehensive print management system designed to seamlessly monitor and control your printing costs with easy to use administrative and user tools that can be securely accessed from anywhere on the network though a web browser."]
[]
[]
[]
[]
["PAPERCUT MF COMMERCIAL "]
["Vendor Part #","Description","MSRP\nRetail","NASPO Price","Type"]
["Multifunction Device License - (Volume discounts apply to licenses once minimum quantities for that OEM tier have been reached)"]
["Sharp Multifunction Device License (PaperCut MF Commercial)"]
["PCMFC-Sharp","PaperCut MFD Emb, Sharp, Comm, 1-9, per device",{"v":765,"d":"$765.00"},{"$f":"ROUND(C14*(1-0.1),0)","v":{"v":689,"d":"$689.00"}},"One Time Fee"]
["PCMFC-Sharp-10","PaperCut MFD Emb, Sharp, Comm, 10-24, per device",{"v":506,"d":"$506.00"},{"v":455,"d":"$455.00"},"One Time Fee"]
["PCMFC-Sharp-25","PaperCut MFD Emb, Sharp, Comm, 25-49, per device",{"v":437,"d":"$437.00"},{"v":393,"d":"$393.00"},"One Time Fee"]
["PCMFC-Sharp-50","PaperCut MFD Emb, Sharp, Comm, 50-99, per device",{"v":372,"d":"$372.00"},{"v":335,"d":"$335.00"},"One Time Fee"]
["PCMFC-Sharp-100","PaperCut MFD Emb, Sharp, Comm, 100-199, per device",{"v":312,"d":"$312.00"},{"v":281,"d":"$281.00"},"One Time Fee"]
["PCMFC-Sharp-500","PaperCut MFD Emb, Sharp, Comm, 500-999, per device",{"v":299,"d":"$299.00"},{"v":269,"d":"$269.00"},"One Time Fee"]
["PCMFC-Sharp-100","PaperCut MFD Emb, Sharp, Comm, 1000+, per device",{"v":270,"d":"$270.00"},{"v":243,"d":"$243.00"},"One Time Fee"]
["Canon Multifunction Device License (PaperCut MF Commercial)"]
["PCMFC-Canon","PaperCut MFD Emb, Canon, Comm, 1-9, per device",{"v":765,"d":"$765.00"},{"v":689,"d":"$689.00"},"One Time Fee"]
["PCMFC-Canon-10","PaperCut MFD Emb, Canon, Comm, 10-24, per device",{"v":506,"d":"$506.00"},{"v":455,"d":"$455.00"},"One Time Fee"]
["PCMFC-Canon-25","PaperCut MFD Emb, Canon, Comm, 25-49, per device",{"v":437,"d":"$437.00"},{"v":393,"d":"$393.00"},"One Time Fee"]
["PCMFC-Canon-50","PaperCut MFD Emb, Canon, Comm, 50-99, per device",{"v":372,"d":"$372.00"},{"v":335,"d":"$335.00"},"One Time Fee"]
["PCMFC-Canon-100","PaperCut MFD Emb, Canon, Comm, 100-199, per device",{"v":312,"d":"$312.00"},{"v":281,"d":"$281.00"},"One Time Fee"]
["PCMFC-Canon-500","PaperCut MFD Emb, Canon, Comm, 500-999, per device",{"v":299,"d":"$299.00"},{"v":269,"d":"$269.00"},"One Time Fee"]
["PCMFC-Canon-1000","PaperCut MFD Emb, Canon, Comm, 1000+, per device",{"v":270,"d":"$270.00"},{"v":243,"d":"$243.00"},"One Time Fee"]
["Fuji Multifunction Device License (PaperCut MF Commercial)"]
["PCMFC-Fuji","PaperCut MFD Emb, Fuji, Comm, 1-9, per device",{"v":765,"d":"$765.00"},{"v":689,"d":"$689.00"},"One Time Fee"]
["PCMFC-Fuji-10","PaperCut MFD Emb, Fuji, Comm, 10-24, per device",{"v":506,"d":"$506.00"},{"v":455,"d":"$455.00"},"One Time Fee"]
["PCMFC-Fuji-25","PaperCut MFD Emb, Fuji, Comm, 25-49, per device",{"v":437,"d":"$437.00"},{"v":393,"d":"$393.00"},"One Time Fee"]
["PCMFC-Fuji-50","PaperCut MFD Emb, Fuji, Comm, 50-99, per device",{"v":372,"d":"$372.00"},{"v":335,"d":"$335.00"},"One Time Fee"]
["PCMFC-Fuji-100","PaperCut MFD Emb, Fuji, Comm, 100-199, per device",{"v":312,"d":"$312.00"},{"v":281,"d":"$281.00"},"One Time Fee"]
["PCMFC-Fuji-500","PaperCut MFD Emb, Fuji, Comm, 500-999, per device",{"v":299,"d":"$299.00"},{"v":269,"d":"$269.00"},"One Time Fee"]
["PCMFC-Fuji-1000","PaperCut MFD Emb, Fuji, Comm, 1000+, per device",{"v":270,"d":"$270.00"},{"v":243,"d":"$243.00"},"One Time Fee"]
["HP Multifunction Device License (PaperCut MF Commercial)"]
["PCMFC-HP","PaperCut MFD Emb, HP, Comm, 1-9, per device",{"v":765,"d":"$765.00"},{"v":689,"d":"$689.00"},"One Time Fee"]
["PCMFC-HP-10","PaperCut MFD Emb, HP, Comm, 10-24, per device",{"v":506,"d":"$506.00"},{"v":455,"d":"$455.00"},"One Time Fee"]
["PCMFC-HP-25","PaperCut MFD Emb, HP, Comm, 25-49, per device",{"v":437,"d":"$437.00"},{"v":393,"d":"$393.00"},"One Time Fee"]
["PCMFC-HP-50","PaperCut MFD Emb, HP, Comm, 50-99, per device",{"v":372,"d":"$372.00"},{"v":335,"d":"$335.00"},"One Time Fee"]
["PCMFC-HP-100","PaperCut MFD Emb, HP, Comm, 100-199, per device",{"v":312,"d":"$312.00"},{"v":281,"d":"$281.00"},"One Time Fee"]
["PCMFC-HP-500","PaperCut MFD Emb, HP, Comm, 500-999, per device",{"v":299,"d":"$299.00"},{"v":269,"d":"$269.00"},"One Time Fee"]
["PCMFC-HP-1000","PaperCut MFD Emb, HP, Comm, 1000+, per device",{"v":270,"d":"$270.00"},{"v":243,"d":"$243.00"},"One Time Fee"]
["Konica Minolta Multifunction Device License (PaperCut MF Commercial)"]
["PCMFC-KM","PaperCut MFD Emb, KM, Comm, 1-9, per device",{"v":765,"d":"$765.00"},{"v":689,"d":"$689.00"},"One Time Fee"]
["PCMFC-KM-10","PaperCut MFD Emb, KM, Comm, 10-24, per device",{"v":506,"d":"$506.00"},{"v":455,"d":"$455.00"},"One Time Fee"]
["PCMFC-KM-25","PaperCut MFD Emb, KM, Comm, 25-49, per device",{"v":437,"d":"$437.00"},{"v":393,"d":"$393.00"},"One Time Fee"]
["PCMFC-KM-50","PaperCut MFD Emb, KM, Comm, 50-99, per device",{"v":372,"d":"$372.00"},{"v":335,"d":"$335.00"},"One Time Fee"]
["PCMFC-KM-100","PaperCut MFD Emb, KM, Comm, 100-199, per device",{"v":312,"d":"$312.00"},{"v":281,"d":"$281.00"},"One Time Fee"]
["PCMFC-KM-500","PaperCut MFD Emb, KM, Comm, 500-999, per device",{"v":299,"d":"$299.00"},{"v":269,"d":"$269.00"},"One Time Fee"]
["PCMFC-KM-1000","PaperCut MFD Emb, KM, Comm, 1000+, per device",{"v":270,"d":"$270.00"},{"v":243,"d":"$243.00"},"One Time Fee"]
["Kyocera Multifunction Device License (PaperCut MF Commercial)"]
["PCMFC-Kyoc","PaperCut MFD Emb, Kyocera, Comm, 1-9, per device",{"v":765,"d":"$765.00"},{"v":689,"d":"$689.00"},"One Time Fee"]
["PCMFC-Kyoc-10","PaperCut MFD Emb, Kyocera, Comm, 10-24, per device",{"v":506,"d":"$506.00"},{"v":455,"d":"$455.00"},"One Time Fee"]
["PCMFC-Kyoc-25","PaperCut MFD Emb, Kyocera, Comm, 25-49, per device",{"v":437,"d":"$437.00"},{"v":393,"d":"$393.00"},"One Time Fee"]
["PCMFC-Kyoc-50","PaperCut MFD Emb, Kyocera, Comm, 50-99, per device",{"v":372,"d":"$372.00"},{"v":335,"d":"$335.00"},"One Time Fee"]
["PCMFC-Kyoc-100","PaperCut MFD Emb, Kyocera, Comm, 100-199, per device",{"v":312,"d":"$312.00"},{"v":281,"d":"$281.00"},"One Time Fee"]
["PCMFC-Kyoc-500","PaperCut MFD Emb, Kyocera, Comm, 500-999, per device",{"v":299,"d":"$299.00"},{"v":269,"d":"$269.00"},"One Time Fee"]
["PCMFC-Kyoc-1000","PaperCut MFD Emb, Kyocera, Comm, 1000+, per device",{"v":270,"d":"$270.00"},{"v":243,"d":"$243.00"},"One Time Fee"]
["Lexmark Multifunction Device License (PaperCut MF Commercial)"]
["PCMFC-Lxmk","PaperCut MFD Emb, Lexmark, Comm, 1-9, per device",{"v":765,"d":"$765.00"},{"v":689,"d":"$689.00"},"One Time Fee"]
["PCMFC-Lxmk-10","PaperCut MFD Emb, Lexmark, Comm, 10-24, per device",{"v":506,"d":"$506.00"},{"v":455,"d":"$455.00"},"One Time Fee"]
["PCMFC-Lxmk-25","PaperCut MFD Emb, Lexmark, Comm, 25-49, per device",{"v":437,"d":"$437.00"},{"v":393,"d":"$393.00"},"One Time Fee"]
["PCMFC-Lxmk-50","PaperCut MFD Emb, Lexmark, Comm, 50-99, per device",{"v":372,"d":"$372.00"},{"v":335,"d":"$335.00"},"One Time Fee"]
["PCMFC-Lxmk-100","PaperCut MFD Emb, Lexmark, Comm, 100-199, per device",{"v":312,"d":"$312.00"},{"v":281,"d":"$281.00"},"One Time Fee"]
["PCMFC-Lxmk-500","PaperCut MFD Emb, Lexmark, Comm, 500-999, per device",{"v":299,"d":"$299.00"},{"v":269,"d":"$269.00"},"One Time Fee"]
["PCMFC-Lxmk-1000","PaperCut MFD Emb, Lexmark, Comm, 1000+, per device",{"v":270,"d":"$270.00"},{"v":243,"d":"$243.00"},"One Time Fee"]
["Ricoh Multifunction Device License (PaperCut MF Commercial)"]
["PCMFC-Ricoh","PaperCut MFD Emb, Ricoh, Comm, 1-9, per device",{"v":765,"d":"$765.00"},{"v":689,"d":"$689.00"},"One Time Fee"]
["PCMFC-Ricoh-10","PaperCut MFD Emb, Ricoh, Comm, 10-24, per device",{"v":506,"d":"$506.00"},{"v":455,"d":"$455.00"},"One Time Fee"]
["PCMFC-Ricoh-25","PaperCut MFD Emb, Ricoh, Comm, 25-49, per device",{"v":437,"d":"$437.00"},{"v":393,"d":"$393.00"},"One Time Fee"]
["PCMFC-Ricoh-50","PaperCut MFD Emb, Ricoh, Comm, 50-99, per device",{"v":372,"d":"$372.00"},{"v":335,"d":"$335.00"},"One Time Fee"]
["PCMFC-Ricoh-100","PaperCut MFD Emb, Ricoh, Comm, 100-199, per device",{"v":312,"d":"$312.00"},{"v":281,"d":"$281.00"},"One Time Fee"]
["PCMFC-Ricoh-500","PaperCut MFD Emb, Ricoh, Comm, 500-999, per device",{"v":299,"d":"$299.00"},{"v":269,"d":"$269.00"},"One Time Fee"]
["PCMFC-Ricoh-1000","PaperCut MFD Emb, Ricoh, Comm, 1000+, per device",{"v":270,"d":"$270.00"},{"v":243,"d":"$243.00"},"One Time Fee"]
["Toshiba Multifunction Device License (PaperCut MF Commercial)"]
["PCMFC-Tosh","PaperCut MFD Emb, Toshiba, Comm, 1-9, per device",{"v":765,"d":"$765.00"},{"$f":"ROUND(C78*(1-0.1),0)","v":{"v":689,"d":"$689.00"}},"One Time Fee"]
["PCMFC-Tosh-10","PaperCut MFD Emb, Toshiba, Comm, 10-24, per device",{"v":506,"d":"$506.00"},{"v":455,"d":"$455.00"},"One Time Fee"]
["PCMFC-Tosh-25","PaperCut MFD Emb, Toshiba, Comm, 25-49, per device",{"v":437,"d":"$437.00"},{"v":393,"d":"$393.00"},"One Time Fee"]
["PCMFC-Tosh-50","PaperCut MFD Emb, Toshiba, Comm, 50-99, per device",{"v":372,"d":"$372.00"},{"v":335,"d":"$335.00"},"One Time Fee"]
["PCMFC-Tosh-100","PaperCut MFD Emb, Toshiba, Comm, 100-199, per device",{"v":312,"d":"$312.00"},{"v":281,"d":"$281.00"},"One Time Fee"]
["PCMFC-Tosh-500","PaperCut MFD Emb, Toshiba, Comm, 500-999, per device",{"v":299,"d":"$299.00"},{"v":269,"d":"$269.00"},"One Time Fee"]
["PCMFC-Tosh-1000","PaperCut MFD Emb, Toshiba, Comm, 1000+, per device",{"v":270,"d":"$270.00"},{"v":243,"d":"$243.00"},"One Time Fee"]
["Xerox Multifunction Device License (PaperCut MF Commercial)"]
["PCMFC-Xerox","PaperCut MFD Emb, Xerox, Comm, 1-9, per device",{"v":765,"d":"$765.00"},{"v":689,"d":"$689.00"},"One Time Fee"]
["PCMFC-Xerox-10","PaperCut MFD Emb, Xerox, Comm, 10-24, per device",{"v":506,"d":"$506.00"},{"v":455,"d":"$455.00"},"One Time Fee"]
["PCMFC-Xerox-25","PaperCut MFD Emb, Xerox, Comm, 25-49, per device",{"v":437,"d":"$437.00"},{"v":393,"d":"$393.00"},"One Time Fee"]
["PCMFC-Xerox-50","PaperCut MFD Emb, Xerox, Comm, 50-99, per device",{"v":372,"d":"$372.00"},{"v":335,"d":"$335.00"},"One Time Fee"]
["PCMFC-Xerox-100","PaperCut MFD Emb, Xerox, Comm, 100-199, per device",{"v":312,"d":"$312.00"},{"v":281,"d":"$281.00"},"One Time Fee"]
["PCMFC-Xerox-500","PaperCut MFD Emb, Xerox, Comm, 500-999, per device",{"v":299,"d":"$299.00"},{"v":269,"d":"$269.00"},"One Time Fee"]
["PCMFC-Xerox-1000","PaperCut MFD Emb, Xerox, Comm, 1000+, per device",{"v":270,"d":"$270.00"},{"v":243,"d":"$243.00"},"One Time Fee"]
["Brother Multifunction Device License (PaperCut MF Commercial)"]
["PCMFC-Bro","PaperCut MFD Emb, Brothers, Comm, 1-9, per device",{"v":390,"d":"$390.00"},{"v":351,"d":"$351.00"},"One Time Fee"]
["PCMFC-Bro-10","PaperCut MFD Emb, Brothers, Comm, 10-24, per device",{"v":257,"d":"$257.00"},{"v":231,"d":"$231.00"},"One Time Fee"]
["PCMFC-Bro-25","PaperCut MFD Emb, Brothers, Comm, 25-49, per device",{"v":223,"d":"$223.00"},{"v":201,"d":"$201.00"},"One Time Fee"]
["PCMFC-Bro-50","PaperCut MFD Emb, Brothers, Comm, 50-99, per device",{"v":190,"d":"$190.00"},{"v":171,"d":"$171.00"},"One Time Fee"]
["PCMFC-Bro-100","PaperCut MFD Emb, Brothers, Comm, 100-199, per device",{"v":159,"d":"$159.00"},{"v":143,"d":"$143.00"},"One Time Fee"]
["PCMFC-Bro-500","PaperCut MFD Emb, Brothers, Comm, 500-999, per device",{"v":153,"d":"$153.00"},{"v":138,"d":"$138.00"},"One Time Fee"]
["PCMFC-Bro-1000","PaperCut MFD Emb, Brothers, Comm, 1000+, per device",{"v":137,"d":"$137.00"},{"v":123,"d":"$123.00"},"One Time Fee"]
["Dell Multifunction Device License (PaperCut MF Commercial)"]
["PCMFC-Dell","PaperCut MFD Emb, Dell, Comm, 1-9, per device",{"v":746,"d":"$746.00"},{"v":671,"d":"$671.00"},"One Time Fee"]
["PCMFC-Dell-10","PaperCut MFD Emb, Dell, Comm, 10-24, per device",{"v":493,"d":"$493.00"},{"v":444,"d":"$444.00"},"One Time Fee"]
["PCMFC-Dell-25","PaperCut MFD Emb, Dell, Comm, 25-49, per device",{"v":426,"d":"$426.00"},{"v":383,"d":"$383.00"},"One Time Fee"]
["PCMFC-Dell-50","PaperCut MFD Emb, Dell, Comm, 50-99, per device",{"v":363,"d":"$363.00"},{"v":327,"d":"$327.00"},"One Time Fee"]
["PCMFC-Dell-100","PaperCut MFD Emb, Dell, Comm, 100-199, per device",{"v":304,"d":"$304.00"},{"v":274,"d":"$274.00"},"One Time Fee"]
["PCMFC-Dell-200","PaperCut MFD Emb, Dell, Comm, 200-499, per device",{"v":298,"d":"$298.00"},{"v":268,"d":"$268.00"},"One Time Fee"]
["PCMFC-Dell-500","PaperCut MFD Emb, Dell, Comm, 500+, per device",{"v":292,"d":"$292.00"},{"v":263,"d":"$263.00"},"One Time Fee"]
["Samsung Multifunction Device License (PaperCut MF Commercial)"]
["PCMFC-Samsung","PaperCut MFD Emb, Samsung, Comm, 1-9, per device",{"v":746,"d":"$746.00"},{"v":671,"d":"$671.00"},"One Time Fee"]
["PCMFC-Samsung-10","PaperCut MFD Emb, Samsung, Comm, 10-24, per device",{"v":493,"d":"$493.00"},{"v":444,"d":"$444.00"},"One Time Fee"]
["PCMFC-Samsung-25","PaperCut MFD Emb, Samsung, Comm, 25-49, per device",{"v":426,"d":"$426.00"},{"v":383,"d":"$383.00"},"One Time Fee"]
["PCMFC-Samsung-50","PaperCut MFD Emb, Samsung, Comm, 50-99, per device",{"v":363,"d":"$363.00"},{"v":327,"d":"$327.00"},"One Time Fee"]
["PCMFC-Samsung-100","PaperCut MFD Emb, Samsung, Comm, 100-199, per device",{"v":304,"d":"$304.00"},{"v":274,"d":"$274.00"},"One Time Fee"]
["PCMFC-Samsung-200","PaperCut MFD Emb, Samsung, Comm, 200-499, per device",{"v":298,"d":"$298.00"},{"v":268,"d":"$268.00"},"One Time Fee"]
["PCMFC-Samsung-500","PaperCut MFD Emb, Samsung, Comm, 500+, per device",{"v":292,"d":"$292.00"},{"v":263,"d":"$263.00"},"One Time Fee"]
["Muratec Multifunction Device License (PaperCut MF Commercial)"]
["PCMFC-Muratec","PaperCut MFD Emb, Muratec, Comm, 1-9, per device",{"v":765,"d":"$765.00"},{"v":689,"d":"$689.00"},"One Time Fee"]
["PCMFC-Muratec-10","PaperCut MFD Emb, Muratec, Comm, 10-24, per device",{"v":506,"d":"$506.00"},{"v":455,"d":"$455.00"},"One Time Fee"]
["PCMFC-Muratec-25","PaperCut MFD Emb, Muratec, Comm, 25-49, per device",{"v":437,"d":"$437.00"},{"v":393,"d":"$393.00"},"One Time Fee"]
["PCMFC-Muratec-50","PaperCut MFD Emb, Muratec, Comm, 50-99, per device",{"v":372,"d":"$372.00"},{"v":335,"d":"$335.00"},"One Time Fee"]
["PCMFC-Muratec-100","PaperCut MFD Emb, Muratec, Comm, 100-199, per device",{"v":312,"d":"$312.00"},{"v":281,"d":"$281.00"},"One Time Fee"]
["PCMFC-Muratec-500","PaperCut MFD Emb, Muratec, Comm, 500-999, per device",{"v":299,"d":"$299.00"},{"v":269,"d":"$269.00"},"One Time Fee"]
["PCMFC-Muratec-1000","PaperCut MFD Emb, Muratec, Comm, 1000+, per device",{"v":270,"d":"$270.00"},{"v":243,"d":"$243.00"},"One Time Fee"]
["OKI Multifunction Device License (PaperCut MF Commercial)"]
["PCMFC-OKI","PaperCut MFD Emb, OKI, Comm, 1-9, per device",{"v":765,"d":"$765.00"},{"v":689,"d":"$689.00"},"One Time Fee"]
["PCMFC-OKI-10","PaperCut MFD Emb, OKI, Comm, 10-24, per device",{"v":506,"d":"$506.00"},{"v":455,"d":"$455.00"},"One Time Fee"]
["PCMFC-OKI-25","PaperCut MFD Emb, OKI, Comm, 25-49, per device",{"v":437,"d":"$437.00"},{"v":393,"d":"$393.00"},"One Time Fee"]
["PCMFC-OKI-50","PaperCut MFD Emb, OKI, Comm, 50-99, per device",{"v":372,"d":"$372.00"},{"v":335,"d":"$335.00"},"One Time Fee"]
["PCMFC-OKI-100","PaperCut MFD Emb, OKI, Comm, 100-199, per device",{"v":312,"d":"$312.00"},{"v":281,"d":"$281.00"},"One Time Fee"]
["PCMFC-OKI-500","PaperCut MFD Emb, OKI, Comm, 500-999, per device",{"v":299,"d":"$299.00"},{"v":269,"d":"$269.00"},"One Time Fee"]
["PCMFC-OKI-1000","PaperCut MFD Emb, OKI, Comm, 1000+, per device",{"v":270,"d":"$270.00"},{"v":243,"d":"$243.00"},"One Time Fee"]
["Epson Multifunction Device License (PaperCut MF Commercial)"]
["PCMFC-EPS","PaperCut MFD Emb, Epson, Comm, 1-9, per device",{"v":765,"d":"$765.00"},{"v":689,"d":"$689.00"},"One Time Fee"]
["PCMFC-EPS-10","PaperCut MFD Emb, Epson, Comm, 10-24, per device",{"v":506,"d":"$506.00"},{"v":455,"d":"$455.00"},"One Time Fee"]
["PCMFC-EPS-25","PaperCut MFD Emb, Epson, Comm, 25-49, per device",{"v":437,"d":"$437.00"},{"v":393,"d":"$393.00"},"One Time Fee"]
["PCMFC-EPS-50","PaperCut MFD Emb, Epson, Comm, 50-99, per device",{"v":372,"d":"$372.00"},{"v":335,"d":"$335.00"},"One Time Fee"]
["PCMFC-EPS-100","PaperCut MFD Emb, Epson, Comm, 100-199, per device",{"v":312,"d":"$312.00"},{"v":281,"d":"$281.00"},"One Time Fee"]
["PCMFC-EPS-500","PaperCut MFD Emb, Epson, Comm, 500-999, per device",{"v":299,"d":"$299.00"},{"v":269,"d":"$269.00"},"One Time Fee"]
["PCMFC-EPS-1000","PaperCut MFD Emb, Epson, Comm, 1000+, per device",{"v":270,"d":"$270.00"},{"v":243,"d":"$243.00"},"One Time Fee"]
["RISO Multifunction Device License (PaperCut MF Commercial)"]
["PCMFC-RISO","PaperCut MFD Emb, RISO, Comm, 1-9, per device",{"v":765,"d":"$765.00"},{"$f":"ROUND(C142*(1-0.1),0)","v":{"v":689,"d":"$689.00"}},"One Time Fee"]
["PCMFC-RISO-10","PaperCut MFD Emb, RISO, Comm, 10-24, per device",{"v":506,"d":"$506.00"},{"v":455,"d":"$455.00"},"One Time Fee"]
["PCMFC-RISO-25","PaperCut MFD Emb, RISO, Comm, 25-49, per device",{"v":437,"d":"$437.00"},{"v":393,"d":"$393.00"},"One Time Fee"]
["PCMFC-RISO-50","PaperCut MFD Emb, RISO, Comm, 50-99, per device",{"v":372,"d":"$372.00"},{"v":335,"d":"$335.00"},"One Time Fee"]
["PCMFC-RISO-100","PaperCut MFD Emb, RISO, Comm, 100-199, per device",{"v":312,"d":"$312.00"},{"v":281,"d":"$281.00"},"One Time Fee"]
["PCMFC-RISO-500","PaperCut MFD Emb, RISO, Comm, 500-999, per device",{"v":299,"d":"$299.00"},{"v":269,"d":"$269.00"},"One Time Fee"]
["PCMFC-RISO-1000","PaperCut MFD Emb, RISO, Comm, 1000+, per device",{"v":270,"d":"$270.00"},{"v":243,"d":"$243.00"},"One Time Fee"]
["KAT Multifunction Device License (PaperCut MF Commercial)"]
["PCMFC-KAT","PaperCut MFD Emb, KAT, Comm, 1-9, per device",{"v":765,"d":"$765.00"},{"$f":"ROUND(C150*(1-0.1),0)","v":{"v":689,"d":"$689.00"}},"One Time Fee"]
["PCMFC-KAT-10","PaperCut MFD Emb, KAT, Comm, 10-24, per device",{"v":506,"d":"$506.00"},{"v":455,"d":"$455.00"},"One Time Fee"]
["PCMFC-KAT-25","PaperCut MFD Emb, KAT, Comm, 25-49, per device",{"v":437,"d":"$437.00"},{"v":393,"d":"$393.00"},"One Time Fee"]
["PCMFC-KAT-50","PaperCut MFD Emb, KAT, Comm, 50-99, per device",{"v":372,"d":"$372.00"},{"v":335,"d":"$335.00"},"One Time Fee"]
["PCMFC-KAT-100","PaperCut MFD Emb, KAT, Comm, 100-499, per device",{"v":312,"d":"$312.00"},{"v":281,"d":"$281.00"},"One Time Fee"]
["PCMFC-KAT-500","PaperCut MFD Emb, KAT, Comm, 500-999, per device",{"v":299,"d":"$299.00"},{"v":269,"d":"$269.00"},"One Time Fee"]
["PCMFC-KAT-1000","PaperCut MFD Emb, KAT, Comm, 1000+, per device",{"v":270,"d":"$270.00"},{"v":243,"d":"$243.00"},"One Time Fee"]
["Single Function Device License - (Volume discounts apply to licenses once minimum quantities for that OEM tier have been reached)"]
["Sharp Printer License (PaperCut MF Commercial)"]
["PCMFC-SharpP","PaperCut SFP Emb, Sharp Printer, Comm, 1-9, per device",{"v":390,"d":"$390.00"},{"v":351,"d":"$351.00"},"One Time Fee"]
["PCMFC-SharpP-10","PaperCut SFP Emb, Sharp Printer, Comm, 10-24, per device",{"v":257,"d":"$257.00"},{"v":231,"d":"$231.00"},"One Time Fee"]
["PCMFC-SharpP-25","PaperCut SFP Emb, Sharp Printer, Comm, 25-49, per device",{"v":223,"d":"$223.00"},{"v":201,"d":"$201.00"},"One Time Fee"]
["PCMFC-SharpP-50","PaperCut SFP Emb, Sharp Printer, Comm, 50-99, per device",{"v":190,"d":"$190.00"},{"v":171,"d":"$171.00"},"One Time Fee"]
["PCMFC-SharpP-100","PaperCut SFP Emb, Sharp Printer, Comm, 100-199, per device",{"v":159,"d":"$159.00"},{"v":143,"d":"$143.00"},"One Time Fee"]
["PCMFC-SharpP-500","PaperCut SFP Emb, Sharp Printer, Comm, 500-999, per device",{"v":153,"d":"$153.00"},{"v":138,"d":"$138.00"},"One Time Fee"]
["PCMFC-SharpP-1000","PaperCut SFP Emb, Sharp Printer, Comm, 1000+, per device",{"v":137,"d":"$137.00"},{"v":123,"d":"$123.00"},"One Time Fee"]
["HP Printer License (PaperCut MF Commercial)"]
["PCMFC-HpP","PaperCut SFP Emb, HP Printer, Comm, 1-9, per device",{"v":390,"d":"$390.00"},{"v":351,"d":"$351.00"},"One Time Fee"]
["PCMFC-HpP-10","PaperCut SFP Emb, HP Printer, Comm, 10-24, per device",{"v":257,"d":"$257.00"},{"v":231,"d":"$231.00"},"One Time Fee"]
["PCMFC-HpP-25","PaperCut SFP Emb, HP Printer, Comm, 25-49, per device",{"v":223,"d":"$223.00"},{"v":201,"d":"$201.00"},"One Time Fee"]
["PCMFC-HpP-50","PaperCut SFP Emb, HP Printer, Comm, 50-99, per device",{"v":190,"d":"$190.00"},{"v":171,"d":"$171.00"},"One Time Fee"]
["PCMFC-HpP-100","PaperCut SFP Emb, HP Printer, Comm, 100-199, per device",{"v":159,"d":"$159.00"},{"v":143,"d":"$143.00"},"One Time Fee"]
["PCMFC-HpP-500","PaperCut SFP Emb, HP Printer, Comm, 500-999, per device",{"v":153,"d":"$153.00"},{"v":138,"d":"$138.00"},"One Time Fee"]
["PCMFC-HpP-1000","PaperCut SFP Emb, HP Printer, Comm, 1000+, per device",{"v":137,"d":"$137.00"},{"v":123,"d":"$123.00"},"One Time Fee"]
["Lexmark Printer License (PaperCut MF Commercial)"]
["PCMFC-LxmkP","PaperCut SFP Emb, Lexmark Printer, Comm, 1-9, per device",{"v":390,"d":"$390.00"},{"v":351,"d":"$351.00"},"One Time Fee"]
["PCMFC-LxmkP-10","PaperCut SFP Emb, Lexmark Printer, Comm, 10-24, per device",{"v":257,"d":"$257.00"},{"v":231,"d":"$231.00"},"One Time Fee"]
["PCMFC-LxmkP-25","PaperCut SFP Emb, Lexmark Printer, Comm, 25-49, per device",{"v":223,"d":"$223.00"},{"v":201,"d":"$201.00"},"One Time Fee"]
["PCMFC-LxmkP-50","PaperCut SFP Emb, Lexmark Printer, Comm, 50-99, per device",{"v":190,"d":"$190.00"},{"v":171,"d":"$171.00"},"One Time Fee"]
["PCMFC-LxmkP-100","PaperCut SFP Emb, Lexmark Printer, Comm, 100-199, per device",{"v":159,"d":"$159.00"},{"v":143,"d":"$143.00"},"One Time Fee"]
["PCMFC-LxmkP-500","PaperCut SFP Emb, Lexmark Printer, Comm, 500-999, per device",{"v":153,"d":"$153.00"},{"v":138,"d":"$138.00"},"One Time Fee"]
["PCMFC-LxmkP-1000","PaperCut SFP Emb, Lexmark Printer, Comm, 1000+, per device",{"v":137,"d":"$137.00"},{"v":123,"d":"$123.00"},"One Time Fee"]
["Ricoh Printer License (PaperCut MF Commercial)"]
["PCMFC-RicohP","PaperCut SFP Emb, Ricoh Printer, Comm, 1-9, per device",{"v":390,"d":"$390.00"},{"v":351,"d":"$351.00"},"One Time Fee"]
["PCMFC-RicohP-10","PaperCut SFP Emb, Ricoh Printer, Comm, 10-24, per device",{"v":257,"d":"$257.00"},{"v":231,"d":"$231.00"},"One Time Fee"]
["PCMFC-RicohP-25","PaperCut SFP Emb, Ricoh Printer, Comm, 25-49, per device",{"v":223,"d":"$223.00"},{"v":201,"d":"$201.00"},"One Time Fee"]
["PCMFC-RicohP-50","PaperCut SFP Emb, Ricoh Printer, Comm, 50-99, per device",{"v":190,"d":"$190.00"},{"v":171,"d":"$171.00"},"One Time Fee"]
["PCMFC-RicohP-100","PaperCut SFP Emb, Ricoh Printer, Comm, 100-199, per device",{"v":159,"d":"$159.00"},{"v":143,"d":"$143.00"},"One Time Fee"]
["PCMFC-RicohP-500","PaperCut SFP Emb, Ricoh Printer, Comm, 500-999, per device",{"v":153,"d":"$153.00"},{"v":138,"d":"$138.00"},"One Time Fee"]
["PCMFC-RicohP-1000","PaperCut SFP Emb, Ricoh Printer, Comm, 1000+, per device",{"v":137,"d":"$137.00"},{"v":123,"d":"$123.00"},"One Time Fee"]
["Toshiba Printer License (PaperCut MF Commercial)"]
["PCMFC-ToshP","PaperCut SFP Emb, Toshiba Printer, Comm, 1-9, per device",{"v":390,"d":"$390.00"},{"v":351,"d":"$351.00"},"One Time Fee"]
["PCMFC-ToshP-10","PaperCut SFP Emb, Toshiba Printer, Comm, 10-24, per device",{"v":257,"d":"$257.00"},{"v":231,"d":"$231.00"},"One Time Fee"]
["PCMFC-ToshP-25","PaperCut SFP Emb, Toshiba Printer, Comm, 25-49, per device",{"v":223,"d":"$223.00"},{"v":201,"d":"$201.00"},"One Time Fee"]
["PCMFC-ToshP-50","PaperCut SFP Emb, Toshiba Printer, Comm, 50-99, per device",{"v":190,"d":"$190.00"},{"v":171,"d":"$171.00"},"One Time Fee"]
["PCMFC-ToshP-100","PaperCut SFP Emb, Toshiba Printer, Comm, 100-199, per device",{"v":159,"d":"$159.00"},{"v":143,"d":"$143.00"},"One Time Fee"]
["PCMFC-ToshP-500","PaperCut SFP Emb, Toshiba Printer, Comm, 500-999, per device",{"v":153,"d":"$153.00"},{"v":138,"d":"$138.00"},"One Time Fee"]
["PCMFC-ToshP-1000","PaperCut SFP Emb, Toshiba Printer, Comm, 1000+, per device",{"v":137,"d":"$137.00"},{"v":123,"d":"$123.00"},"One Time Fee"]
["Xerox Printer License (PaperCut MF Commercial)"]
["PCMFC-XeroxP","PaperCut SFP Emb, Xerox Printer, Comm, 1-9, per device",{"v":390,"d":"$390.00"},{"v":351,"d":"$351.00"},"One Time Fee"]
["PCMFC-XeroxP-10","PaperCut SFP Emb, Xerox Printer, Comm, 10-24, per device",{"v":257,"d":"$257.00"},{"v":231,"d":"$231.00"},"One Time Fee"]
["PCMFC-XeroxP-25","PaperCut SFP Emb, Xerox Printer, Comm, 25-49, per device",{"v":223,"d":"$223.00"},{"v":201,"d":"$201.00"},"One Time Fee"]
["PCMFC-XeroxP-50","PaperCut SFP Emb, Xerox Printer, Comm, 50-99, per device",{"v":190,"d":"$190.00"},{"v":171,"d":"$171.00"},"One Time Fee"]
["PCMFC-XeroxP-100","PaperCut SFP Emb, Xerox Printer, Comm, 100-199, per device",{"v":159,"d":"$159.00"},{"v":143,"d":"$143.00"},"One Time Fee"]
["PCMFC-XeroxP-500","PaperCut SFP Emb, Xerox Printer, Comm, 500-999, per device",{"v":153,"d":"$153.00"},{"v":138,"d":"$138.00"},"One Time Fee"]
["PCMFC-XeroxP-1000","PaperCut SFP Emb, Xerox Printer, Comm, 1000+, per device",{"v":137,"d":"$137.00"},{"v":123,"d":"$123.00"},"One Time Fee"]
["SMB Bundle Device License - (bundle may include up to 5 embedded devices and cannot exceed 100 active users)"]
["PCMFC-SMB-Canon","SMB Bundle, per Canon device",{"v":493,"d":"$493.00"},{"v":444,"d":"$444.00"},"One Time Fee"]
["PCMFC-SMB-Fuji","SMB Bundle, per Fuji device",{"v":493,"d":"$493.00"},{"v":444,"d":"$444.00"},"One Time Fee"]
["PCMFC-SMB-HP","SMB Bundle, per HP device",{"v":493,"d":"$493.00"},{"v":444,"d":"$444.00"},"One Time Fee"]
["PCMFC-SMB-KM","SMB Bundle, per Konica Minolta device",{"v":493,"d":"$493.00"},{"v":444,"d":"$444.00"},"One Time Fee"]
["PCMFC-SMB-Kyo","SMB Bundle, per Kyocera device",{"v":493,"d":"$493.00"},{"v":444,"d":"$444.00"},"One Time Fee"]
["PCMFC-SMB-Lxmk","SMB Bundle, per Lexmark device",{"v":493,"d":"$493.00"},{"v":444,"d":"$444.00"},"One Time Fee"]
["PCMFC-SMB-Ricoh","SMB Bundle, per Ricoh device",{"v":493,"d":"$493.00"},{"v":444,"d":"$444.00"},"One Time Fee"]
["PCMFC-SMB-Sharp","SMB Bundle, per Sharp device",{"v":493,"d":"$493.00"},{"$f":"ROUND(C214*(1-0.1),0)","v":{"v":444,"d":"$444.00"}},"One Time Fee"]
["PCMFC-SMB-Samsung","SMB Bundle, per Samsung device",{"v":493,"d":"$493.00"},{"v":444,"d":"$444.00"},"One Time Fee"]
["PCMFC-SMB-Tosh","SMB Bundle, per Toshiba device",{"v":493,"d":"$493.00"},{"v":444,"d":"$444.00"},"One Time Fee"]
["PCMFC-SMB-Xerox","SMB Bundle, per Xerox device",{"v":493,"d":"$493.00"},{"v":444,"d":"$444.00"},"One Time Fee"]
["PCMFC-SMB-Dell","SMB Bundle, per Dell device",{"v":493,"d":"$493.00"},{"v":444,"d":"$444.00"},"One Time Fee"]
["PCMFC-SMB-RISO","SMB Bundle, per RISO device",{"v":493,"d":"$493.00"},{"v":444,"d":"$444.00"},"One Time Fee"]
["PCMFC-SMB-EPS","SMB Bundle, per Epson device",{"v":493,"d":"$493.00"},{"v":444,"d":"$444.00"},"One Time Fee"]
["PCMFC-SMB-OKI","SMB Bundle, per OKI device",{"v":493,"d":"$493.00"},{"v":444,"d":"$444.00"},"One Time Fee"]
["PCMFC-SMB-Muratec","SMB Bundle, per Muratec device",{"v":493,"d":"$493.00"},{"v":444,"d":"$444.00"},"One Time Fee"]
[]
["PAPERCUT MF EDUCATION/GOVERNMENT"]
["Vendor Part #","Description","MSRP","NASPO Price","Type"]
["Multifunction Device License - (Volume discounts apply to licenses once minimum quantities for that OEM tier have been reached)"]
["Sharp Multifunction Device License (PaperCut MF Education/Government)"]
["PCMFE-Sharp","PaperCut MFD Emb, Sharp, EduGov, 1-9, per device",{"v":716,"d":"$716.00"},{"v":644,"d":"$644.00"},"One Time Fee"]
["PCMFE-Sharp-10","PaperCut MFD Emb, Sharp, EduGov, 10-24, per device",{"v":473,"d":"$473.00"},{"v":426,"d":"$426.00"},"One Time Fee"]
["PCMFE-Sharp-25","PaperCut MFD Emb, Sharp, EduGov, 25-49, per device",{"v":408,"d":"$408.00"},{"v":367,"d":"$367.00"},"One Time Fee"]
["PCMFE-Sharp-50","PaperCut MFD Emb, Sharp, EduGov, 50-99, per device",{"v":348,"d":"$348.00"},{"v":313,"d":"$313.00"},"One Time Fee"]
["PCMFE-Sharp-100","PaperCut MFD Emb, Sharp, EduGov, 100-199, per device",{"v":291,"d":"$291.00"},{"v":262,"d":"$262.00"},"One Time Fee"]
["PCMFE-SharpP-500","PaperCut SFP Emb, Sharp Printer, EduGov, 500-999, per device",{"v":280,"d":"$280.00"},{"v":252,"d":"$252.00"},"One Time Fee"]
["PCMFE-SharpP-1000","PaperCut SFP Emb, Sharp Printer, EduGov, 1000+, per device",{"v":252,"d":"$252.00"},{"v":227,"d":"$227.00"},"One Time Fee"]
["Canon Multifunction Device License (PaperCut MF Education/Government)"]
["PCMFE-Canon","PaperCut MFD Emb, Canon, EduGov, 1-9, per device",{"v":716,"d":"$716.00"},{"v":644,"d":"$644.00"},"One Time Fee"]
["PCMFE-Canon-10","PaperCut MFD Emb, Canon, EduGov, 10-24, per device",{"v":473,"d":"$473.00"},{"v":426,"d":"$426.00"},"One Time Fee"]
["PCMFE-Canon-25","PaperCut MFD Emb, Canon, EduGov, 25-49, per device",{"v":408,"d":"$408.00"},{"v":367,"d":"$367.00"},"One Time Fee"]
["PCMFE-Canon-50","PaperCut MFD Emb, Canon, EduGov, 50-99, per device",{"v":348,"d":"$348.00"},{"v":313,"d":"$313.00"},"One Time Fee"]
["PCMFE-Canon-100","PaperCut MFD Emb, Canon, EduGov, 100-199, per device",{"v":291,"d":"$291.00"},{"v":262,"d":"$262.00"},"One Time Fee"]
["PCMFE-Canon-500","PaperCut MFD Emb, Canon, EduGov, 500-999, per device",{"v":280,"d":"$280.00"},{"v":252,"d":"$252.00"},"One Time Fee"]
["PCMFE-Canon-1000","PaperCut MFD Emb, Canon, EduGov, 1000+, per device",{"v":252,"d":"$252.00"},{"v":227,"d":"$227.00"},"One Time Fee"]
["Fuji Multifunction Device License (PaperCut MF Education/Government)"]
["PCMFE-Fuji","PaperCut MFD Emb, FX, EduGov, 1-9, per device",{"v":716,"d":"$716.00"},{"v":644,"d":"$644.00"},"One Time Fee"]
["PCMFE-Fuji-10","PaperCut MFD Emb, FX, EduGov, 10-24, per device",{"v":473,"d":"$473.00"},{"v":426,"d":"$426.00"},"One Time Fee"]
["PCMFE-Fuji-25","PaperCut MFD Emb, FX, EduGov, 25-49, per device",{"v":408,"d":"$408.00"},{"v":367,"d":"$367.00"},"One Time Fee"]
["PCMFE-Fuji-50","PaperCut MFD Emb, FX, EduGov, 50-99, per device",{"v":348,"d":"$348.00"},{"v":313,"d":"$313.00"},"One Time Fee"]
["PCMFE-Fuji-100","PaperCut MFD Emb, FX, EduGov, 100-199, per device",{"v":291,"d":"$291.00"},{"v":262,"d":"$262.00"},"One Time Fee"]
["PCMFE-Fuji-500","PaperCut MFD Emb, FX, EduGov, 500-999, per device",{"v":280,"d":"$280.00"},{"v":252,"d":"$252.00"},"One Time Fee"]
["PCMFE-Fuji-1000","PaperCut MFD Emb, FX, EduGov, 1000+, per device",{"v":252,"d":"$252.00"},{"v":227,"d":"$227.00"},"One Time Fee"]
["HP Multifunction Device License (PaperCut MF Education/Government)"]
["PCMFE-HP","PaperCut MFD Emb, HP, EduGov, 1-9, per device",{"v":716,"d":"$716.00"},{"v":644,"d":"$644.00"},"One Time Fee"]
["PCMFE-HP-10","PaperCut MFD Emb, HP, EduGov, 10-24, per device",{"v":473,"d":"$473.00"},{"v":426,"d":"$426.00"},"One Time Fee"]
["PCMFE-HP-25","PaperCut MFD Emb, HP, EduGov, 25-49, per device",{"v":408,"d":"$408.00"},{"v":367,"d":"$367.00"},"One Time Fee"]
["PCMFE-HP-50","PaperCut MFD Emb, HP, EduGov, 50-99, per device",{"v":348,"d":"$348.00"},{"v":313,"d":"$313.00"},"One Time Fee"]
["PCMFE-HP-100","PaperCut MFD Emb, HP, EduGov, 100-199, per device",{"v":291,"d":"$291.00"},{"v":262,"d":"$262.00"},"One Time Fee"]
["PCMFE-HP-500","PaperCut MFD Emb, HP, EduGov, 500-999, per device",{"v":280,"d":"$280.00"},{"v":252,"d":"$252.00"},"One Time Fee"]
["PCMFE-HP-1000","PaperCut MFD Emb, HP, EduGov, 1000+, per device",{"v":252,"d":"$252.00"},{"v":227,"d":"$227.00"},"One Time Fee"]
["Konica Minolta Multifunction Device License (PaperCut MF Education/Government)"]
["PCMFE-KM","PaperCut MFD Emb, KM, EduGov, 1-9, per device",{"v":716,"d":"$716.00"},{"v":644,"d":"$644.00"},"One Time Fee"]
["PCMFE-KM-10","PaperCut MFD Emb, KM, EduGov, 10-24, per device",{"v":473,"d":"$473.00"},{"v":426,"d":"$426.00"},"One Time Fee"]
["PCMFE-KM-25","PaperCut MFD Emb, KM, EduGov, 25-49, per device",{"v":408,"d":"$408.00"},{"v":367,"d":"$367.00"},"One Time Fee"]
["PCMFE-KM-50","PaperCut MFD Emb, KM, EduGov, 50-99, per device",{"v":348,"d":"$348.00"},{"v":313,"d":"$313.00"},"One Time Fee"]
["PCMFE-KM-100","PaperCut MFD Emb, KM, EduGov, 100-199, per device",{"v":291,"d":"$291.00"},{"v":262,"d":"$262.00"},"One Time Fee"]
["PCMFE-KM-500","PaperCut MFD Emb, KM, EduGov, 500-999, per device",{"v":280,"d":"$280.00"},{"v":252,"d":"$252.00"},"One Time Fee"]
["PCMFE-KM-1000","PaperCut MFD Emb, KM, EduGov, 1000+, per device",{"v":252,"d":"$252.00"},{"v":227,"d":"$227.00"},"One Time Fee"]
["Kyocera Multifunction Device License (PaperCut MF Education/Government)"]
["PCMFE-Kyoc","PaperCut MFD Emb, Kyocera, EduGov, 1-9, per device",{"v":716,"d":"$716.00"},{"v":644,"d":"$644.00"},"One Time Fee"]
["PCMFE-Kyoc-10","PaperCut MFD Emb, Kyocera, EduGov, 10-24, per device",{"v":473,"d":"$473.00"},{"v":426,"d":"$426.00"},"One Time Fee"]
["PCMFE-Kyoc-25","PaperCut MFD Emb, Kyocera, EduGov, 25-49, per device",{"v":408,"d":"$408.00"},{"v":367,"d":"$367.00"},"One Time Fee"]
["PCMFE-Kyoc-50","PaperCut MFD Emb, Kyocera, EduGov, 50-99, per device",{"v":348,"d":"$348.00"},{"v":313,"d":"$313.00"},"One Time Fee"]
["PCMFE-Kyoc-100","PaperCut MFD Emb, Kyocera, EduGov, 100-199, per device",{"v":291,"d":"$291.00"},{"v":262,"d":"$262.00"},"One Time Fee"]
["PCMFE-Kyoc-500","PaperCut MFD Emb, Kyocera, EduGov, 500-999, per device",{"v":280,"d":"$280.00"},{"v":252,"d":"$252.00"},"One Time Fee"]
["PCMFE-Kyoc-1000","PaperCut MFD Emb, Kyocera, EduGov, 1000+, per device",{"v":252,"d":"$252.00"},{"v":227,"d":"$227.00"},"One Time Fee"]
["Lexmark Multifunction Device License (PaperCut MF Education/Government)"]
["PCMFE-Lxmk","PaperCut MFD Emb, Lexmark, EduGov, 1-9, per device",{"v":716,"d":"$716.00"},{"v":644,"d":"$644.00"},"One Time Fee"]
["PCMFE-Lxmk-10","PaperCut MFD Emb, Lexmark, EduGov, 10-24, per device",{"v":473,"d":"$473.00"},{"v":426,"d":"$426.00"},"One Time Fee"]
["PCMFE-Lxmk-25","PaperCut MFD Emb, Lexmark, EduGov, 25-49, per device",{"v":408,"d":"$408.00"},{"$f":"ROUND(C278*(1-0.1),0)","v":{"v":367,"d":"$367.00"}},"One Time Fee"]
["PCMFE-Lxmk-50","PaperCut MFD Emb, Lexmark, EduGov, 50-99, per device",{"v":348,"d":"$348.00"},{"v":313,"d":"$313.00"},"One Time Fee"]
["PCMFE-Lxmk-100","PaperCut MFD Emb, Lexmark, EduGov, 100-199, per device",{"v":291,"d":"$291.00"},{"v":262,"d":"$262.00"},"One Time Fee"]
["PCMFE-Lxmk-500","PaperCut MFD Emb, Lexmark, EduGov, 500-999, per device",{"v":280,"d":"$280.00"},{"v":252,"d":"$252.00"},"One Time Fee"]
["PCMFE-Lxmk-1000","PaperCut MFD Emb, Lexmark, EduGov, 1000+, per device",{"v":252,"d":"$252.00"},{"v":227,"d":"$227.00"},"One Time Fee"]
["Ricoh Multifunction Device License (PaperCut MF Education/Government)"]
["PCMFE-Ricoh","PaperCut MFD Emb, Ricoh, EduGov, 1-9, per device",{"v":716,"d":"$716.00"},{"v":644,"d":"$644.00"},"One Time Fee"]
["PCMFE-Ricoh-10","PaperCut MFD Emb, Ricoh, EduGov, 10-24, per device",{"v":473,"d":"$473.00"},{"v":426,"d":"$426.00"},"One Time Fee"]
["PCMFE-Ricoh-25","PaperCut MFD Emb, Ricoh, EduGov, 25-49, per device",{"v":408,"d":"$408.00"},{"v":367,"d":"$367.00"},"One Time Fee"]
["PCMFE-Ricoh-50","PaperCut MFD Emb, Ricoh, EduGov, 50-99, per device",{"v":348,"d":"$348.00"},{"v":313,"d":"$313.00"},"One Time Fee"]
["PCMFE-Ricoh-100","PaperCut MFD Emb, Ricoh, EduGov, 100-199, per device",{"v":291,"d":"$291.00"},{"v":262,"d":"$262.00"},"One Time Fee"]
["PCMFE-Ricoh-500","PaperCut MFD Emb, Ricoh, EduGov, 500-999, per device",{"v":280,"d":"$280.00"},{"v":252,"d":"$252.00"},"One Time Fee"]
["PCMFE-Ricoh-1000","PaperCut MFD Emb, Ricoh, EduGov, 1000+, per device",{"v":252,"d":"$252.00"},{"v":227,"d":"$227.00"},"One Time Fee"]
["Toshiba Multifunction Device License (PaperCut MF Education/Government)"]
["PCMFE-Tosh","PaperCut MFD Emb, Toshiba, EduGov, 1-9, per device",{"v":716,"d":"$716.00"},{"v":644,"d":"$644.00"},"One Time Fee"]
["PCMFE-Tosh-10","PaperCut MFD Emb, Toshiba, EduGov, 10-24, per device",{"v":473,"d":"$473.00"},{"v":426,"d":"$426.00"},"One Time Fee"]
["PCMFE-Tosh-25","PaperCut MFD Emb, Toshiba, EduGov, 25-49, per device",{"v":408,"d":"$408.00"},{"v":367,"d":"$367.00"},"One Time Fee"]
["PCMFE-Tosh-50","PaperCut MFD Emb, Toshiba, EduGov, 50-99, per device",{"v":348,"d":"$348.00"},{"v":313,"d":"$313.00"},"One Time Fee"]
["PCMFE-Tosh-100","PaperCut MFD Emb, Toshiba, EduGov, 100-199, per device",{"v":291,"d":"$291.00"},{"v":262,"d":"$262.00"},"One Time Fee"]
["PCMFE-Tosh-500","PaperCut MFD Emb, Toshiba, EduGov, 500-999, per device",{"v":280,"d":"$280.00"},{"v":252,"d":"$252.00"},"One Time Fee"]
["PCMFE-Tosh-1000","PaperCut MFD Emb, Toshiba, EduGov, 1000+, per device",{"v":252,"d":"$252.00"},{"v":227,"d":"$227.00"},"One Time Fee"]
["Xerox Multifunction Device License (PaperCut MF Education/Government)"]
["PCMFE-Xerox","PaperCut MFD Emb, Xerox, EduGov, 1-9, per device",{"v":716,"d":"$716.00"},{"v":644,"d":"$644.00"},"One Time Fee"]
["PCMFE-Xerox-10","PaperCut MFD Emb, Xerox, EduGov, 10-24, per device",{"v":473,"d":"$473.00"},{"v":426,"d":"$426.00"},"One Time Fee"]
["PCMFE-Xerox-25","PaperCut MFD Emb, Xerox, EduGov, 25-49, per device",{"v":408,"d":"$408.00"},{"v":367,"d":"$367.00"},"One Time Fee"]
["PCMFE-Xerox-50","PaperCut MFD Emb, Xerox, EduGov, 50-99, per device",{"v":348,"d":"$348.00"},{"v":313,"d":"$313.00"},"One Time Fee"]
["PCMFE-Xerox-100","PaperCut MFD Emb, Xerox, EduGov, 100-199, per device",{"v":291,"d":"$291.00"},{"v":262,"d":"$262.00"},"One Time Fee"]
["PCMFE-Xerox-500","PaperCut MFD Emb, Xerox, EduGov, 500-999, per device",{"v":280,"d":"$280.00"},{"v":252,"d":"$252.00"},"One Time Fee"]
["PCMFE-Xerox-1000","PaperCut MFD Emb, Xerox, EduGov, 1000+, per device",{"v":252,"d":"$252.00"},{"v":227,"d":"$227.00"},"One Time Fee"]
["Brother Multifunction Device License (PaperCut MF Education/Government)"]
["PCMFE-Bro","PaperCut MFD Emb, Brothers, EduGov, 1-9, per device",{"v":364,"d":"$364.00"},{"v":328,"d":"$328.00"},"One Time Fee"]
["PCMFE-Bro-10","PaperCut MFD Emb, Brothers, EduGov, 10-24, per device",{"v":241,"d":"$241.00"},{"v":217,"d":"$217.00"},"One Time Fee"]
["PCMFE-Bro-25","PaperCut MFD Emb, Brothers, EduGov, 25-49, per device",{"v":208,"d":"$208.00"},{"v":187,"d":"$187.00"},"One Time Fee"]
["PCMFE-Bro-50","PaperCut MFD Emb, Brothers, EduGov, 50-99, per device",{"v":177,"d":"$177.00"},{"v":159,"d":"$159.00"},"One Time Fee"]
["PCMFE-Bro-100","PaperCut MFD Emb, Brothers, EduGov, 100-199, per device",{"v":149,"d":"$149.00"},{"v":134,"d":"$134.00"},"One Time Fee"]
["PCMFE-Bro-500","PaperCut MFD Emb, Brothers, EduGov, 500-999, per device",{"v":143,"d":"$143.00"},{"v":129,"d":"$129.00"},"One Time Fee"]
["PCMFE-Bro-1000","PaperCut MFD Emb, Brothers, EduGov, 1000+, per device",{"v":128,"d":"$128.00"},{"v":115,"d":"$115.00"},"One Time Fee"]
["Dell Multifunction Device License (PaperCut MF Education/Government)"]
["PCMFE-Dell","PaperCut MFD Emb, Dell, EduGov, 1-9, per device",{"v":657,"d":"$657.00"},{"v":591,"d":"$591.00"},"One Time Fee"]
["PCMFE-Dell-10","PaperCut MFD Emb, Dell, EduGov, 10-24, per device",{"v":453,"d":"$453.00"},{"v":408,"d":"$408.00"},"One Time Fee"]
["PCMFE-Dell-25","PaperCut MFD Emb, Dell, EduGov, 25-49, per device",{"v":391,"d":"$391.00"},{"v":352,"d":"$352.00"},"One Time Fee"]
["PCMFE-Dell-50","PaperCut MFD Emb, Dell, EduGov, 50-99, per device",{"v":341,"d":"$341.00"},{"v":307,"d":"$307.00"},"One Time Fee"]
["PCMFE-Dell-100","PaperCut MFD Emb, Dell, EduGov, 100-199, per device",{"v":284,"d":"$284.00"},{"v":256,"d":"$256.00"},"One Time Fee"]
["PCMFE-Dell-200","PaperCut MFD Emb, Dell, EduGov, 200-499, per device",{"v":278,"d":"$278.00"},{"v":250,"d":"$250.00"},"One Time Fee"]
["PCMFE-Dell-500","PaperCut MFD Emb, Dell, EduGov, 500+, per device",{"v":272,"d":"$272.00"},{"v":245,"d":"$245.00"},"One Time Fee"]
["Samsung Multifunction Device License (PaperCut MF Education/Government)"]
["PCMFE-Samsung","PaperCut MFD Emb, Samsung, EduGov, 1-9, per device",{"v":657,"d":"$657.00"},{"v":591,"d":"$591.00"},"One Time Fee"]
["PCMFE-Samsung-10","PaperCut MFD Emb, Samsung, EduGov, 10-24, per device",{"v":453,"d":"$453.00"},{"v":408,"d":"$408.00"},"One Time Fee"]
["PCMFE-Samsung-25","PaperCut MFD Emb, Samsung, EduGov, 25-49, per device",{"v":391,"d":"$391.00"},{"v":352,"d":"$352.00"},"One Time Fee"]
["PCMFE-Samsung-50","PaperCut MFD Emb, Samsung, EduGov, 50-99, per device",{"v":341,"d":"$341.00"},{"v":307,"d":"$307.00"},"One Time Fee"]
["PCMFE-Samsung-100","PaperCut MFD Emb, Samsung, EduGov, 100-199, per device",{"v":284,"d":"$284.00"},{"v":256,"d":"$256.00"},"One Time Fee"]
["PCMFE-Samsung-200","PaperCut MFD Emb, Samsung, EduGov, 200-499, per device",{"v":278,"d":"$278.00"},{"v":250,"d":"$250.00"},"One Time Fee"]
["PCMFE-Samsung-500","PaperCut MFD Emb, Samsung, EduGov, 500+, per device",{"v":272,"d":"$272.00"},{"v":245,"d":"$245.00"},"One Time Fee"]
["Muratec Multifunction Device License (PaperCut MF Education/Government)"]
["PCMFE-Muratec","PaperCut MFD Emb, Muratec, EduGov, 1-9, per device",{"v":716,"d":"$716.00"},{"v":644,"d":"$644.00"},"One Time Fee"]
["PCMFE-Muratec-10","PaperCut MFD Emb, Muratec, EduGov, 10-24, per device",{"v":473,"d":"$473.00"},{"v":426,"d":"$426.00"},"One Time Fee"]
["PCMFE-Muratec-25","PaperCut MFD Emb, Muratec, EduGov, 25-49, per device",{"v":408,"d":"$408.00"},{"v":367,"d":"$367.00"},"One Time Fee"]
["PCMFE-Muratec-50","PaperCut MFD Emb, Muratec, EduGov, 50-99, per device",{"v":348,"d":"$348.00"},{"v":313,"d":"$313.00"},"One Time Fee"]
["PCMFE-Muratec-100","PaperCut MFD Emb, Muratec, EduGov, 100-199, per device",{"v":291,"d":"$291.00"},{"v":262,"d":"$262.00"},"One Time Fee"]
["PCMFE-Muratec-500","PaperCut MFD Emb, Muratec, EduGov, 500-999, per device",{"v":280,"d":"$280.00"},{"v":252,"d":"$252.00"},"One Time Fee"]
["PCMFE-Muratec-1000","PaperCut MFD Emb, Muratec, EduGov, 1000+, per device",{"v":252,"d":"$252.00"},{"v":227,"d":"$227.00"},"One Time Fee"]
["OKI Multifunction Device License (PaperCut MF Education/Government)"]
["PCMFE-OKI","PaperCut MFD Emb, OKI, EduGov, 1-9, per device",{"v":716,"d":"$716.00"},{"v":644,"d":"$644.00"},"One Time Fee"]
["PCMFE-OKI-10","PaperCut MFD Emb, OKI, EduGov, 10-24, per device",{"v":473,"d":"$473.00"},{"v":426,"d":"$426.00"},"One Time Fee"]
["PCMFE-OKI-25","PaperCut MFD Emb, OKI, EduGov, 25-49, per device",{"v":408,"d":"$408.00"},{"$f":"ROUND(C342*(1-0.1),0)","v":{"v":367,"d":"$367.00"}},"One Time Fee"]
["PCMFE-OKI-50","PaperCut MFD Emb, OKI, EduGov, 50-99, per device",{"v":348,"d":"$348.00"},{"v":313,"d":"$313.00"},"One Time Fee"]
["PCMFE-OKI-100","PaperCut MFD Emb, OKI, EduGov, 100-199, per device",{"v":291,"d":"$291.00"},{"v":262,"d":"$262.00"},"One Time Fee"]
["PCMFE-OKI-500","PaperCut MFD Emb, OKI, EduGov, 500-999, per device",{"v":280,"d":"$280.00"},{"v":252,"d":"$252.00"},"One Time Fee"]
["PCMFE-OKI-1000","PaperCut MFD Emb, OKI, EduGov, 1000+, per device",{"v":252,"d":"$252.00"},{"v":227,"d":"$227.00"},"One Time Fee"]
["Epson Multifunction Device License (PaperCut MF Education/Government)"]
["PCMFE-EPS","PaperCut MFD Emb, Epson, EduGov, 1-9, per device",{"v":716,"d":"$716.00"},{"v":644,"d":"$644.00"},"One Time Fee"]
["PCMFE-EPS-10","PaperCut MFD Emb, Epson, EduGov, 10-24, per device",{"v":473,"d":"$473.00"},{"v":426,"d":"$426.00"},"One Time Fee"]
["PCMFE-EPS-25","PaperCut MFD Emb, Epson, EduGov, 25-49, per device",{"v":408,"d":"$408.00"},{"v":367,"d":"$367.00"},"One Time Fee"]
["PCMFE-EPS-50","PaperCut MFD Emb, Epson, EduGov, 50-99, per device",{"v":348,"d":"$348.00"},{"v":313,"d":"$313.00"},"One Time Fee"]
["PCMFE-EPS-100","PaperCut MFD Emb, Epson, EduGov, 100-199, per device",{"v":291,"d":"$291.00"},{"v":262,"d":"$262.00"},"One Time Fee"]
["PCMFE-EPS-500","PaperCut MFD Emb, Epson, EduGov, 500-999, per device",{"v":280,"d":"$280.00"},{"v":252,"d":"$252.00"},"One Time Fee"]
["PCMFE-EPS-1000","PaperCut MFD Emb, Epson, EduGov, 1000+, per device",{"v":252,"d":"$252.00"},{"v":227,"d":"$227.00"},"One Time Fee"]
["RISO Multifunction Device License (PaperCut MF Education/Government)"]
["PCMFE-RISO","PaperCut MFD Emb, RISO, EduGov, 1-9, per device",{"v":716,"d":"$716.00"},{"v":644,"d":"$644.00"},"One Time Fee"]
["PCMFE-RISO-10","PaperCut MFD Emb, RISO, EduGov, 10-24, per device",{"v":473,"d":"$473.00"},{"v":426,"d":"$426.00"},"One Time Fee"]
["PCMFE-RISO-25","PaperCut MFD Emb, RISO, EduGov, 25-49, per device",{"v":408,"d":"$408.00"},{"v":367,"d":"$367.00"},"One Time Fee"]
["PCMFE-RISO-50","PaperCut MFD Emb, RISO, EduGov, 50-99, per device",{"v":348,"d":"$348.00"},{"v":313,"d":"$313.00"},"One Time Fee"]
["PCMFE-RISO-100","PaperCut MFD Emb, RISO, EduGov, 100-199, per device",{"v":291,"d":"$291.00"},{"v":262,"d":"$262.00"},"One Time Fee"]
["PCMFE-RISO-500","PaperCut MFD Emb, RISO, EduGov, 500-999, per device",{"v":280,"d":"$280.00"},{"v":252,"d":"$252.00"},"One Time Fee"]
["PCMFE-RISO-1000","PaperCut MFD Emb, RISO, EduGov, 1000+, per device",{"v":252,"d":"$252.00"},{"v":227,"d":"$227.00"},"One Time Fee"]
["KAT Multifunction Device License (PaperCut MF Education/Government)"]
["PCMFE-KAT","PaperCut MFD Emb, KAT, EduGov, 1-9, per device",{"v":716,"d":"$716.00"},{"$f":"ROUND(C364*(1-0.1),0)","v":{"v":644,"d":"$644.00"}},"One Time Fee"]
["PCMFE-KAT-10","PaperCut MFD Emb, KAT, EduGov, 10-24, per device",{"v":473,"d":"$473.00"},{"v":426,"d":"$426.00"},"One Time Fee"]
["PCMFE-KAT-25","PaperCut MFD Emb, KAT, EduGov, 25-49, per device",{"v":408,"d":"$408.00"},{"v":367,"d":"$367.00"},"One Time Fee"]
["PCMFE-KAT-50","PaperCut MFD Emb, KAT, EduGov, 50-99, per device",{"v":348,"d":"$348.00"},{"v":313,"d":"$313.00"},"One Time Fee"]
["PCMFE-KAT-100","PaperCut MFD Emb, KAT, EduGov, 100-499, per device",{"v":291,"d":"$291.00"},{"v":262,"d":"$262.00"},"One Time Fee"]
["PCMFE-KAT-500","PaperCut MFD Emb, KAT, EduGov, 500-999, per device",{"v":280,"d":"$280.00"},{"v":252,"d":"$252.00"},"One Time Fee"]
["PCMFE-KAT-1000","PaperCut MFD Emb, KAT, EduGov, 1000+, per device",{"v":252,"d":"$252.00"},{"v":227,"d":"$227.00"},"One Time Fee"]
["Single Function Device License - (Volume discounts apply to licenses once minimum quantities for that OEM tier have been reached)"]
["Sharp Printer License (PaperCut MF Education/Government)"]
["PCMFE-SharpP","PaperCut SFP Emb, Sharp Printer, EduGov, 1-9, per device",{"v":364,"d":"$364.00"},{"v":328,"d":"$328.00"},"One Time Fee"]
["PCMFE-SharpP-10","PaperCut SFP Emb, Sharp Printer, EduGov, 10-24, per device",{"v":241,"d":"$241.00"},{"v":217,"d":"$217.00"},"One Time Fee"]
["PCMFE-SharpP-25","PaperCut SFP Emb, Sharp Printer, EduGov, 25-49, per device",{"v":208,"d":"$208.00"},{"v":187,"d":"$187.00"},"One Time Fee"]
["PCMFE-SharpP-50","PaperCut SFP Emb, Sharp Printer, EduGov, 50-99, per device",{"v":177,"d":"$177.00"},{"v":159,"d":"$159.00"},"One Time Fee"]
["PCMFE-SharpP-100","PaperCut SFP Emb, Sharp Printer, EduGov, 100-199, per device",{"v":149,"d":"$149.00"},{"v":134,"d":"$134.00"},"One Time Fee"]
["PCMFE-SharpP-500","PaperCut SFP Emb, Sharp Printer, EduGov, 500-999, per device",{"v":143,"d":"$143.00"},{"v":129,"d":"$129.00"},"One Time Fee"]
["PCMFE-SharpP-1000","PaperCut SFP Emb, Sharp Printer, EduGov, 1000+, per device",{"v":128,"d":"$128.00"},{"v":115,"d":"$115.00"},"One Time Fee"]
["HP Printer License (PaperCut MF Education/Government)"]
["PCMFE-HpP","PaperCut SFP Emb, HP Printer, EduGov, 1-9, per device",{"v":364,"d":"$364.00"},{"v":328,"d":"$328.00"},"One Time Fee"]
["PCMFE-HpP-10","PaperCut SFP Emb, HP Printer, EduGov, 10-24, per device",{"v":241,"d":"$241.00"},{"v":217,"d":"$217.00"},"One Time Fee"]
["PCMFE-HpP-25","PaperCut SFP Emb, HP Printer, EduGov, 25-49, per device",{"v":208,"d":"$208.00"},{"v":187,"d":"$187.00"},"One Time Fee"]
["PCMFE-HpP-50","PaperCut SFP Emb, HP Printer, EduGov, 50-99, per device",{"v":177,"d":"$177.00"},{"v":159,"d":"$159.00"},"One Time Fee"]
["PCMFE-HpP-100","PaperCut SFP Emb, HP Printer, EduGov, 100-199, per device",{"v":149,"d":"$149.00"},{"v":134,"d":"$134.00"},"One Time Fee"]
["PCMFE-HpP-500","PaperCut SFP Emb, HP Printer, EduGov, 500-999, per device",{"v":143,"d":"$143.00"},{"v":129,"d":"$129.00"},"One Time Fee"]
["PCMFE-HpP-1000","PaperCut SFP Emb, HP Printer, EduGov, 1000+, per device",{"v":128,"d":"$128.00"},{"v":115,"d":"$115.00"},"One Time Fee"]
["Lexmark Printer License (PaperCut MF Education/Government)"]
["PCMFE-LxmkP","PaperCut SFP Emb, Lexmark Printer, EduGov, 1-9, per device",{"v":364,"d":"$364.00"},{"v":328,"d":"$328.00"},"One Time Fee"]
["PCMFE-LxmkP-10","PaperCut SFP Emb, Lexmark Printer, EduGov, 10-24, per device",{"v":241,"d":"$241.00"},{"v":217,"d":"$217.00"},"One Time Fee"]
["PCMFE-LxmkP-25","PaperCut SFP Emb, Lexmark Printer, EduGov, 25-49, per device",{"v":208,"d":"$208.00"},{"v":187,"d":"$187.00"},"One Time Fee"]
["PCMFE-LxmkP-50","PaperCut SFP Emb, Lexmark Printer, EduGov, 50-99, per device",{"v":177,"d":"$177.00"},{"v":159,"d":"$159.00"},"One Time Fee"]
["PCMFE-LxmkP-100","PaperCut SFP Emb, Lexmark Printer, EduGov, 100-199, per device",{"v":149,"d":"$149.00"},{"v":134,"d":"$134.00"},"One Time Fee"]
["PCMFE-LxmkP-500","PaperCut SFP Emb, Lexmark Printer, EduGov, 500-999, per device",{"v":143,"d":"$143.00"},{"v":129,"d":"$129.00"},"One Time Fee"]
["PCMFE-LxmkP-1000","PaperCut SFP Emb, Lexmark Printer, EduGov, 1000+, per device",{"v":128,"d":"$128.00"},{"v":115,"d":"$115.00"},"One Time Fee"]
["Ricoh Printer License (PaperCut MF Education/Government)"]
["PCMFE-RicohP","PaperCut SFP Emb, Ricoh Printer, EduGov, 1-9, per device",{"v":364,"d":"$364.00"},{"v":328,"d":"$328.00"},"One Time Fee"]
["PCMFE-RicohP-10","PaperCut SFP Emb, Ricoh Printer, EduGov, 10-24, per device",{"v":241,"d":"$241.00"},{"v":217,"d":"$217.00"},"One Time Fee"]
["PCMFE-RicohP-25","PaperCut SFP Emb, Ricoh Printer, EduGov, 25-49, per device",{"v":208,"d":"$208.00"},{"v":187,"d":"$187.00"},"One Time Fee"]
["PCMFE-RicohP-50","PaperCut SFP Emb, Ricoh Printer, EduGov, 50-99, per device",{"v":177,"d":"$177.00"},{"v":159,"d":"$159.00"},"One Time Fee"]
["PCMFE-RicohP-100","PaperCut SFP Emb, Ricoh Printer, EduGov, 100-199, per device",{"v":149,"d":"$149.00"},{"v":134,"d":"$134.00"},"One Time Fee"]
["PCMFE-RicohP-500","PaperCut SFP Emb, Ricoh Printer, EduGov, 500-999, per device",{"v":143,"d":"$143.00"},{"v":129,"d":"$129.00"},"One Time Fee"]
["PCMFE-RicohP-1000","PaperCut SFP Emb, Ricoh Printer, EduGov, 1000+, per device",{"v":128,"d":"$128.00"},{"v":115,"d":"$115.00"},"One Time Fee"]
["Toshiba Printer License (PaperCut MF Education/Government)"]
["PCMFE-ToshP","PaperCut SFP Emb, Toshiba Printer, EduGov, 1-9, per device",{"v":364,"d":"$364.00"},{"v":328,"d":"$328.00"},"One Time Fee"]
["PCMFE-ToshP-10","PaperCut SFP Emb, Toshiba Printer, EduGov, 10-24, per device",{"v":241,"d":"$241.00"},{"v":217,"d":"$217.00"},"One Time Fee"]
["PCMFE-ToshP-25","PaperCut SFP Emb, Toshiba Printer, EduGov, 25-49, per device",{"v":208,"d":"$208.00"},{"v":187,"d":"$187.00"},"One Time Fee"]
["PCMFE-ToshP-50","PaperCut SFP Emb, Toshiba Printer, EduGov, 50-99, per device",{"v":177,"d":"$177.00"},{"v":159,"d":"$159.00"},"One Time Fee"]
["PCMFE-ToshP-100","PaperCut SFP Emb, Toshiba Printer, EduGov, 100-199, per device",{"v":149,"d":"$149.00"},{"v":134,"d":"$134.00"},"One Time Fee"]
["PCMFE-ToshP-500","PaperCut SFP Emb, Toshiba Printer, EduGov, 500-999, per device",{"v":143,"d":"$143.00"},{"v":129,"d":"$129.00"},"One Time Fee"]
["PCMFE-ToshP-1000","PaperCut SFP Emb, Toshiba Printer, EduGov, 1000+, per device",{"v":128,"d":"$128.00"},{"v":115,"d":"$115.00"},"One Time Fee"]
["Xerox Printer License (PaperCut MF Education/Government)"]
["PCMFE-XeroxP","PaperCut SFP Emb, Xerox Printer, EduGov, 1-9, per device",{"v":364,"d":"$364.00"},{"v":328,"d":"$328.00"},"One Time Fee"]
["PCMFE-XeroxP-10","PaperCut SFP Emb, Xerox Printer, EduGov, 10-24, per device",{"v":241,"d":"$241.00"},{"$f":"ROUND(C414*(1-0.1),0)","v":{"v":217,"d":"$217.00"}},"One Time Fee"]
["PCMFE-XeroxP-25","PaperCut SFP Emb, Xerox Printer, EduGov, 25-49, per device",{"v":208,"d":"$208.00"},{"v":187,"d":"$187.00"},"One Time Fee"]
["PCMFE-XeroxP-50","PaperCut SFP Emb, Xerox Printer, EduGov, 50-99, per device",{"v":177,"d":"$177.00"},{"v":159,"d":"$159.00"},"One Time Fee"]
["PCMFE-XeroxP-100","PaperCut SFP Emb, Xerox Printer, EduGov, 100-199, per device",{"v":149,"d":"$149.00"},{"v":134,"d":"$134.00"},"One Time Fee"]
["PCMFE-XeroxP-500","PaperCut SFP Emb, Xerox Printer, EduGov, 500-999, per device",{"v":143,"d":"$143.00"},{"v":129,"d":"$129.00"},"One Time Fee"]
["PCMFE-XeroxP-1000","PaperCut SFP Emb, Xerox Printer, EduGov, 1000+, per device",{"v":128,"d":"$128.00"},{"v":115,"d":"$115.00"},"One Time Fee"]
[]
["DEVICE MIGRATION LICENSE"]
["Vendor Part #","Description","MSRP","NASPO Price","Type"]
["PCMFE-XeroxP-1000","PaperCut SFP Emb, Xerox Printer, EduGov, 1000+, per device",{"v":159,"d":"$159.00"},{"v":143,"d":"$143.00"},"One Time Fee"]
["PCMFE-XeroxP-1000","PaperCut SFP Emb, Xerox Printer, EduGov, 1000+, per device",{"v":159,"d":"$159.00"},{"v":143,"d":"$143.00"},"One Time Fee"]
["PCMFE-XeroxP-1000","PaperCut SFP Emb, Xerox Printer, EduGov, 1000+, per device",{"v":159,"d":"$159.00"},{"v":143,"d":"$143.00"},"One Time Fee"]
["PCMFE-XeroxP-1000","PaperCut SFP Emb, Xerox Printer, EduGov, 1000+, per device",{"v":159,"d":"$159.00"},{"v":143,"d":"$143.00"},"One Time Fee"]
["PCMFE-XeroxP-1000","PaperCut SFP Emb, Xerox Printer, EduGov, 1000+, per device",{"v":159,"d":"$159.00"},{"v":143,"d":"$143.00"},"One Time Fee"]
["PCMFE-XeroxP-1000","PaperCut SFP Emb, Xerox Printer, EduGov, 1000+, per device",{"v":159,"d":"$159.00"},{"v":143,"d":"$143.00"},"One Time Fee"]
["PCMFE-XeroxP-1000","PaperCut SFP Emb, Xerox Printer, EduGov, 1000+, per device",{"v":159,"d":"$159.00"},{"v":143,"d":"$143.00"},"One Time Fee"]
["PCMFE-XeroxP-1000","PaperCut SFP Emb, Xerox Printer, EduGov, 1000+, per device",{"v":159,"d":"$159.00"},{"v":143,"d":"$143.00"},"One Time Fee"]
["PCMFE-XeroxP-1000","PaperCut SFP Emb, Xerox Printer, EduGov, 1000+, per device",{"v":159,"d":"$159.00"},{"v":143,"d":"$143.00"},"One Time Fee"]
["PCMFE-XeroxP-1000","PaperCut SFP Emb, Xerox Printer, EduGov, 1000+, per device",{"v":159,"d":"$159.00"},{"v":143,"d":"$143.00"},"One Time Fee"]
["PCMFE-XeroxP-1000","PaperCut SFP Emb, Xerox Printer, EduGov, 1000+, per device",{"v":159,"d":"$159.00"},{"v":143,"d":"$143.00"},"One Time Fee"]
["PCMFE-XeroxP-1000","PaperCut SFP Emb, Xerox Printer, EduGov, 1000+, per device",{"v":159,"d":"$159.00"},{"v":143,"d":"$143.00"},"One Time Fee"]
["PCMFE-XeroxP-1000","PaperCut SFP Emb, Xerox Printer, EduGov, 1000+, per device",{"v":159,"d":"$159.00"},{"v":143,"d":"$143.00"},"One Time Fee"]
["PCMFE-XeroxP-1000","PaperCut SFP Emb, Xerox Printer, EduGov, 1000+, per device",{"v":159,"d":"$159.00"},{"v":143,"d":"$143.00"},"One Time Fee"]
["PCMFE-XeroxP-1000","PaperCut SFP Emb, Xerox Printer, EduGov, 1000+, per device",{"v":159,"d":"$159.00"},{"v":143,"d":"$143.00"},"One Time Fee"]
["PCMFE-XeroxP-1000","PaperCut SFP Emb, Xerox Printer, EduGov, 1000+, per device",{"v":62,"d":"$62.00"},{"v":56,"d":"$56.00"},"One Time Fee"]
["PCMFE-XeroxP-1000","PaperCut SFP Emb, Xerox Printer, EduGov, 1000+, per device",{"v":62,"d":"$62.00"},{"v":56,"d":"$56.00"},"One Time Fee"]
["PCMFE-XeroxP-1000","PaperCut SFP Emb, Xerox Printer, EduGov, 1000+, per device",{"v":62,"d":"$62.00"},{"v":56,"d":"$56.00"},"One Time Fee"]
["PCMFE-XeroxP-1000","PaperCut SFP Emb, Xerox Printer, EduGov, 1000+, per device",{"v":62,"d":"$62.00"},{"v":56,"d":"$56.00"},"One Time Fee"]
["PCMFE-XeroxP-1000","PaperCut SFP Emb, Xerox Printer, EduGov, 1000+, per device",{"v":62,"d":"$62.00"},{"v":56,"d":"$56.00"},"One Time Fee"]
["PCMFE-XeroxP-1000","PaperCut SFP Emb, Xerox Printer, EduGov, 1000+, per device",{"v":62,"d":"$62.00"},{"v":56,"d":"$56.00"},"One Time Fee"]
["PCMFE-XeroxP-1000","PaperCut SFP Emb, Xerox Printer, EduGov, 1000+, per device",{"v":62,"d":"$62.00"},{"v":56,"d":"$56.00"},"One Time Fee"]
[]
["ADDITIONAL LICENSE COMPONENTS"]
["Vendor Part #","Description","MSRP","NASPO Price","Type"]
["PCMF-ARS","PaperCut Additional Print Release Station (first license included)",{"v":159,"d":"$159.00"},{"v":143,"d":"$143.00"},"One Time Fee"]
["PCMF-JT-Mini","PaperCut Job Ticketing - Mini Print Room",{"v":2749,"d":"$2,749.00"},{"v":2474,"d":"$2,474.00"},"One Time Fee"]
["PCMF-JT-Room","PaperCut Job Ticketing - Print Room",{"v":5501,"d":"$5,501.00"},{"v":4951,"d":"$4,951.00"},"One Time Fee"]
["PCMF-JT-Fab","PaperCut Job Ticketing - FabLab",{"v":5501,"d":"$5,501.00"},{"v":4951,"d":"$4,951.00"},"One Time Fee"]
["PCMF-FR-HP","PaperCut HP Fast Release Embedded, 1-49, per device",{"v":191,"d":"$191.00"},{"v":172,"d":"$172.00"},"One Time Fee"]
["PCMF-FR-HP50","PaperCut HP Fast Release Embedded, 50+, per device",{"v":133,"d":"$133.00"},{"v":120,"d":"$120.00"},"One Time Fee"]
["PCMF-PD-VDI","PaperCut MF Print Deploy VDI Support only",{"v":5127,"d":"$5,127.00"},{"v":4614,"d":"$4,614.00"},"One Time Fee"]
["PCMF-PD-10","PaperCut MF Print Deploy 10 zone pack, VDI support not included",{"v":1282,"d":"$1,282.00"},{"v":1154,"d":"$1,154.00"},"One Time Fee"]
["PCMF-PD-100","PaperCut MF Print Deploy 100 zone pack, VDI support included",{"v":10254,"d":"$10,254.00"},{"v":9229,"d":"$9,229.00"},"One Time Fee"]
["PCMF-PD-UNL","PaperCut MF Print Deploy unlimited zone pack, VDI support included",{"v":35889,"d":"$35,889.00"},{"v":32300,"d":"$32,300.00"},"One Time Fee"]
["PCMF-OCRCL","Papercut MF Cloud Document Processing & OCR, 1-9, per device",{"v":75,"d":"$75.00"},{"v":68,"d":"$68.00"},"One Time Fee"]
["PCMF-OCRCL-10","Papercut MF Cloud Document Processing & OCR, 10-24, per device",{"v":49.5,"d":"$49.50"},{"v":45,"d":"$45.00"},"One Time Fee"]
["PCMF-OCRCL-25","Papercut MF Cloud Document Processing & OCR, 25-49, per device",{"v":42.5,"d":"$42.50"},{"v":38,"d":"$38.00"},"One Time Fee"]
["PCMF-OCRCL-50","Papercut MF Cloud Document Processing & OCR, 50-99, per device",{"v":36.5,"d":"$36.50"},{"v":33,"d":"$33.00"},"One Time Fee"]
["PCMF-OCRCL-100","Papercut MF Cloud Document Processing & OCR, 100-499, per device",{"v":30.5,"d":"$30.50"},{"v":27,"d":"$27.00"},"One Time Fee"]
["PCMF-OCRCL-500","Papercut MF Cloud Document Processing & OCR, 500-999, per device",{"v":29,"d":"$29.00"},{"v":26,"d":"$26.00"},"One Time Fee"]
["PCMF-OCRCL-1000","Papercut MF Cloud Document Processing & OCR, 1000+, per device",{"v":26.5,"d":"$26.50"},{"v":24,"d":"$24.00"},"One Time Fee"]
["PCMF-EPIC","PaperCut MF - Epic Print Connector, per server",{"v":2445,"d":"$2,445.00"},{"v":2201,"d":"$2,201.00"},"One Time Fee"]
["PCMF-Users-Conv","PaperCut unlimited user license conversion",{"v":245,"d":"$245.00"},{"v":221,"d":"$221.00"},"One Time Fee"]
[]
["ONLINE PAYMENT GATEWAY LICENSE"]
["Vendor Part #","Description","MSRP","NASPO Price","Type"]
["GW-Group1","PaperCut payment gateway group 1\n(Authorize.Net, My Student Acct, PayPal WPS/Payflow, RBS, Tx File)",{"v":605,"d":"$605.00"},{"v":545,"d":"$545.00"},"One Time Fee"]
["GW-Group2","PaperCut payment gateway group 2 \n(Barclaycard, CASHNet, CommWeb, CyberSource, Moneris, Nelnet, Nuvision, OPC, Realex, TouchNet Marketplace, TouchNet OneCard)",{"v":917,"d":"$917.00"},{"$f":"ROUND(C471*(1-0.1),0)","v":{"v":825,"d":"$825.00"}},"One Time Fee"]
["GW-Group3","PaperCut payment gateway group 3\n(Blackboard, CardSmith, CBORD, Heartland)",{"v":3665,"d":"$3,665.00"},{"$f":"ROUND(C472*(1-0.1),0)","v":{"v":3299,"d":"$3,299.00"}},"One Time Fee"]
[]
["CONNECTION LICENSES"]
["Vendor Part #","Description","MSRP","NASPO Price","Type"]
["PCMF-StdConn","PaperCut standard connector license \n(BioStore, Fast Release)",{"v":46,"d":"$46.00"},{"v":41,"d":"$41.00"},"One Time Fee"]
["PCMF-AdvConn","PaperCut advanced connector license \n(Boscop, Cartadis, Jamex, m3i, NetZTouch)",{"v":91,"d":"$91.00"},{"v":82,"d":"$82.00"},"One Time Fee"]
["PCMF-KioskConn","PaperCut kiosk connector license\n(Pay Station, Value Loader)",{"v":342,"d":"$342.00"},{"v":308,"d":"$308.00"},"One Time Fee"]
["PCMF-FAX","PaperCut MF Fax Connectors, 10 device connection minimum",{"$f":"C480*10","v":{"v":600,"d":"$600.00"}},{"v":540,"d":"$540.00"},"One Time Fee"]
["PCMF-FAX-10","PaperCut MF Fax Connectors, 11-49, per device",{"v":60,"d":"$60.00"},{"v":54,"d":"$54.00"},"One Time Fee"]
["PCMF-FAX-50","PaperCut MF Fax Connectors, 50-249, per device",{"v":36,"d":"$36.00"},{"v":32,"d":"$32.00"},"One Time Fee"]
["PCMF-FAX-250","PaperCut MF Fax Connectors, 250-399, per device",{"v":18,"d":"$18.00"},{"v":16,"d":"$16.00"},"One Time Fee"]
["PCMF-FAX-400","PaperCut MF Fax Connectors, 400+, per device",{"v":15,"d":"$15.00"},{"$f":"ROUND(C483*(1-0.1),0)","v":{"v":14,"d":"$14.00"}},"One Time Fee"]
["ADDFC-10","Additional Fax Connector Addon packs, 10 device pack",{"v":150,"d":"$150.00"},{"$f":"ROUND(C484*(1-0.1),0)","v":{"v":135,"d":"$135.00"}},"One Time Fee"]
["ADDFC-100","Additional Fax Connector Addon packs, 100 device pack",{"v":1000,"d":"$1,000.00"},{"$f":"ROUND(C485*(1-0.1),0)","v":{"v":900,"d":"$900.00"}},"One Time Fee"]
["ADDFC-UNL","Additional Fax Connector Addon packs, Unlimited device pack\n(EtherFax, FaxCore, InterFax)",{"v":3500,"d":"$3,500.00"},{"$f":"ROUND(C486*(1-0.1),0)","v":{"v":3150,"d":"$3,150.00"}},"One Time Fee"]
[]
["Percentages based off total retail value of software"]
["Vendor Part #","Description","MSRP","NASPO Price","Type"]
["Annual Software Maintenance"]
["AMS-1","ACDI annual software maintenance and support, first year required",{"v":0.2,"d":"$0.20"},{"$f":"ROUND(C491*(1-0.1),2)","v":{"v":0.18,"d":"$0.18"}},"One Time Fee"]
["AMS-2","ACDI annual software maintenance and support, 2 years",{"v":0.4,"d":"$0.40"},{"$f":"ROUND(C492*(1-0.1),2)","v":{"v":0.36,"d":"$0.36"}},"One Time Fee"]
["AMS-3","ACDI annual software maintenance and support, 3 years",{"v":0.45,"d":"$0.45"},{"v":0.41,"d":"$0.41"},"One Time Fee"]
["AMS-4","ACDI annual software maintenance and support, 4 years",{"v":0.6,"d":"$0.60"},{"v":0.54,"d":"$0.54"},"One Time Fee"]
["AMS-5","ACDI annual software maintenance and support, 5 years",{"v":0.75,"d":"$0.75"},{"v":0.68,"d":"$0.68"},"One Time Fee"]
["Monthly Software Maintenance"]
["MMS-1","ACDI monthly software maintenance and support, 1 month",{"v":0.02,"d":"$0.02"},{"$f":"ROUND(C497*(1-0.5),2)","v":{"v":0.01,"d":"$0.01"}},"One Time Fee"]
["MMS-2","ACDI monthly software maintenance and support, 2 months",{"v":0.04,"d":"$0.04"},{"$f":"ROUNDDOWN(C498*(1-0.05),2)","v":{"v":0.03,"d":"$0.03"}},"One Time Fee"]
["MMS-3","ACDI monthly software maintenance and support, 3 months ",{"v":0.06,"d":"$0.06"},{"$f":"ROUNDDOWN(C499*(1-0.05),2)","v":{"v":0.05,"d":"$0.05"}},"One Time Fee"]
["MMS-4","ACDI monthly software maintenance and support, 4 months ",{"v":0.08,"d":"$0.08"},{"v":0.07,"d":"$0.07"},"One Time Fee"]
["MMS-5","ACDI monthly software maintenance and support, 5 months ",{"v":0.1,"d":"$0.10"},{"v":0.09,"d":"$0.09"},"One Time Fee"]
["MMS-6","ACDI monthly software maintenance and support, 6 months ",{"v":0.12,"d":"$0.12"},{"v":0.11,"d":"$0.11"},"One Time Fee"]
["MMS-7","ACDI monthly software maintenance and support, 7 months",{"v":0.14,"d":"$0.14"},{"$f":"ROUNDDOWN(C503*(1-0.05),2)","v":{"v":0.13,"d":"$0.13"}},"One Time Fee"]
["MMS-8","ACDI monthly software maintenance and support, 8 months",{"v":0.16,"d":"$0.16"},{"$f":"ROUND(C504*(1-0.05),2)","v":{"v":0.15,"d":"$0.15"}},"One Time Fee"]
["MMS-9","ACDI monthly software maintenance and support, 9 months",{"v":0.17,"d":"$0.17"},{"$f":"ROUNDDOWN(C505*(1-0.05),2)","v":{"v":0.16,"d":"$0.16"}},"One Time Fee"]
["MMS-10","ACDI monthly software maintenance and support, 10 months",{"v":0.18,"d":"$0.18"},{"$f":"ROUND(C506*(1-0.05),2)","v":{"v":0.17,"d":"$0.17"}},"One Time Fee"]
["MMS-11","ACDI monthly software maintenance and support, 11 months",{"v":0.19,"d":"$0.19"},{"$f":"ROUND(C507*(1-0.05),2)","v":{"v":0.18,"d":"$0.18"}},"One Time Fee"]
["Advanced Annual Software Maintenance"]
["AMSPlus-1","ACDI advanced software maintenance and support, first year required",{"v":0.3,"d":"$0.30"},{"$f":"ROUND(C509*(1-0.05),2)","v":{"v":0.29,"d":"$0.29"}},"One Time Fee"]
["AMSPlus-2","ACDI advanced software maintenance and support, 2 years",{"v":0.6,"d":"$0.60"},{"$f":"ROUND(C510*(1-0.05),2)","v":{"v":0.57,"d":"$0.57"}},"One Time Fee"]
["AMSPlus-3","ACDI advanced software maintenance and support, 3 years",{"v":0.75,"d":"$0.75"},{"v":0.68,"d":"$0.68"},"One Time Fee"]
["AMSPlus-4","ACDI advanced software maintenance and support, 4 years",{"v":1,"d":"$1.00"},{"$f":"ROUND(C512*(1-0.05),2)","v":{"v":0.95,"d":"$0.95"}},"One Time Fee"]
["AMSPlus-5","ACDI advanced software maintenance and support, 5 years",{"v":1.25,"d":"$1.25"},{"$f":"ROUND(C513*(1-0.05),2)","v":{"v":1.19,"d":"$1.19"}},"One Time Fee"]
["Advanced Monthly Software Maintenance"]
["MMSPlus-1","ACDI advanced software maintenance and support, 1 month",{"v":0.03,"d":"$0.03"},{"$f":"ROUNDDOWN(C515*(1-0.05),2)","v":{"v":0.02,"d":"$0.02"}},"One Time Fee"]
["MMSPlus-2","ACDI advanced software maintenance and support, 2 months",{"v":0.05,"d":"$0.05"},{"$f":"ROUNDDOWN(C516*(1-0.1),2)","v":{"v":0.04,"d":"$0.04"}},"One Time Fee"]
["MMSPlus-3","ACDI advanced software maintenance and support, 3 months ",{"v":0.08,"d":"$0.08"},{"$f":"ROUND(C517*(1-0.5),2)","v":{"v":0.04,"d":"$0.04"}},"One Time Fee"]
["MMSPlus-4","ACDI advanced software maintenance and support, 4 months ",{"v":0.1,"d":"$0.10"},{"v":0.09,"d":"$0.09"},"One Time Fee"]
["MMSPlus-5","ACDI advanced software maintenance and support, 5 months ",{"v":0.13,"d":"$0.13"},{"v":0.12,"d":"$0.12"},"One Time Fee"]
["MMSPlus-6","ACDI advanced software maintenance and support, 6 months ",{"v":0.15,"d":"$0.15"},{"v":0.14,"d":"$0.14"},"One Time Fee"]
["MMSPlus-7","ACDI advanced software maintenance and support, 7 months",{"v":0.18,"d":"$0.18"},{"$f":"ROUND(C521*(1-0.05),2)","v":{"v":0.17,"d":"$0.17"}},"One Time Fee"]
["MMSPlus-8","ACDI advanced software maintenance and support, 8 months",{"v":0.2,"d":"$0.20"},{"$f":"ROUND(C522*(1-0.05),2)","v":{"v":0.19,"d":"$0.19"}},"One Time Fee"]
["MMSPlus-9","ACDI advanced software maintenance and support, 9 months",{"v":0.23,"d":"$0.23"},{"$f":"ROUND(C523*(1-0.05),2)","v":{"v":0.22,"d":"$0.22"}},"One Time Fee"]
["MMSPlus-10","ACDI advanced software maintenance and support, 10 months",{"v":0.25,"d":"$0.25"},{"$f":"ROUND(C524*(1-0.05),2)","v":{"v":0.24,"d":"$0.24"}},"One Time Fee"]
["MMSPlus-11","ACDI advanced software maintenance and support, 11 months",{"v":0.28,"d":"$0.28"},{"$f":"ROUND(C525*(1-0.05),2)","v":{"v":0.27,"d":"$0.27"}},"One Time Fee"]
["24/7 Annual M&S"]
["AMSPLUS24-1","ACDI 24/7 advanced software maintenance and support, 1 year",{"v":0.54,"d":"$0.54"},{"$f":"ROUND(C527*(1-0.1),1)","v":{"v":0.5,"d":"$0.50"}},"One Time Fee"]
["AMSPLUS24-2","ACDI 24/7 advanced software maintenance and support, 2 years",{"v":1.08,"d":"$1.08"},{"$f":"ROUND(C528*(1-0.05),1)","v":{"v":1,"d":"$1.00"}},"One Time Fee"]
["AMSPLUS24-3","ACDI 24/7 advanced software maintenance and support, 3 years",{"v":1.35,"d":"$1.35"},{"$f":"ROUND(C529*(1-0.05),1)","v":{"v":1.3,"d":"$1.30"}},"One Time Fee"]
["AMSPLUS24-4","ACDI 24/7 advanced software maintenance and support, 4 years",{"v":1.8,"d":"$1.80"},{"$f":"ROUND(C530*(1-0.05),1)","v":{"v":1.7,"d":"$1.70"}},"One Time Fee"]
["AMSPLUS24-5","ACDI 24/7 advanced software maintenance and support, 5 years",{"v":2.25,"d":"$2.25"},{"$f":"ROUND(C531*(1-0.05),1)","v":{"v":2.1,"d":"$2.10"}},"One Time Fee"]
["24/7 Monthly M&S"]
["MMSPLUS24-1","ACDI 24/7 advanced software maintenance and support, 1 month",{"v":0.05,"d":"$0.05"},{"$f":"ROUNDDOWN(C533*(1-0.05),2)","v":{"v":0.04,"d":"$0.04"}},"One Time Fee"]
["MMSPLUS24-2","ACDI 24/7 advanced software maintenance and support, 2 months",{"v":0.09,"d":"$0.09"},{"$f":"ROUNDDOWN(C534*(1-0.05),2)","v":{"v":0.08,"d":"$0.08"}},"One Time Fee"]
["MMSPLUS24-3","ACDI 24/7 advanced software maintenance and support, 3 months",{"v":0.14,"d":"$0.14"},{"$f":"ROUND(C535*(1-0.1),2)","v":{"v":0.13,"d":"$0.13"}},"One Time Fee"]
["MMSPLUS24-4","ACDI 24/7 advanced software maintenance and support, 4 months",{"v":0.18,"d":"$0.18"},{"$f":"ROUND(C536*(1-0.05),2)","v":{"v":0.17,"d":"$0.17"}},"One Time Fee"]
["MMSPLUS24-5","ACDI 24/7 advanced software maintenance and support, 5 months",{"v":0.23,"d":"$0.23"},{"v":0.22,"d":"$0.22"},"One Time Fee"]
["MMSPLUS24-6","ACDI 24/7 advanced software maintenance and support, 6 months",{"v":0.27,"d":"$0.27"},{"v":0.26,"d":"$0.26"},"One Time Fee"]
["MMSPLUS24-7","ACDI 24/7 advanced software maintenance and support, 7 months",{"v":0.32,"d":"$0.32"},{"v":0.3,"d":"$0.30"},"One Time Fee"]
["MMSPLUS24-8","ACDI 24/7 advanced software maintenance and support, 8 months",{"v":0.36,"d":"$0.36"},{"v":0.34,"d":"$0.34"},"One Time Fee"]
["MMSPLUS24-9","ACDI 24/7 advanced software maintenance and support, 9 months",{"v":0.4,"d":"$0.40"},{"v":0.38,"d":"$0.38"},"One Time Fee"]
["MMSPLUS24-10","ACDI 24/7 advanced software maintenance and support, 10 months",{"v":0.45,"d":"$0.45"},{"v":0.43,"d":"$0.43"},"One Time Fee"]
["MMSPLUS24-11","ACDI 24/7 advanced software maintenance and support, 11 months",{"v":0.5,"d":"$0.50"},{"v":0.48,"d":"$0.48"},"One Time Fee"]
[]
["REMOTE INSTALLATION/TRAINING"]
["Vendor Part #","Description","MSRP","NASPO Price","Type"]
["PCRemote-emb","Remote Installation fee per embedded, 1-24 license or devices",{"v":150,"d":"$150.00"},{"$f":"ROUND(C547*(1-0.1),0)","v":{"v":135,"d":"$135.00"}},"One Time Fee"]
["PCRemote-emb-25","Remote Installation fee per embedded, 25-99 license or devices",{"v":106,"d":"$106.00"},{"v":95,"d":"$95.00"},"One Time Fee"]
["PCRemote-emb-100","Remote Installation fee per embedded, 100-499 license or devices",{"v":78,"d":"$78.00"},{"v":70,"d":"$70.00"},"One Time Fee"]
["PCRemote-emb-500","Remote Installation fee per embedded, 500-999 license or devices",{"v":60,"d":"$60.00"},{"v":54,"d":"$54.00"},"One Time Fee"]
["PCRemote-emb-QTY","Remote Installation fee per embedded, 1000+ license or devices",{"v":46,"d":"$46.00"},{"v":41,"d":"$41.00"},"One Time Fee"]
["PCRemote-Server","Remote Installation fee per server PaperCut software, includes mobility",{"v":825,"d":"$825.00"},{"v":743,"d":"$743.00"},"One Time Fee"]
["PCRemote-AdvServer","Advanced remote installation fee per server with PaperCut software",{"v":1500,"d":"$1,500.00"},{"v":1350,"d":"$1,350.00"},"One Time Fee"]
["PCRemote-PEP","Remote Installation Configuration of Print Enablement Pack",{"v":675,"d":"$675.00"},{"v":608,"d":"$608.00"},"One Time Fee"]
["PCRemote-GW","Remote Installation fee per Payment Gateway",{"v":475,"d":"$475.00"},{"v":428,"d":"$428.00"},"One Time Fee"]
["PCRemote-Room","Remote Installation fee per job ticketing room",{"v":1050,"d":"$1,050.00"},{"v":945,"d":"$945.00"},"One Time Fee"]
["PCR-MPIC","Mobile Print Installation/Configuration",{"v":675,"d":"$675.00"},{"v":608,"d":"$608.00"},"One Time Fee"]
["RemoteServer-Mig","Remote Server Migration",{"v":995,"d":"$995.00"},{"v":896,"d":"$896.00"},"One Time Fee"]
["ACDI-PRINTQINSTALL","Remote installation/configuration of print driver, up to 10 printers",{"v":210,"d":"$210.00"},{"v":189,"d":"$189.00"},"One Time Fee"]
["ACDI-PS","ACDI Remote Professional Services (hourly)",{"v":210,"d":"$210.00"},{"v":189,"d":"$189.00"},"Hourly "]
["RemoteInstall-AHA","ACDI Remote After Hours Assistance (hourly)",{"v":420,"d":"$420.00"},{"v":378,"d":"$378.00"},"Hourly"]
["ACDI-CONC-PRE","ACDI Presale Concierge Services, up to 500 devices",{"v":7250,"d":"$7,250.00"},{"v":6525,"d":"$6,525.00"},"One Time Fee"]
["ACDI-CONC-PRE5","ACDI Presale Concierge Services, 501+ devices",{"v":10850,"d":"$10,850.00"},{"v":9765,"d":"$9,765.00"},"One Time Fee"]
["ACDI-CONC-POST","ACDI Post Sale Concierge Services",{"v":0.48,"d":"$0.48"},{"v":0.43,"d":"$0.43"},"One Time Fee"]
["PCRemote-HAServer","High Availability Remote Server configuration with PaperCut software",{"v":1995,"d":"$1,995.00"},{"v":1796,"d":"$1,796.00"},"One Time Fee"]
["RemoteServer-AHMig","Remote Server Migration After Hours",{"v":1800,"d":"$1,800.00"},{"v":1620,"d":"$1,620.00"},"One Time Fee"]
["ACDI-GuestPrint","Automated Guest User Print and Email to Print Workflow Implementation",{"v":1150,"d":"$1,150.00"},{"v":1035,"d":"$1,035.00"},"One Time Fee"]
["PCRemote-FAX","Remote Installation for up to 10 advanced scan fax connectors",{"v":265,"d":"$265.00"},{"v":239,"d":"$239.00"},"One Time Fee"]
["Remote-COINOP","Remote configuration of RSX or EX ACDI Coin-op series, per device",{"v":265,"d":"$265.00"},{"v":239,"d":"$239.00"},"One Time Fee"]
["PCRemote-MEAP","Remote installation/configuration for Canon MEAP license, per device",{"v":65,"d":"$65.00"},{"v":59,"d":"$59.00"},"One Time Fee"]
["ACDI-Training","Customer Training from ACDI at ACDI Headquarters, per person",{"v":1600,"d":"$1,600.00"},{"v":1440,"d":"$1,440.00"},"One Time Fee"]
["ACDI-AdvTraining","Customer Advanced Training from ACDI at ACDI Headquarters, per person",{"v":2100,"d":"$2,100.00"},{"v":1890,"d":"$1,890.00"},"One Time Fee"]
[]
["PAPERCUT GROWS\n"]
["Vendor Part #","Description","MSRP","NASPO Price","Type"]
["PCMF-GROW-1Y","PaperCut Grows, per device, 1 year",{"v":20.7,"d":"$20.70"},{"$f":"ROUND(C576*(1-0.05),0)","v":{"v":20,"d":"$20.00"}},"One Time Fee"]
["PCMF-GROW-2Y","PaperCut Grows, per device, 2 year",{"v":41.4,"d":"$41.40"},{"$f":"ROUND(C577*(1-0.05),0)","v":{"v":39,"d":"$39.00"}},"One Time Fee"]
["PCMF-GROW-3Y","PaperCut Grows, per device, 3 year",{"v":62.2,"d":"$62.20"},{"$f":"ROUND(C578*(1-0.05),0)","v":{"v":59,"d":"$59.00"}},"One Time Fee"]
["PCMF-GROW-4Y","PaperCut Grows, per device, 4 year",{"v":82.9,"d":"$82.90"},{"$f":"ROUND(C579*(1-0.05),0)","v":{"v":79,"d":"$79.00"}},"One Time Fee"]
["PCMF-GROW-5Y","PaperCut Grows, per device, 5 year",{"v":103.6,"d":"$103.60"},{"$f":"ROUND(C580*(1-0.05),0)","v":{"v":98,"d":"$98.00"}},"One Time Fee"]
["PCMF-GROW-1M","PaperCut Grows, per device, 1 month",{"v":1.7,"d":"$1.70"},{"$f":"ROUND(C581*(1-0.05),2)","v":{"v":1.62,"d":"$1.62"}},"One Time Fee"]
["PCMF-GROW-100","PaperCut Grows, 100 Tree Pack",{"v":172.7,"d":"$172.70"},{"$f":"ROUND(C582*(1-0.05),0)","v":{"v":164,"d":"$164.00"}},"One Time Fee"]

{"sheet":"PaperCut Integrations","index":3,"n_rows":61,"n_cols":5,"rows_kept":61,"merged":[[1,0,1,4],[2,0,2,4],[4,0,5,4],[6,0,6,4]]}
["Return To Table of Contents"]
["PaperCut Integrations"]
[]
[]
["PaperCut has fostered an ecosystem of third-party solutions, this list includes some of the tools their partners have created such as integrations with payment gateways like PayPal practice Management systems such as ProLaw, accounting systems like Quickbooks and others."]
[]
[]
[]
["PAPERCUT INTEGRATIONS"]
["Vendor Part #","Description","MSRP","NASPO Price","Type"]
["Tier 1:"]
["PCLaw-Int","PCLaw integration with PaperCut",{"v":2500,"d":"$2,500.00"},{"$f":"ROUND(C12*(1-0.1),0)","v":{"v":2250,"d":"$2,250.00"}},"One Time Fee"]
["PCCosmolex-Int","Cosmolex integration with PaperCut",{"v":2500,"d":"$2,500.00"},{"v":2250,"d":"$2,250.00"},"One Time Fee"]
["PCJuris-Int","Juris integration with PaperCut",{"v":2500,"d":"$2,500.00"},{"v":2250,"d":"$2,250.00"},"One Time Fee"]
["PCESILaw-Int","ESI Law integration with PaperCut",{"v":2500,"d":"$2,500.00"},{"v":2250,"d":"$2,250.00"},"One Time Fee"]
["PCProLaw-Int","ProLaw integration with PaperCut",{"v":2500,"d":"$2,500.00"},{"v":2250,"d":"$2,250.00"},"One Time Fee"]
["PCTSlips-Int","TimeSlips integration with PaperCut",{"v":2500,"d":"$2,500.00"},{"v":2250,"d":"$2,250.00"},"One Time Fee"]
["PCTabs3-Int","Tabs3 integration with PaperCut",{"v":2500,"d":"$2,500.00"},{"v":2250,"d":"$2,250.00"},"One Time Fee"]
["PCQuickBks-Int","Quickbooks on prem integration with PaperCut",{"v":2500,"d":"$2,500.00"},{"v":2250,"d":"$2,250.00"},"One Time Fee"]
["PCQuickBksOnline-Int","Quickbooks online integration with PaperCut",{"v":2500,"d":"$2,500.00"},{"v":2250,"d":"$2,250.00"},"One Time Fee"]
["PCCaretLegal-Int","Caret Legal (formerly Zola Suite) Integration with PaperCut",{"v":2500,"d":"$2,500.00"},{"v":2250,"d":"$2,250.00"},"One Time Fee"]
["PCMaitre-Int","Maitre Integration with PaperCut",{"v":2500,"d":"$2,500.00"},{"v":2250,"d":"$2,250.00"},"One Time Fee"]
["PCClio-Int","Clio integration with PaperCut",{"v":2500,"d":"$2,500.00"},{"v":2250,"d":"$2,250.00"},"One Time Fee"]
["PCSoluno-Int","Soluno Integration with PaperCut",{"v":2500,"d":"$2,500.00"},{"v":2250,"d":"$2,250.00"},"One Time Fee"]
["PCOfficeRND-Int","OfficeRND Integration with Papercut",{"v":2500,"d":"$2,500.00"},{"v":2250,"d":"$2,250.00"},"One Time Fee"]
["PCNexudus-Int","Nexudus Integration with Papercut",{"v":2500,"d":"$2,500.00"},{"v":2250,"d":"$2,250.00"},"One Time Fee"]
["PCTier1-Int","Tier 1 system integration with PaperCut",{"v":2500,"d":"$2,500.00"},{"v":2250,"d":"$2,250.00"},"One Time Fee"]
["Tier 2:"]
["PCAdvantageLaw-Int","Advantage Law integration with PaperCut",{"v":3650,"d":"$3,650.00"},{"v":3285,"d":"$3,285.00"},"One Time Fee"]
["PCAjera-Int","Ajera integration with PaperCut",{"v":3650,"d":"$3,650.00"},{"v":3285,"d":"$3,285.00"},"One Time Fee"]
["PCPerLaw-Int","Perfect Law integration with PaperCut",{"v":3650,"d":"$3,650.00"},{"v":3285,"d":"$3,285.00"},"One Time Fee"]
["PCElite3E-Int","Elite 3E integration with PaperCut",{"v":3650,"d":"$3,650.00"},{"v":3285,"d":"$3,285.00"},"One Time Fee"]
["PCEliteE-Int","Elite Enterprise integration with PaperCut",{"v":3650,"d":"$3,650.00"},{"v":3285,"d":"$3,285.00"},"One Time Fee"]
["PCAderant-Int","Aderant integration with PaperCut",{"v":3650,"d":"$3,650.00"},{"v":3285,"d":"$3,285.00"},"One Time Fee"]
["PCOrion-Int","Orion Billing System integration with PaperCut",{"v":3650,"d":"$3,650.00"},{"v":3285,"d":"$3,285.00"},"One Time Fee"]
["PCCenterbase-Int","Centerbase integration with PaperCut",{"v":3650,"d":"$3,650.00"},{"v":3285,"d":"$3,285.00"},"One Time Fee"]
["PCJurisConcepts-Int","Juris Concepts integration with PaperCut",{"v":3650,"d":"$3,650.00"},{"v":3285,"d":"$3,285.00"},"One Time Fee"]
["PCNeos-Int","Neos integration with PaperCut",{"v":3650,"d":"$3,650.00"},{"v":3285,"d":"$3,285.00"},"One Time Fee"]
["PCAbacus-Int","Abacus Integration with Papercut",{"v":3650,"d":"$3,650.00"},{"v":3285,"d":"$3,285.00"},"One Time Fee"]
["PCSmartAdvocate-Int","Smart Advocate Integration with Papercut",{"v":3650,"d":"$3,650.00"},{"v":3285,"d":"$3,285.00"},"One Time Fee"]
["PCTier2-Int","Tier 2 system integration with PaperCut",{"v":3650,"d":"$3,650.00"},{"v":3285,"d":"$3,285.00"},"One Time Fee"]
["Tier 3:"]
["PCGhostPractice-Int","Ghost Practice Integartion with PaperCut",{"v":4750,"d":"$4,750.00"},{"$f":"ROUND(C43*(1-0.1),0)","v":{"v":4275,"d":"$4,275.00"}},"One Time Fee"]
["PCBann-Int","Banner Accounting integration with PaperCut",{"v":4750,"d":"$4,750.00"},{"$f":"ROUND(C44*(1-0.1),0)","v":{"v":4275,"d":"$4,275.00"}},"One Time Fee"]
["PCFilevine-Int","Filevine Integration with PaperCut",{"v":4750,"d":"$4,750.00"},{"$f":"ROUND(C45*(1-0.1),0)","v":{"v":4275,"d":"$4,275.00"}},"One Time Fee"]
["PCKohaLib-Int","Koha Library Systems Intgration with Papercut",{"v":4750,"d":"$4,750.00"},{"$f":"ROUND(C46*(1-0.1),0)","v":{"v":4275,"d":"$4,275.00"}},"One Time Fee"]
["PCTier3-Int","Tier 3 system integration with PaperCut",{"v":4750,"d":"$4,750.00"},{"$f":"ROUND(C47*(1-0.1),0)","v":{"v":4275,"d":"$4,275.00"}},"One Time Fee"]
["Tier 4:"]
["PCAtrium-GW","Atrium Payment Gateway with PaperCut",{"v":5800,"d":"$5,800.00"},{"$f":"ROUND(C49*(1-0.1),0)","v":{"v":5220,"d":"$5,220.00"}},"One Time Fee"]
[]
["PAPERCUT/CILANTRO INTEGRATIONS- ANNUAL SUBSCRIPTIONS"]
["Vendor Part #","Description","MSRP","NASPO Price","Type"]
["PCCilantro-Int","Cilantro Category 1 Integration with Papercut, 1-20 devices, per year\nCategory 1 Includes: PracticePanther, Smokeball, ActionStep, Lexis Affinity, InfinityLaw, EvolveGo, Practive Evolve, Xero, Cobot and Operate",{"v":1250,"d":"$1,250.00"},{"$f":"ROUND(C53*(1-0.1),0)","v":{"v":1125,"d":"$1,125.00"}},"Subscription"]
["PCCilantro20-Int","Cilantro Category 1 Integration with Papercut, 21-50 devices, per year\nCategory 1 Includes: PracticePanther, Smokeball, ActionStep, Lexis Affinity, InfinityLaw, EvolveGo, Practive Evolve, Xero, Cobot and Operate",{"v":1750,"d":"$1,750.00"},{"v":1575,"d":"$1,575.00"},"Subscription"]
["PCLEAPCloud-Int","LEAP Cloud Integration with PaperCut, 1-10 users, per year",{"v":1700,"d":"$1,700.00"},{"v":1530,"d":"$1,530.00"},"Subscription"]
["PCLEAPCloud50-Int","LEAP Cloud Integration with PaperCut, 11-50 users, per year",{"v":2850,"d":"$2,850.00"},{"v":2565,"d":"$2,565.00"},"Subscription"]
["PCLEAPCloud100-Int","LEAP Cloud Integration with PaperCut, 51-100 users, per year",{"v":3400,"d":"$3,400.00"},{"v":3060,"d":"$3,060.00"},"Subscription"]
["PCLEAPCloudPlus-Int","LEAP Cloud Integration with PaperCut, 101+ users, per year",{"v":4550,"d":"$4,550.00"},{"v":4095,"d":"$4,095.00"},"Subscription"]
["PCiManage-Int","iManage Integration with PaperCut, 1-20 devices, per year",{"v":1600,"d":"$1,600.00"},{"v":1440,"d":"$1,440.00"},"Subscription"]
["PCiManage20-Int","iManage Integration with PaperCut, 21-50 devices, per year",{"v":2250,"d":"$2,250.00"},{"v":2025,"d":"$2,025.00"},"Subscription"]
["PCiManage50-Int","iManage Integration with PaperCut, 51+ devices, per year",{"v":4500,"d":"$4,500.00"},{"v":4050,"d":"$4,050.00"},"Subscription"]

{"sheet":"PaperCut MFS","index":4,"n_rows":441,"n_cols":5,"rows_kept":441,"merged":[[1,0,1,4],[2,0,2,4],[4,0,5,4],[7,0,7,4]]}
["Return To Table of Contents"]
["PaperCut MF Subscriptions"]
[]
[]
["PaperCut MF is a comprehensive print management system designed to seamlessly monitor and control your printing costs with easy to use administrative and user tools that can be securely accessed from anywhere on the network though a web browser."]
[]
[]
[]
[]
["PAPERCUT MF COMMERCIAL - SUBSCRIPTION "]
["Vendor Part #","Description","MSRP","NASPO Price","Type"]
["PaperCut Subscription Multifunction Commercial Device Licenses"]
["PaperCut MF Commercial Device Licenses 1-9 Devices (Price per Device)"]
["PCS-MFC-1Y","PaperCut Subscription, MFD, Comm 1-9, per device, 1 year",{"v":252,"d":"$252.00"},{"$f":"ROUND(C14*(1-0.1),0)","v":{"v":227,"d":"$227.00"}},"Subscription"]
["PCS-MFC-2Y","PaperCut Subscription, MFD, Comm 1-9, per device, 2 years",{"v":504,"d":"$504.00"},{"v":454,"d":"$454.00"},"Subscription"]
["PCS-MFC-3Y","PaperCut Subscription, MFD, Comm 1-9, per device, 3 years",{"v":718,"d":"$718.00"},{"v":646,"d":"$646.00"},"Subscription"]
["PCS-MFC-4Y","PaperCut Subscription, MFD, Comm 1-9, per device, 4 years",{"v":958,"d":"$958.00"},{"v":862,"d":"$862.00"},"Subscription"]
["PCS-MFC-5Y","PaperCut Subscription, MFD, Comm 1-9, per device, 5 years",{"v":1096,"d":"$1,096.00"},{"v":986,"d":"$986.00"},"Subscription"]
["PCS-MFC-1M","PaperCut Subscription, MFD, Comm 1-9, per device, monthly",{"v":21,"d":"$21.00"},{"$f":"ROUND(C19*(1-0.1),2)","v":{"v":18.9,"d":"$18.90"}},"Subscription"]
["PaperCut MF Commercial Device Licenses 10-24 Devices (Price per Device)"]
["PCS-MFC10-1Y","PaperCut Subscription, MFD, Comm 10-24, per device, 1 year",{"v":221,"d":"$221.00"},{"v":199,"d":"$199.00"},"Subscription"]
["PCS-MFC10-2Y","PaperCut Subscription, MFD, Comm 10-24, per device, 2 years",{"v":442,"d":"$442.00"},{"v":398,"d":"$398.00"},"Subscription"]
["PCS-MFC10-3Y","PaperCut Subscription, MFD, Comm 10-24, per device, 3 years",{"v":630,"d":"$630.00"},{"v":567,"d":"$567.00"},"Subscription"]
["PCS-MFC10-4Y","PaperCut Subscription, MFD, Comm 10-24, per device, 4 years",{"v":840,"d":"$840.00"},{"v":756,"d":"$756.00"},"Subscription"]
["PCS-MFC10-5Y","PaperCut Subscription, MFD, Comm 10-24, per device, 5 years",{"v":961,"d":"$961.00"},{"v":865,"d":"$865.00"},"Subscription"]
["PCS-MFC10-1M","PaperCut Subscription, MFD, Comm 10-24, per device, monthly",{"v":18.5,"d":"$18.50"},{"$f":"ROUND(C26*(1-0.1),2)","v":{"v":16.65,"d":"$16.65"}},"Subscription"]
["PaperCut MF Commercial Device Licenses 24-49 Devices (Price per Device)"]
["PCS-MFC25-1Y","PaperCut Subscription, MFD, Comm 25-49, per device, 1 year",{"v":193,"d":"$193.00"},{"$f":"ROUND(C28*(1-0.1),2)","v":{"v":173.7,"d":"$173.70"}},"Subscription"]
["PCS-MFC25-2Y","PaperCut Subscription, MFD, Comm 25-49, per device, 2 years",{"v":386,"d":"$386.00"},{"v":347.4,"d":"$347.40"},"Subscription"]
["PCS-MFC25-3Y","PaperCut Subscription, MFD, Comm 25-49, per device, 3 years",{"v":550,"d":"$550.00"},{"v":495,"d":"$495.00"},"Subscription"]
["PCS-MFC25-4Y","PaperCut Subscription, MFD, Comm 25-49, per device, 4 years",{"v":733,"d":"$733.00"},{"v":659.7,"d":"$659.70"},"Subscription"]
["PCS-MFC25-5Y","PaperCut Subscription, MFD, Comm 25-49, per device, 5 years",{"v":840,"d":"$840.00"},{"v":756,"d":"$756.00"},"Subscription"]
["PCS-MFC25-1M","PaperCut Subscription, MFD, Comm 25-49, per device, monthly",{"v":16,"d":"$16.00"},{"v":14.4,"d":"$14.40"},"Subscription"]
["PaperCut MF Commercial Device Licenses 50-99 Devices (Price per Device)"]
["PCS-MFC50-1Y","PaperCut Subscription, MFD, Comm 50-99, per device, 1 year",{"v":163,"d":"$163.00"},{"v":147,"d":"$147.00"},"Subscription"]
["PCS-MFC50-2Y","PaperCut Subscription, MFD, Comm 50-99, per device, 2 years",{"v":326,"d":"$326.00"},{"v":293,"d":"$293.00"},"Subscription"]
["PCS-MFC50-3Y","PaperCut Subscription, MFD, Comm 50-99, per device, 3 years",{"v":465,"d":"$465.00"},{"v":419,"d":"$419.00"},"Subscription"]
["PCS-MFC50-4Y","PaperCut Subscription, MFD, Comm 50-99, per device, 4 years",{"v":619,"d":"$619.00"},{"v":557,"d":"$557.00"},"Subscription"]
["PCS-MFC50-5Y","PaperCut Subscription, MFD, Comm 50-99, per device, 5 years",{"v":709,"d":"$709.00"},{"v":638,"d":"$638.00"},"Subscription"]
["PCS-MFC50-1M","PaperCut Subscription, MFD, Comm 50-99, per device, monthly",{"v":13.5,"d":"$13.50"},{"$f":"ROUND(C40*(1-0.1),2)","v":{"v":12.15,"d":"$12.15"}},"Subscription"]
["PaperCut MF Commercial Device Licenses 100-499 Devices (Price per Device)"]
["PCS-MFC100-1Y","PaperCut Subscription, MFD, Comm 100-499, per device, 1 year",{"v":136,"d":"$136.00"},{"v":122,"d":"$122.00"},"Subscription"]
["PCS-MFC100-2Y","PaperCut Subscription, MFD, Comm 100-499, per device, 2 years",{"v":272,"d":"$272.00"},{"v":245,"d":"$245.00"},"Subscription"]
["PCS-MFC100-3Y","PaperCut Subscription, MFD, Comm 100-499, per device, 3 years",{"v":388,"d":"$388.00"},{"v":349,"d":"$349.00"},"Subscription"]
["PCS-MFC100-4Y","PaperCut Subscription, MFD, Comm 100-499, per device, 4 years",{"v":517,"d":"$517.00"},{"v":465,"d":"$465.00"},"Subscription"]
["PCS-MFC100-5Y","PaperCut Subscription, MFD, Comm 100-499, per device, 5 years",{"v":592,"d":"$592.00"},{"v":533,"d":"$533.00"},"Subscription"]
["PCS-MFC100-1M","PaperCut Subscription, MFD, Comm 100-499, per device, monthly",{"v":11.5,"d":"$11.50"},{"$f":"ROUND(C47*(1-0.1),2)","v":{"v":10.35,"d":"$10.35"}},"Subscription"]
["PaperCut MF Commercial Device Licenses 500-999 Devices (Price per Device)"]
["PCS-MFC500-1Y","PaperCut Subscription, MFD, Comm 500-999, per device, 1 year",{"v":131,"d":"$131.00"},{"v":118,"d":"$118.00"},"Subscription"]
["PCS-MFC500-2Y","PaperCut Subscription, MFD, Comm 500-999, per device, 2 years",{"v":262,"d":"$262.00"},{"v":236,"d":"$236.00"},"Subscription"]
["PCS-MFC500-3Y","PaperCut Subscription, MFD, Comm 500-999, per device, 3 years",{"v":373,"d":"$373.00"},{"v":336,"d":"$336.00"},"Subscription"]
["PCS-MFC500-4Y","PaperCut Subscription, MFD, Comm 500-999, per device, 4 years",{"v":498,"d":"$498.00"},{"v":448,"d":"$448.00"},"Subscription"]
["PCS-MFC500-5Y","PaperCut Subscription, MFD, Comm 500-999, per device, 5 years",{"v":570,"d":"$570.00"},{"v":513,"d":"$513.00"},"Subscription"]
["PCS-MFC500-1M","PaperCut Subscription, MFD, Comm 500-999, per device, monthly",{"v":11,"d":"$11.00"},{"$f":"ROUND(C54*(1-0.1),2)","v":{"v":9.9,"d":"$9.90"}},"Subscription"]
["PaperCut MF Commercial Device Licenses 1000+ Devices (Price per Device)"]
["PCS-MFC1K-1Y","PaperCut Subscription, MFD, Comm 1000+, per device, 1 year",{"v":121,"d":"$121.00"},{"$f":"ROUND(C56*(1-0.1),0)","v":{"v":109,"d":"$109.00"}},"Subscription"]
["PCS-MFC1K-2Y","PaperCut Subscription, MFD, Comm 1000+, per device, 2 years",{"v":242,"d":"$242.00"},{"v":218,"d":"$218.00"},"Subscription"]
["PCS-MFC1K-3Y","PaperCut Subscription, MFD, Comm 1000+, per device, 3 years",{"v":345,"d":"$345.00"},{"v":311,"d":"$311.00"},"Subscription"]
["PCS-MFC1K-4Y","PaperCut Subscription, MFD, Comm 1000+, per device, 4 years",{"v":460,"d":"$460.00"},{"v":414,"d":"$414.00"},"Subscription"]
["PCS-MFC1K-5Y","PaperCut Subscription, MFD, Comm 1000+, per device, 5 years",{"v":526,"d":"$526.00"},{"v":473,"d":"$473.00"},"Subscription"]
["PCS-MFC1K-1M","PaperCut Subscription, MFD, Comm 1000+, per device, monthly",{"v":10,"d":"$10.00"},{"v":9,"d":"$9.00"},"Subscription"]
["PaperCut Subscription Single Function Commercial Device Licenses"]
["PaperCut Subscription Single Function Device Licenses 1-9 Devices (Price per Device)"]
["PCS-SFC-1Y","PaperCut Subscription, SFD, Comm 1-9, per device, 1 year",{"v":138,"d":"$138.00"},{"$f":"ROUND(C64*(1-0.1),0)","v":{"v":124,"d":"$124.00"}},"Subscription"]
["PCS-SFC-2Y","PaperCut Subscription, SFD, Comm 1-9, per device, 2 years",{"v":276,"d":"$276.00"},{"v":248,"d":"$248.00"},"Subscription"]
["PCS-SFC-3Y","PaperCut Subscription, SFD, Comm 1-9, per device, 3 years",{"v":393,"d":"$393.00"},{"v":354,"d":"$354.00"},"Subscription"]
["PCS-SFC-4Y","PaperCut Subscription, SFD, Comm 1-9, per device, 4 years",{"v":524,"d":"$524.00"},{"v":472,"d":"$472.00"},"Subscription"]
["PCS-SFC-5Y","PaperCut Subscription, SFD, Comm 1-9, per device, 5 years",{"v":600,"d":"$600.00"},{"v":540,"d":"$540.00"},"Subscription"]
["PCS-SFC-1M","PaperCut Subscription, SFD, Comm 1-9, per device, monthly",{"v":11.5,"d":"$11.50"},{"v":10,"d":"$10.00"},"Subscription"]
["PaperCut Subscription Single Function Device Licenses 10-24 Devices (Price per Device)"]
["PCS-SFC10-1Y","PaperCut Subscription, SFD, Comm 10-24, per device, 1 year",{"v":122,"d":"$122.00"},{"v":110,"d":"$110.00"},"Subscription"]
["PCS-SFC10-2Y","PaperCut Subscription, SFD, Comm 10-24, per device, 2 years",{"v":244,"d":"$244.00"},{"v":220,"d":"$220.00"},"Subscription"]
["PCS-SFC10-3Y","PaperCut Subscription, SFD, Comm 10-24, per device, 3 years",{"v":348,"d":"$348.00"},{"v":313,"d":"$313.00"},"Subscription"]
["PCS-SFC10-4Y","PaperCut Subscription, SFD, Comm 10-24, per device, 4 years",{"v":464,"d":"$464.00"},{"v":418,"d":"$418.00"},"Subscription"]
["PCS-SFC10-5Y","PaperCut Subscription, SFD, Comm 10-24, per device, 5 years",{"v":531,"d":"$531.00"},{"v":478,"d":"$478.00"},"Subscription"]
["PCS-SFC10-1M","PaperCut Subscription, SFD, Comm 10-24, per device, monthly",{"v":10,"d":"$10.00"},{"v":9,"d":"$9.00"},"Subscription"]
["PaperCut MF Commercial Device Licenses 24-49 Devices (Price per Device)"]
["PCS-MFC25-1Y","PaperCut Subscription, SFD, Comm 25-49, per device, 1 year",{"v":106,"d":"$106.00"},{"$f":"ROUND(C78*(1-0.1),2)","v":{"v":95.4,"d":"$95.40"}},"Subscription"]
["PCS-MFC25-2Y","PaperCut Subscription, SFD, Comm 25-49, per device, 2 years",{"v":212,"d":"$212.00"},{"v":190.8,"d":"$190.80"},"Subscription"]
["PCS-MFC25-3Y","PaperCut Subscription, SFD, Comm 25-49, per device, 3 years",{"v":302,"d":"$302.00"},{"v":271.8,"d":"$271.80"},"Subscription"]
["PCS-MFC25-4Y","PaperCut Subscription, SFD, Comm 25-49, per device, 4 years",{"v":403,"d":"$403.00"},{"v":362.7,"d":"$362.70"},"Subscription"]
["PCS-MFC25-5Y","PaperCut Subscription, SFD, Comm 25-49, per device, 5 years",{"v":461,"d":"$461.00"},{"v":414.9,"d":"$414.90"},"Subscription"]
["PCS-MFC25-1M","PaperCut Subscription, SFD, Comm 25-49, per device, monthly",{"v":9,"d":"$9.00"},{"v":8.1,"d":"$8.10"},"Subscription"]
["PaperCut Subscription Single Function Device Licenses 50-99 Devices (Price per Device)"]
["PCS-SFC50-1Y","PaperCut Subscription, SFD, Comm 50-99, per device, 1 year",{"v":89,"d":"$89.00"},{"v":80,"d":"$80.00"},"Subscription"]
["PCS-SFC50-2Y","PaperCut Subscription, SFD, Comm 50-99, per device, 2 years",{"v":178,"d":"$178.00"},{"v":160,"d":"$160.00"},"Subscription"]
["PCS-SFC50-3Y","PaperCut Subscription, SFD, Comm 50-99, per device, 3 years",{"v":254,"d":"$254.00"},{"v":229,"d":"$229.00"},"Subscription"]
["PCS-SFC50-4Y","PaperCut Subscription, SFD, Comm 50-99, per device, 4 years",{"v":338,"d":"$338.00"},{"v":304,"d":"$304.00"},"Subscription"]
["PCS-SFC50-5Y","PaperCut Subscription, SFD, Comm 50-99, per device, 5 years",{"v":387,"d":"$387.00"},{"v":348,"d":"$348.00"},"Subscription"]
["PCS-SFC50-1M","PaperCut Subscription, SFD, Comm 50-99, per device, monthly",{"v":7.5,"d":"$7.50"},{"v":7,"d":"$7.00"},"Subscription"]
["PaperCut Subscription Single Function Device Licenses 100-499 Devices (Price per Device)"]
["PCS-SFC100-1Y","PaperCut Subscription, SFD, Comm 100-499, per device, 1 year",{"v":75,"d":"$75.00"},{"v":68,"d":"$68.00"},"Subscription"]
["PCS-SFC100-2Y","PaperCut Subscription, SFD, Comm 100-499, per device, 2 years",{"v":150,"d":"$150.00"},{"v":135,"d":"$135.00"},"Subscription"]
["PCS-SFC100-3Y","PaperCut Subscription, SFD, Comm 100-499, per device, 3 years",{"v":214,"d":"$214.00"},{"v":193,"d":"$193.00"},"Subscription"]
["PCS-SFC100-4Y","PaperCut Subscription, SFD, Comm 100-499, per device, 4 years",{"v":285,"d":"$285.00"},{"v":257,"d":"$257.00"},"Subscription"]
["PCS-SFC100-5Y","PaperCut Subscription, SFD, Comm 100-499, per device, 5 years",{"v":326,"d":"$326.00"},{"v":293,"d":"$293.00"},"Subscription"]
["PCS-SFC100-1M","PaperCut Subscription, SFD, Comm 100-499, per device, monthly",{"v":6.5,"d":"$6.50"},{"v":6,"d":"$6.00"},"Subscription"]
["PaperCut Subscription Single Function Device Licenses 500-999 Devices (Price per Device)"]
["PCS-SFC500-1Y","PaperCut Subscription, SFD, Comm 500-999, per device, 1 year",{"v":72,"d":"$72.00"},{"v":65,"d":"$65.00"},"Subscription"]
["PCS-SFC500-2Y","PaperCut Subscription, SFD, Comm 500-999, per device, 2 years",{"v":144,"d":"$144.00"},{"v":130,"d":"$130.00"},"Subscription"]
["PCS-SFC500-3Y","PaperCut Subscription, SFD, Comm 500-999, per device, 3 years",{"v":205,"d":"$205.00"},{"v":185,"d":"$185.00"},"Subscription"]
["PCS-SFC500-4Y","PaperCut Subscription, SFD, Comm 500-999, per device, 4 years",{"v":274,"d":"$274.00"},{"v":247,"d":"$247.00"},"Subscription"]
["PCS-SFC500-5Y","PaperCut Subscription, SFD, Comm 500-999, per device, 5 years",{"v":313,"d":"$313.00"},{"v":282,"d":"$282.00"},"Subscription"]
["PCS-SFC500-1M","PaperCut Subscription, SFD, Comm 500-999, per device, monthly",{"v":6,"d":"$6.00"},{"$f":"ROUND(C104*(1-0.05),1)","v":{"v":5.7,"d":"$5.70"}},"Subscription"]
["PaperCut Subscription Single Function Device Licenses 1000+ Devices (Price per Device)"]
["PCS-SFC1K-1Y","PaperCut Subscription, SFD, Comm 1000+, per device, 1 year",{"v":67,"d":"$67.00"},{"v":60,"d":"$60.00"},"Subscription"]
["PCS-SFC1K-2Y","PaperCut Subscription, SFD, Comm 1000+, per device, 2 years",{"v":134,"d":"$134.00"},{"v":121,"d":"$121.00"},"Subscription"]
["PCS-SFC1K-3Y","PaperCut Subscription, SFD, Comm 1000+, per device, 3 years",{"v":191,"d":"$191.00"},{"v":172,"d":"$172.00"},"Subscription"]
["PCS-SFC1K-4Y","PaperCut Subscription, SFD, Comm 1000+, per device, 4 years",{"v":255,"d":"$255.00"},{"v":230,"d":"$230.00"},"Subscription"]
["PCS-SFC1K-5Y","PaperCut Subscription, SFD, Comm 1000+, per device, 5 years",{"v":291,"d":"$291.00"},{"v":262,"d":"$262.00"},"Subscription"]
["PCS-SFC1K-1M","PaperCut Subscription, SFD, Comm 1000+, per device, monthly",{"v":5.5,"d":"$5.50"},{"v":5,"d":"$5.00"},"Subscription"]
[]
["PAPERCUT SUBSRIPTION EDU/GOVERNMENT"]
["Vendor Part #","Description","MSRP","NASPO Price","Type"]
["PaperCut Subscription Multifunction Edu/Gov Device Licenses"]
["PaperCut Subscription Multifunction Edu/Gov Device Licenses 1-9 Devices (Price per Device)"]
["PCS-MFE-1Y","PaperCut Subscription, MFD, EduGov 1-9, per device, 1 year",{"v":236,"d":"$236.00"},{"$f":"ROUND(C117*(1-0.1),0)","v":{"v":212,"d":"$212.00"}},"Subscription"]
["PCS-MFE-2Y","PaperCut Subscription, MFD, EduGov 1-9, per device, 2 years",{"v":472,"d":"$472.00"},{"v":425,"d":"$425.00"},"Subscription"]
["PCS-MFE-3Y","PaperCut Subscription, MFD, EduGov 1-9, per device, 3 years",{"v":673,"d":"$673.00"},{"v":606,"d":"$606.00"},"Subscription"]
["PCS-MFE-4Y","PaperCut Subscription, MFD, EduGov 1-9, per device, 4 years",{"v":897,"d":"$897.00"},{"v":807,"d":"$807.00"},"Subscription"]
["PCS-MFE-5Y","PaperCut Subscription, MFD, EduGov 1-9, per device, 5 years",{"v":1027,"d":"$1,027.00"},{"v":924,"d":"$924.00"},"Subscription"]
["PCS-MFE-1M","PaperCut Subscription, MFD, EduGov 1-9, per device, monthly",{"v":19.5,"d":"$19.50"},{"v":18,"d":"$18.00"},"Subscription"]
["PaperCut Subscription Multifunction Edu/Gov Device Licenses 10-24 Devices (Price per Device)"]
["PCS-MFE10-1Y","PaperCut Subscription, MFD, EduGov 10-24, per device, 1 year",{"v":207,"d":"$207.00"},{"$f":"ROUND(C124*(1-0.1),0)","v":{"v":186,"d":"$186.00"}},"Subscription"]
["PCS-MFE10-2Y","PaperCut Subscription, MFD, EduGov 10-24, per device, 2 years",{"v":414,"d":"$414.00"},{"v":373,"d":"$373.00"},"Subscription"]
["PCS-MFE10-3Y","PaperCut Subscription, MFD, EduGov 10-24, per device, 3 years",{"v":590,"d":"$590.00"},{"v":531,"d":"$531.00"},"Subscription"]
["PCS-MFE10-4Y","PaperCut Subscription, MFD, EduGov 10-24, per device, 4 years",{"v":787,"d":"$787.00"},{"v":708,"d":"$708.00"},"Subscription"]
["PCS-MFE10-5Y","PaperCut Subscription, MFD, EduGov 10-24, per device, 5 years",{"v":900,"d":"$900.00"},{"v":810,"d":"$810.00"},"Subscription"]
["PCS-MFE10-1M","PaperCut Subscription, MFD, EduGov 10-24, per device, monthly",{"v":17.5,"d":"$17.50"},{"v":16,"d":"$16.00"},"Subscription"]
["PaperCut Subscription Multifunction Edu/Gov Device Licenses 24-49 Devices (Price per Device)"]
["PCS-MFE10-1Y","PaperCut Subscription, MFD, EduGov 24-49, per device, 1 year",{"v":180,"d":"$180.00"},{"$f":"ROUND(C131*(1-0.1),0)","v":{"v":162,"d":"$162.00"}},"Subscription"]
["PCS-MFE10-2Y","PaperCut Subscription, MFD, EduGov 24-49, per device, 2 year",{"v":360,"d":"$360.00"},{"v":324,"d":"$324.00"},"Subscription"]
["PCS-MFE10-3Y","PaperCut Subscription, MFD, EduGov 24-49, per device, 3 year",{"v":513,"d":"$513.00"},{"v":462,"d":"$462.00"},"Subscription"]
["PCS-MFE10-4Y","PaperCut Subscription, MFD, EduGov 24-49, per device, 4 year",{"v":684,"d":"$684.00"},{"v":616,"d":"$616.00"},"Subscription"]
["PCS-MFE10-5Y","PaperCut Subscription, MFD, EduGov 24-49, per device, 5 year",{"v":783,"d":"$783.00"},{"v":705,"d":"$705.00"},"Subscription"]
["PCS-MFE10-1M","PaperCut Subscription, MFD, EduGov 24-49, per device, monthly",{"v":15,"d":"$15.00"},{"v":14,"d":"$14.00"},"Subscription"]
["PaperCut Subscription Multifunction Edu/Gov Device Licenses 50-99 Devices (Price per Device)"]
["PCS-MFE50-1Y","PaperCut Subscription, MFD, EduGov 50-99, per device, 1 year",{"v":153,"d":"$153.00"},{"$f":"ROUND(C138*(1-0.1),0)","v":{"v":138,"d":"$138.00"}},"Subscription"]
["PCS-MFE50-2Y","PaperCut Subscription, MFD, EduGov 50-99, per device, 2 years",{"v":306,"d":"$306.00"},{"v":275,"d":"$275.00"},"Subscription"]
["PCS-MFE50-3Y","PaperCut Subscription, MFD, EduGov 50-99, per device, 3 years",{"v":436,"d":"$436.00"},{"v":392,"d":"$392.00"},"Subscription"]
["PCS-MFE50-4Y","PaperCut Subscription, MFD, EduGov 50-99, per device, 4 years",{"v":581,"d":"$581.00"},{"v":523,"d":"$523.00"},"Subscription"]
["PCS-MFE50-5Y","PaperCut Subscription, MFD, EduGov 50-99, per device, 5 years",{"v":666,"d":"$666.00"},{"v":599,"d":"$599.00"},"Subscription"]
["PCS-MFE50-1M","PaperCut Subscription, MFD, EduGov 50-99, per device, monthly",{"v":13,"d":"$13.00"},{"v":12,"d":"$12.00"},"Subscription"]
["PaperCut Subscription Multifunction Edu/Gov Device Licenses 100-499 Devices (Price per Device)"]
["PCS-MFE100-1Y","PaperCut Subscription, MFD, EduGov 100-499, per device, 1 year",{"v":127,"d":"$127.00"},{"$f":"ROUND(C145*(1-0.1),0)","v":{"v":114,"d":"$114.00"}},"Subscription"]
["PCS-MFE100-2Y","PaperCut Subscription, MFD, EduGov 100-499, per device, 2 years",{"v":254,"d":"$254.00"},{"v":229,"d":"$229.00"},"Subscription"]
["PCS-MFE100-3Y","PaperCut Subscription, MFD, EduGov 100-499, per device, 3 years",{"v":362,"d":"$362.00"},{"v":326,"d":"$326.00"},"Subscription"]
["PCS-MFE100-4Y","PaperCut Subscription, MFD, EduGov 100-499, per device, 4 years",{"v":483,"d":"$483.00"},{"v":435,"d":"$435.00"},"Subscription"]
["PCS-MFE100-5Y","PaperCut Subscription, MFD, EduGov 100-499, per device, 5 years",{"v":552,"d":"$552.00"},{"v":497,"d":"$497.00"},"Subscription"]
["PCS-MFE100-1M","PaperCut Subscription, MFD, EduGov 100-499, per device, monthly",{"v":10.5,"d":"$10.50"},{"v":9,"d":"$9.00"},"Subscription"]
["PaperCut Subscription Multifunction Edu/Gov Device Licenses 500-999 Devices (Price per Device)"]
["PCS-MFE500-1Y","PaperCut Subscription, MFD, EduGov 500-999, per device, 1 year",{"v":123,"d":"$123.00"},{"$f":"ROUND(C152*(1-0.1),0)","v":{"v":111,"d":"$111.00"}},"Subscription"]
["PCS-MFE500-2Y","PaperCut Subscription, MFD, EduGov 500-999, per device, 2 years",{"v":246,"d":"$246.00"},{"v":221,"d":"$221.00"},"Subscription"]
["PCS-MFE500-3Y","PaperCut Subscription, MFD, EduGov 500-999, per device, 3 years",{"v":351,"d":"$351.00"},{"v":316,"d":"$316.00"},"Subscription"]
["PCS-MFE500-4Y","PaperCut Subscription, MFD, EduGov 500-999, per device, 4 years",{"v":467,"d":"$467.00"},{"v":420,"d":"$420.00"},"Subscription"]
["PCS-MFE500-5Y","PaperCut Subscription, MFD, EduGov 500-999, per device, 5 years",{"v":535,"d":"$535.00"},{"v":482,"d":"$482.00"},"Subscription"]
["PCS-MFC500-1M","PaperCut Subscription, MFD, EduGov 500-999, per device, monthly",{"v":10.5,"d":"$10.50"},{"v":9,"d":"$9.00"},"Subscription"]
["PaperCut Subscription Multifunction Edu/Gov Device Licenses 1000+ Devices (Price per Device)"]
["PCS-MFC1K-1Y","PaperCut Subscription, MFD, EduGov 1000+, per device, 1 year",{"v":113,"d":"$113.00"},{"$f":"ROUND(C159*(1-0.1),0)","v":{"v":102,"d":"$102.00"}},"Subscription"]
["PCS-MFC1K-2Y","PaperCut Subscription, MFD, EduGov 1000+, per device, 2 years",{"v":226,"d":"$226.00"},{"$f":"ROUND(C160*(1-0.1),0)","v":{"v":203,"d":"$203.00"}},"Subscription"]
["PCS-MFC1K-3Y","PaperCut Subscription, MFD, EduGov 1000+, per device, 3 years",{"v":322,"d":"$322.00"},{"$f":"ROUND(C161*(1-0.1),0)","v":{"v":290,"d":"$290.00"}},"Subscription"]
["PCS-MFC1K-4Y","PaperCut Subscription, MFD, EduGov 1000+, per device, 4 years",{"v":429,"d":"$429.00"},{"$f":"ROUND(C162*(1-0.1),0)","v":{"v":386,"d":"$386.00"}},"Subscription"]
["PCS-MFC1K-5Y","PaperCut Subscription, MFD, EduGov 1000+, per device, 5 years",{"v":492,"d":"$492.00"},{"$f":"ROUND(C163*(1-0.1),0)","v":{"v":443,"d":"$443.00"}},"Subscription"]
["PCS-MFC1K-1M","PaperCut Subscription, MFD, EduGov 1000+, per device, monthly",{"v":9.5,"d":"$9.50"},{"$f":"ROUND(C164*(1-0.05),0)","v":{"v":9,"d":"$9.00"}},"Subscription"]
["PaperCut Subscription Single Function Edu/Gov Device Licenses"]
["PaperCut Subscription Single Edu/Gov Device Licenses 1-9 Devices (Price per Device)"]
["PCS-SFE-1Y","PaperCut Subscription, SFD, EduGov 1-9, per device, 1 year",{"v":127,"d":"$127.00"},{"$f":"ROUND(C167*(1-0.1),0)","v":{"v":114,"d":"$114.00"}},"Subscription"]
["PCS-SFE-2Y","PaperCut Subscription, SFD, EduGov 1-9, per device, 2 years",{"v":241,"d":"$241.00"},{"v":217,"d":"$217.00"},"Subscription"]
["PCS-SFE-3Y","PaperCut Subscription, SFD, EduGov 1-9, per device, 3 years",{"v":343,"d":"$343.00"},{"v":309,"d":"$309.00"},"Subscription"]
["PCS-SFE-4Y","PaperCut Subscription, SFD, EduGov 1-9, per device, 4 years",{"v":457,"d":"$457.00"},{"v":411,"d":"$411.00"},"Subscription"]
["PCS-SFE-5Y","PaperCut Subscription, SFD, EduGov 1-9, per device, 5 years",{"v":552,"d":"$552.00"},{"v":497,"d":"$497.00"},"Subscription"]
["PCS-SFE-1M","PaperCut Subscription, SFD, EduGov 1-9, per device, monthly",{"v":10.5,"d":"$10.50"},{"v":9,"d":"$9.00"},"Subscription"]
["PaperCut Subscription Single Edu/Gov Device Licenses 10-24 Devices (Price per Device)"]
["PCS-SFE10-1Y","PaperCut Subscription, SFD, EduGov 10-24, per device, 1 year",{"v":103,"d":"$103.00"},{"$f":"ROUND(C174*(1-0.1),0)","v":{"v":93,"d":"$93.00"}},"Subscription"]
["PCS-SFE10-2Y","PaperCut Subscription, SFD, EduGov 10-24, per device, 2 years",{"v":196,"d":"$196.00"},{"v":176,"d":"$176.00"},"Subscription"]
["PCS-SFE10-3Y","PaperCut Subscription, SFD, EduGov 10-24, per device, 3 years",{"v":278,"d":"$278.00"},{"v":250,"d":"$250.00"},"Subscription"]
["PCS-SFE10-4Y","PaperCut Subscription, SFD, EduGov 10-24, per device, 4 years",{"v":371,"d":"$371.00"},{"v":334,"d":"$334.00"},"Subscription"]
["PCS-SFE10-5Y","PaperCut Subscription, SFD, EduGov 10-24, per device, 5 years",{"v":448,"d":"$448.00"},{"v":403,"d":"$403.00"},"Subscription"]
["PCS-SFE10-1M","PaperCut Subscription, SFD, EduGov 10-24, per device, monthly",{"v":8.5,"d":"$8.50"},{"v":8,"d":"$8.00"},"Subscription"]
["PaperCut Subscription Single Edu/Gov Device Licenses 24-49 Devices (Price per Device)"]
["PCS-SFE25-1Y","PaperCut Subscription, SFD, EduGov 24-49, per device, 1 year",{"v":99,"d":"$99.00"},{"v":89,"d":"$89.00"},"Subscription"]
["PCS-SFE25-2Y","PaperCut Subscription, SFD, EduGov 24-49, per device, 2 years",{"v":198,"d":"$198.00"},{"v":178,"d":"$178.00"},"Subscription"]
["PCS-SFE25-3Y","PaperCut Subscription, SFD, EduGov 24-49, per device, 3 years",{"v":282,"d":"$282.00"},{"v":254,"d":"$254.00"},"Subscription"]
["PCS-SFE25-4Y","PaperCut Subscription, SFD, EduGov 24-49, per device, 4 years",{"v":376,"d":"$376.00"},{"v":338,"d":"$338.00"},"Subscription"]
["PCS-SFE25-5Y","PaperCut Subscription, SFD, EduGov 24-49, per device, 5 years",{"v":431,"d":"$431.00"},{"v":388,"d":"$388.00"},"Subscription"]
["PCS-SFE25-1M","PaperCut Subscription, SFD, EduGov 24-49, per device, monthly",{"v":8.5,"d":"$8.50"},{"v":8,"d":"$8.00"},"Subscription"]
["PaperCut Subscription Single Edu/Gov Device Licenses 50-99 Devices (Price per Device)"]
["PCS-SFE50-1Y","PaperCut Subscription, SFD, EduGov 50-99, per device, 1 year",{"v":84,"d":"$84.00"},{"$f":"ROUND(C188*(1-0.1),0)","v":{"v":76,"d":"$76.00"}},"Subscription"]
["PCS-SFE50-2Y","PaperCut Subscription, SFD, EduGov 50-99, per device, 2 years",{"v":168,"d":"$168.00"},{"v":151,"d":"$151.00"},"Subscription"]
["PCS-SFE50-3Y","PaperCut Subscription, SFD, EduGov 50-99, per device, 3 years",{"v":239,"d":"$239.00"},{"v":215,"d":"$215.00"},"Subscription"]
["PCS-SFE50-4Y","PaperCut Subscription, SFD, EduGov 50-99, per device, 4 years",{"v":319,"d":"$319.00"},{"v":287,"d":"$287.00"},"Subscription"]
["PCS-SFE50-5Y","PaperCut Subscription, SFD, EduGov 50-99, per device, 5 years",{"v":365,"d":"$365.00"},{"v":329,"d":"$329.00"},"Subscription"]
["PCS-SFE50-1M","PaperCut Subscription, SFD, EduGov 50-99, per device, monthly",{"v":7,"d":"$7.00"},{"v":6,"d":"$6.00"},"Subscription"]
["PaperCut Subscription Single Edu/Gov Device Licenses 100-499 Devices (Price per Device)"]
["PCS-SFE100-1Y","PaperCut Subscription, SFD, EduGov 100-499, per device, 1 year",{"v":70,"d":"$70.00"},{"$f":"ROUND(C195*(1-0.1),0)","v":{"v":63,"d":"$63.00"}},"Subscription"]
["PCS-SFE100-2Y","PaperCut Subscription, SFD, EduGov 100-499, per device, 2 years",{"v":140,"d":"$140.00"},{"v":126,"d":"$126.00"},"Subscription"]
["PCS-SFE100-3Y","PaperCut Subscription, SFD, EduGov 100-499, per device, 3 years",{"v":199,"d":"$199.00"},{"v":179,"d":"$179.00"},"Subscription"]
["PCS-SFE100-4Y","PaperCut Subscription, SFD, EduGov 100-499, per device, 4 years",{"v":266,"d":"$266.00"},{"v":239,"d":"$239.00"},"Subscription"]
["PCS-SFE100-5Y","PaperCut Subscription, SFD, EduGov 100-499, per device, 5 years",{"v":305,"d":"$305.00"},{"v":275,"d":"$275.00"},"Subscription"]
["PCS-SFE100-1M","PaperCut Subscription, SFD, EduGov 100-499, per device, monthly",{"v":6,"d":"$6.00"},{"v":5,"d":"$5.00"},"Subscription"]
["PaperCut Subscription Single Edu/Gov Device Licenses 500-999 Devices (Price per Device)"]
["PCS-SFE500-1Y","PaperCut Subscription, SFD, EduGov 500-999, per device, 1 year",{"v":68,"d":"$68.00"},{"$f":"ROUND(C202*(1-0.1),0)","v":{"v":61,"d":"$61.00"}},"Subscription"]
["PCS-SFE500-2Y","PaperCut Subscription, SFD, EduGov 500-999, per device, 2 years",{"v":136,"d":"$136.00"},{"v":122,"d":"$122.00"},"Subscription"]
["PCS-SFE500-3Y","PaperCut Subscription, SFD, EduGov 500-999, per device, 3 years",{"v":194,"d":"$194.00"},{"v":175,"d":"$175.00"},"Subscription"]
["PCS-SFE500-4Y","PaperCut Subscription, SFD, EduGov 500-999, per device, 4 years",{"v":258,"d":"$258.00"},{"v":232,"d":"$232.00"},"Subscription"]
["PCS-SFE500-5Y","PaperCut Subscription, SFD, EduGov 500-999, per device, 5 years",{"v":296,"d":"$296.00"},{"v":266,"d":"$266.00"},"Subscription"]
["PCS-SFE500-1M","PaperCut Subscription, SFD, EduGov 500-999, per device, monthly",{"v":5.5,"d":"$5.50"},{"$f":"ROUND(C207*(1-0.05),1)","v":{"v":5.2,"d":"$5.20"}},"Subscription"]
["PaperCut Subscription Single Edu/Gov Device Licenses 1000+ Devices (Price per Device)"]
["PCS-SFE1K-1Y","PaperCut Subscription, SFD, EduGov 1000+, per device, 1 year",{"v":63,"d":"$63.00"},{"$f":"ROUND(C209*(1-0.1),0)","v":{"v":57,"d":"$57.00"}},"Subscription"]
["PCS-SFE1K-2Y","PaperCut Subscription, SFD, EduGov 1000+, per device, 2 years",{"v":126,"d":"$126.00"},{"$f":"ROUND(C210*(1-0.1),0)","v":{"v":113,"d":"$113.00"}},"Subscription"]
["PCS-SFE1K-3Y","PaperCut Subscription, SFD, EduGov 1000+, per device, 3 years",{"v":180,"d":"$180.00"},{"$f":"ROUND(C211*(1-0.1),0)","v":{"v":162,"d":"$162.00"}},"Subscription"]
["PCS-SFE1K-4Y","PaperCut Subscription, SFD, EduGov 1000+, per device, 4 years",{"v":239,"d":"$239.00"},{"$f":"ROUND(C212*(1-0.1),0)","v":{"v":215,"d":"$215.00"}},"Subscription"]
["PCS-SFE1K-5Y","PaperCut Subscription, SFD, EduGov 1000+, per device, 5 years",{"v":274,"d":"$274.00"},{"$f":"ROUND(C213*(1-0.1),0)","v":{"v":247,"d":"$247.00"}},"Subscription"]
["PCS-SFE1K-1M","PaperCut Subscription, SFD, EduGov 1000+, per device, monthly",{"v":5.5,"d":"$5.50"},{"$f":"ROUND(C214*(1-0.05),1)","v":{"v":5.2,"d":"$5.20"}},"Subscription"]
[]
["PAPERCUT SUBSRIPTION ADDITIONAL LICENSE COMPONENTS"]
["Vendor Part #","Description","MSRP","NASPO Price","Type"]
["PaperCut Additional License Components"]
["PaperCut Subscription Additional License Components- Print Deploy, VDI Support Only"]
["PCS-VDI-1Y","PaperCut Subscription, Print Deploy VDI Support only, 1 year",{"v":2249,"d":"$2,249.00"},{"$f":"ROUND(C220*(1-0.1),0)","v":{"v":2024,"d":"$2,024.00"}},"Subscription"]
["PCS-VDI-2Y","PaperCut  Subscription, Print Deploy VDI Support only, 2 years",{"v":4498,"d":"$4,498.00"},{"v":4048,"d":"$4,048.00"},"Subscription"]
["PCS-VDI-3Y","PaperCut  Subscription, Print Deploy VDI Support only, 3 years",{"v":6410,"d":"$6,410.00"},{"v":5769,"d":"$5,769.00"},"Subscription"]
["PCS-VDI-4Y","PaperCut  Subscription, Print Deploy VDI Support only, 4 years",{"v":8546,"d":"$8,546.00"},{"v":7691,"d":"$7,691.00"},"Subscription"]
["PCS-VDI-5Y","PaperCut  Subscription, Print Deploy VDI Support only, 5 years",{"v":9783,"d":"$9,783.00"},{"v":8805,"d":"$8,805.00"},"Subscription"]
["PCS-VDI-1M","PaperCut  Subscription, Print Deploy VDI Support only, monthly",{"v":187,"d":"$187.00"},{"v":168,"d":"$168.00"},"Subscription"]
["PaperCut Subscription Additional License Components-Print Deploy, 10 Zone"]
["PCS-PD10-1Y","PaperCut Subscription, Print Deploy 10 zone pack, 1 year",{"v":2249,"d":"$2,249.00"},{"$f":"ROUND(C227*(1-0.1),0)","v":{"v":2024,"d":"$2,024.00"}},"Subscription"]
["PCS-PD10-2Y","PaperCut Subscription, Print Deploy 10 zone pack, 2 years",{"v":4498,"d":"$4,498.00"},{"v":4048,"d":"$4,048.00"},"Subscription"]
["PCS-PD10-3Y","PaperCut Subscription, Print Deploy 10 zone pack, 3 years",{"v":6410,"d":"$6,410.00"},{"v":5769,"d":"$5,769.00"},"Subscription"]
["PCS-PD10-4Y","PaperCut Subscription, Print Deploy 10 zone pack, 4 years",{"v":8546,"d":"$8,546.00"},{"v":7691,"d":"$7,691.00"},"Subscription"]
["PCS-PD10-5Y","PaperCut Subscription, Print Deploy 10 zone pack, 5 years",{"v":9783,"d":"$9,783.00"},{"v":8805,"d":"$8,805.00"},"Subscription"]
["PCS-PD10-1M","PaperCut Subscription, Print Deploy 10 zone pack, monthly",{"v":187,"d":"$187.00"},{"v":168,"d":"$168.00"},"Subscription"]
["PaperCut Subscription Additional License Components-Print Deploy, 100 Zone"]
["PCS-PD100-1Y","PaperCut Subscription, Print Deploy 100 zone pack, 1 year",{"v":4497,"d":"$4,497.00"},{"$f":"ROUND(C234*(1-0.1),0)","v":{"v":4047,"d":"$4,047.00"}},"Subscription"]
["PCS-PD100-2Y","PaperCut Subscription, Print Deploy 100 zone pack, 2 years",{"v":8994,"d":"$8,994.00"},{"v":8095,"d":"$8,095.00"},"Subscription"]
["PCS-PD100-3Y","PaperCut Subscription, Print Deploy 100 zone pack, 3 years",{"v":12816,"d":"$12,816.00"},{"v":11534,"d":"$11,534.00"},"Subscription"]
["PCS-PD100-4Y","PaperCut Subscription, Print Deploy 100 zone pack, 4 years",{"v":17089,"d":"$17,089.00"},{"v":15380,"d":"$15,380.00"},"Subscription"]
["PCS-PD100-5Y","PaperCut Subscription, Print Deploy 100 zone pack, 5 years",{"v":19562,"d":"$19,562.00"},{"v":17606,"d":"$17,606.00"},"Subscription"]
["PCS-PD100-1M","PaperCut Subscription, Print Deploy 100 zone pack, monthly",{"v":375,"d":"$375.00"},{"v":338,"d":"$338.00"},"Subscription"]
["PaperCut Subscription Additional License Components-Print Deploy, Unlimited Zone"]
["PCS-PDUNL-1Y","PaperCut Subscription, Print Deploy unlimited zone pack, 1 year",{"v":15741,"d":"$15,741.00"},{"$f":"ROUND(C241*(1-0.1),0)","v":{"v":14167,"d":"$14,167.00"}},"Subscription"]
["PCS-PDUNL-2Y","PaperCut Subscription, Print Deploy unlimited zone pack, 2 years",{"v":31482,"d":"$31,482.00"},{"v":28334,"d":"$28,334.00"},"Subscription"]
["PCS-PDUNL-3Y","PaperCut Subscription, Print Deploy unlimited zone pack, 3 years",{"v":44862,"d":"$44,862.00"},{"v":40376,"d":"$40,376.00"},"Subscription"]
["PCS-PDUNL-4Y","PaperCut Subscription, Print Deploy unlimited zone pack, 4 years",{"v":59816,"d":"$59,816.00"},{"v":53834,"d":"$53,834.00"},"Subscription"]
["PCS-PDUNL-5Y","PaperCut Subscription, Print Deploy unlimited zone pack, 5 years",{"v":68473,"d":"$68,473.00"},{"v":61626,"d":"$61,626.00"},"Subscription"]
["PCS-PDUNL-1M","PaperCut Subscription, Print Deploy unlimited zone pack, monthly",{"v":1312,"d":"$1,312.00"},{"v":1181,"d":"$1,181.00"},"Subscription"]
["PaperCut Subscription Additional License Components-Additional Release Station"]
["PCS-ARS-1Y","PaperCut Subscription, Additional Release Station, 1 year",{"v":70,"d":"$70.00"},{"$f":"ROUND(C248*(1-0.1),0)","v":{"v":63,"d":"$63.00"}},"Subscription"]
["PCS-ARS-2Y","PaperCut Subscription, Additional Release Station, 2 years",{"v":140,"d":"$140.00"},{"v":126,"d":"$126.00"},"Subscription"]
["PCS-ARS-3Y","PaperCut Subscription, Additional Release Station, 3 years",{"v":199,"d":"$199.00"},{"v":179,"d":"$179.00"},"Subscription"]
["PCS-ARS-4Y","PaperCut Subscription, Additional Release Station, 4 years",{"v":266,"d":"$266.00"},{"v":239,"d":"$239.00"},"Subscription"]
["PCS-ARS-5Y","PaperCut Subscription, Additional Release Station, 5 years",{"v":305,"d":"$305.00"},{"v":275,"d":"$275.00"},"Subscription"]
["PCS-ARS-1M","PaperCut Subscription, Additional Release Station, monthly",{"v":6,"d":"$6.00"},{"$f":"ROUND(C253*(1-0.05),1)","v":{"v":5.7,"d":"$5.70"}},"Subscription"]
["PaperCut Subscription Additional License Components- Job Ticketing, Mini Print Room"]
["PCS-JT-Mini-1Y","PaperCut Subscription, Job Ticketing Mini Print Room, 1 year",{"v":1206,"d":"$1,206.00"},{"$f":"ROUND(C255*(1-0.1),0)","v":{"v":1085,"d":"$1,085.00"}},"Subscription"]
["PCS-JT-Mini-2Y","PaperCut Subscription, Job Ticketing Mini Print Room, 2 years",{"v":2412,"d":"$2,412.00"},{"v":2171,"d":"$2,171.00"},"Subscription"]
["PCS-JT-Mini-3Y","PaperCut Subscription, Job Ticketing Mini Print Room, 3 years",{"v":3437,"d":"$3,437.00"},{"v":3093,"d":"$3,093.00"},"Subscription"]
["PCS-JT-Mini-4Y","PaperCut Subscription, Job Ticketing Mini Print Room, 4 years",{"v":4583,"d":"$4,583.00"},{"v":4125,"d":"$4,125.00"},"Subscription"]
["PCS-JT-Mini-5Y","PaperCut Subscription, Job Ticketing Mini Print Room, 5 years",{"v":5246,"d":"$5,246.00"},{"v":4721,"d":"$4,721.00"},"Subscription"]
["PCS-JT-Mini-1M","PaperCut Subscription, Job Ticketing Mini Print Room, monthly",{"v":101,"d":"$101.00"},{"v":91,"d":"$91.00"},"Subscription"]
["PaperCut Subscription Additional License Components- Job Ticketing, Print Room"]
["PCS-JT-Room-1Y","PaperCut Subscription, Job Ticketing Print Room, 1 year",{"v":2413,"d":"$2,413.00"},{"$f":"ROUND(C262*(1-0.1),0)","v":{"v":2172,"d":"$2,172.00"}},"Subscription"]
["PCS-JT-Room-2Y","PaperCut Subscription, Job Ticketing Print Room, 2 years",{"v":4826,"d":"$4,826.00"},{"v":4343,"d":"$4,343.00"},"Subscription"]
["PCS-JT-Room-3Y","PaperCut Subscription, Job Ticketing Print Room, 3 years",{"v":6877,"d":"$6,877.00"},{"v":6189,"d":"$6,189.00"},"Subscription"]
["PCS-JT-Room-4Y","PaperCut Subscription, Job Ticketing Print Room, 4 years",{"v":9169,"d":"$9,169.00"},{"v":8252,"d":"$8,252.00"},"Subscription"]
["PCS-JT-Room-5Y","PaperCut Subscription, Job Ticketing Print Room, 5 years",{"v":10497,"d":"$10,497.00"},{"v":9447,"d":"$9,447.00"},"Subscription"]
["PCS-JT-Room-1M","PaperCut Subscription, Job Ticketing Print Room, monthly",{"v":201,"d":"$201.00"},{"v":181,"d":"$181.00"},"Subscription"]
["PaperCut Subscription Additional License Components- Job Ticketing, FabLab"]
["PCS-JT-Fab-1Y","PaperCut Subscription, Job Ticketing FabLab, 1 year",{"v":2413,"d":"$2,413.00"},{"$f":"ROUND(C269*(1-0.1),0)","v":{"v":2172,"d":"$2,172.00"}},"Subscription"]
["PCS-JT-Fab-2Y","PaperCut Subscription, Job Ticketing FabLab, 2 years",{"v":4826,"d":"$4,826.00"},{"v":4343,"d":"$4,343.00"},"Subscription"]
["PCS-JT-Fab-3Y","PaperCut Subscription, Job Ticketing FabLab, 3 years",{"v":6877,"d":"$6,877.00"},{"v":6189,"d":"$6,189.00"},"Subscription"]
["PCS-JT-Fab-4Y","PaperCut Subscription, Job Ticketing FabLab, 4 years",{"v":9169,"d":"$9,169.00"},{"v":8252,"d":"$8,252.00"},"Subscription"]
["PCS-JT-Fab-5Y","PaperCut Subscription, Job Ticketing FabLab, 5 years",{"v":10497,"d":"$10,497.00"},{"v":9447,"d":"$9,447.00"},"Subscription"]
["PCS-JT-Fab-1M","PaperCut Subscription, Job Ticketing FabLab, monthly",{"v":201,"d":"$201.00"},{"v":181,"d":"$181.00"},"Subscription"]
["PaperCut Subscription Additional License Components- Payment Gateway, Group 1"]
["PCS-GW1-1Y","PaperCut Subscription, Payment Gateway Group 1, 1 year",{"v":265,"d":"$265.00"},{"$f":"ROUND(C276*(1-0.1),0)","v":{"v":239,"d":"$239.00"}},"Subscription"]
["PCS-GW1-2Y","PaperCut Subscription, Payment Gateway Group 1, 2 years",{"v":530,"d":"$530.00"},{"v":477,"d":"$477.00"},"Subscription"]
["PCS-GW1-3Y","PaperCut Subscription, Payment Gateway Group 1, 3 years",{"v":755,"d":"$755.00"},{"v":680,"d":"$680.00"},"Subscription"]
["PCS-GW1-4Y","PaperCut Subscription, Payment Gateway Group 1, 4 years",{"v":1007,"d":"$1,007.00"},{"v":906,"d":"$906.00"},"Subscription"]
["PCS-GW1-5Y","PaperCut Subscription, Payment Gateway Group 1, 5 years",{"v":1153,"d":"$1,153.00"},{"v":1038,"d":"$1,038.00"},"Subscription"]
["PCS-GW1-1M","PaperCut Subscription, Payment Gateway Group 1, monthly",{"v":22,"d":"$22.00"},{"v":20,"d":"$20.00"},"Subscription"]
["PaperCut Subscription Additional License Components- Payment Gateway, Group 2"]
["PCS-GW2-1Y","PaperCut Subscription, Payment Gateway Group 2, 1 year",{"v":402,"d":"$402.00"},{"v":362,"d":"$362.00"},"Subscription"]
["PCS-GW2-2Y","PaperCut Subscription, Payment Gateway Group 2, 2 years",{"v":804,"d":"$804.00"},{"v":724,"d":"$724.00"},"Subscription"]
["PCS-GW2-3Y","PaperCut Subscription, Payment Gateway Group 2, 3 years",{"v":1146,"d":"$1,146.00"},{"v":1031,"d":"$1,031.00"},"Subscription"]
["PCS-GW2-4Y","PaperCut Subscription, Payment Gateway Group 2, 4 years",{"v":1528,"d":"$1,528.00"},{"v":1375,"d":"$1,375.00"},"Subscription"]
["PCS-GW2-5Y","PaperCut Subscription, Payment Gateway Group 2, 5 years",{"v":1749,"d":"$1,749.00"},{"v":1574,"d":"$1,574.00"},"Subscription"]
["PCS-GW2-1M","PaperCut Subscription, Payment Gateway Group 2, monthly",{"v":33.5,"d":"$33.50"},{"v":30,"d":"$30.00"},"Subscription"]
["PaperCut Subscription Additional License Components- Payment Gateway, Group 3"]
["PCS-GW3-1Y","PaperCut Subscription, Payment Gateway Group 3, 1 year",{"v":1608,"d":"$1,608.00"},{"$f":"ROUND(C290*(1-0.1),0)","v":{"v":1447,"d":"$1,447.00"}},"Subscription"]
["PCS-GW3-2Y","PaperCut Subscription, Payment Gateway Group 3, 2 years",{"v":3216,"d":"$3,216.00"},{"v":2894,"d":"$2,894.00"},"Subscription"]
["PCS-GW3-3Y","PaperCut Subscription, Payment Gateway Group 3, 3 years",{"v":4583,"d":"$4,583.00"},{"v":4125,"d":"$4,125.00"},"Subscription"]
["PCS-GW3-4Y","PaperCut Subscription, Payment Gateway Group 3, 4 years",{"v":6110,"d":"$6,110.00"},{"v":5499,"d":"$5,499.00"},"Subscription"]
["PCS-GW3-5Y","PaperCut Subscription, Payment Gateway Group 3, 5 years",{"v":6995,"d":"$6,995.00"},{"v":6296,"d":"$6,296.00"},"Subscription"]
["PCS-GW3-1M","PaperCut Subscription, Payment Gateway Group 3, monthly",{"v":134,"d":"$134.00"},{"v":121,"d":"$121.00"},"Subscription"]
["PaperCut Subscription Additional License Components- Kiosk Connection License"]
["PCS-Kiosk-1Y","PaperCut Subscription, Kiosk Connection License, 1 year",{"v":150,"d":"$150.00"},{"$f":"ROUND(C297*(1-0.1),0)","v":{"v":135,"d":"$135.00"}},"Subscription"]
["PCS-Kiosk-2Y","PaperCut Subscription, Kiosk Connection License, 2 years",{"v":300,"d":"$300.00"},{"v":270,"d":"$270.00"},"Subscription"]
["PCS-Kiosk-3Y","PaperCut Subscription, Kiosk Connection License, 3 years",{"v":427,"d":"$427.00"},{"v":384,"d":"$384.00"},"Subscription"]
["PCS-Kiosk-4Y","PaperCut Subscription, Kiosk Connection License, 4 years",{"v":570,"d":"$570.00"},{"v":513,"d":"$513.00"},"Subscription"]
["PCS-Kiosk-5Y","PaperCut Subscription, Kiosk Connection License, 5 years",{"v":653,"d":"$653.00"},{"v":588,"d":"$588.00"},"Subscription"]
["PCS-Kiosk-1M","PaperCut Subscription, Kiosk Connection License, monthly",{"v":12.5,"d":"$12.50"},{"v":11,"d":"$11.00"},"Subscription"]
["PaperCut Subscription Additional License Components- Standard Connection License"]
["PCS-StdConn-1Y","PaperCut Subscription, Standard Connection License, 1 year",{"v":20,"d":"$20.00"},{"$f":"ROUND(C304*(1-0.1),0)","v":{"v":18,"d":"$18.00"}},"Subscription"]
["PCS-StdConn-2Y","PaperCut Subscription, Standard Connection License, 2 years",{"v":40,"d":"$40.00"},{"$f":"ROUND(C305*(1-0.1),0)","v":{"v":36,"d":"$36.00"}},"Subscription"]
["PCS-StdConn-3Y","PaperCut Subscription, Standard Connection License, 3 years",{"v":57,"d":"$57.00"},{"$f":"ROUND(C306*(1-0.1),0)","v":{"v":51,"d":"$51.00"}},"Subscription"]
["PCS-StdConn-4Y","PaperCut Subscription, Standard Connection License, 4 years",{"v":76,"d":"$76.00"},{"$f":"ROUND(C307*(1-0.1),0)","v":{"v":68,"d":"$68.00"}},"Subscription"]
["PCS-StdConn-5Y","PaperCut Subscription, Standard Connection License, 5 years",{"v":87,"d":"$87.00"},{"$f":"ROUND(C308*(1-0.1),0)","v":{"v":78,"d":"$78.00"}},"Subscription"]
["PCS-StdConn-1M","PaperCut Subscription, Standard Connection License, monthly",{"v":1.5,"d":"$1.50"},{"$f":"ROUND(C309*(1-0.05),1)","v":{"v":1.4,"d":"$1.40"}},"Subscription"]
["PaperCut Subscription Additional License Components- Advanced Connection License"]
["PCS-AdvConn-1Y","PaperCut Subscription, Advanced Connection License, 1 year",{"v":40,"d":"$40.00"},{"$f":"ROUND(C311*(1-0.1),0)","v":{"v":36,"d":"$36.00"}},"Subscription"]
["PCS-AdvConn-2Y","PaperCut Subscription, Advanced Connection License, 2 years",{"v":80,"d":"$80.00"},{"v":72,"d":"$72.00"},"Subscription"]
["PCS-AdvConn-3Y","PaperCut Subscription, Advanced Connection License, 3 years",{"v":114,"d":"$114.00"},{"v":103,"d":"$103.00"},"Subscription"]
["PCS-AdvConn-4Y","PaperCut Subscription, Advanced Connection License, 4 years",{"v":152,"d":"$152.00"},{"v":137,"d":"$137.00"},"Subscription"]
["PCS-AdvConn-5Y","PaperCut Subscription, Advanced Connection License, 5 years",{"v":174,"d":"$174.00"},{"v":157,"d":"$157.00"},"Subscription"]
["PCS-AdvConn-1M","PaperCut Subscription, Advanced Connection License, monthly",{"v":3.5,"d":"$3.50"},{"$f":"ROUND(C316*(1-0.05),1)","v":{"v":3.3,"d":"$3.30"}},"Subscription"]
["PaperCut Subscription Additional License Components-Epic Print Connector"]
["PCS-EPIC-1Y","PaperCut Subscription, Epic Print Connector, 1 year",{"v":1073,"d":"$1,073.00"},{"$f":"ROUND(C318*(1-0.1),0)","v":{"v":966,"d":"$966.00"}},"Subscription"]
["PCS-EPIC-2Y","PaperCut Subscription, Epic Print Connector, 2 years",{"v":2146,"d":"$2,146.00"},{"v":1931,"d":"$1,931.00"},"Subscription"]
["PCS-EPIC-3Y","PaperCut Subscription, Epic Print Connector, 3 years",{"v":3058,"d":"$3,058.00"},{"v":2752,"d":"$2,752.00"},"Subscription"]
["PCS-EPIC-4Y","PaperCut Subscription, Epic Print Connector, 4 years",{"v":4077,"d":"$4,077.00"},{"v":3669,"d":"$3,669.00"},"Subscription"]
["PCS-EPIC-5Y","PaperCut Subscription, Epic Print Connector, 5 years",{"v":4668,"d":"$4,668.00"},{"v":4201,"d":"$4,201.00"},"Subscription"]
["PCS-Epic-1M","PaperCut Subscription, Epic Print Connector, monthly",{"v":89,"d":"$89.00"},{"v":80,"d":"$80.00"},"Subscription"]
["PaperCut Subscription Cloud OCR with Document Processing"]
["PaperCut Subscription Cloud OCR with Document Processing 1-9 Devices (Price per Device)"]
["PCS-OCR-1Y","PaperCut Subscription Cloud OCR with Document Processing, 1-9, per device, 1 year",{"v":25,"d":"$25.00"},{"v":23,"d":"$23.00"},"Subscription"]
["PCS-OCR-2Y","PaperCut Subscription Cloud OCR with Document Processing, 1-9, per device, 2 years",{"v":50,"d":"$50.00"},{"v":45,"d":"$45.00"},"Subscription"]
["PCS-OCR-3Y","PaperCut Subscription Cloud OCR with Document Processing, 1-9, per device, 3 years",{"v":71,"d":"$71.00"},{"v":64,"d":"$64.00"},"Subscription"]
["PCS-OCR-4Y","PaperCut Subscription Cloud OCR with Document Processing, 1-9, per device, 4 years",{"v":95,"d":"$95.00"},{"v":86,"d":"$86.00"},"Subscription"]
["PCS-OCR-5Y","PaperCut Subscription Cloud OCR with Document Processing, 1-9, per device, 5 years",{"v":109,"d":"$109.00"},{"v":98,"d":"$98.00"},"Subscription"]
["PCS-OCR-1M","PaperCut Subscription Cloud OCR with Document Processing, 1-9, per device, monthly",{"v":2,"d":"$2.00"},{"$f":"ROUND(C331*(1-0.05),1)","v":{"v":1.9,"d":"$1.90"}},"Subscription"]
["PaperCut Subscription Cloud OCR with Document Processing 10-24 Devices (Price per Device)"]
["PCS-OCR10-1Y","PaperCut Subscription Cloud OCR with Document Processing, 10-24, per device, 1 year",{"v":22,"d":"$22.00"},{"v":20,"d":"$20.00"},"Subscription"]
["PCS-OCR10-2Y","PaperCut Subscription Cloud OCR with Document Processing, 10-24, per device, 2 years",{"v":44,"d":"$44.00"},{"v":40,"d":"$40.00"},"Subscription"]
["PCS-OCR10-3Y","PaperCut Subscription Cloud OCR with Document Processing, 10-24, per device, 3 years",{"v":63,"d":"$63.00"},{"v":57,"d":"$57.00"},"Subscription"]
["PCS-OCR10-4Y","PaperCut Subscription Cloud OCR with Document Processing, 10-24, per device, 4 years",{"v":84,"d":"$84.00"},{"v":76,"d":"$76.00"},"Subscription"]
["PCS-OCR10-5Y","PaperCut Subscription Cloud OCR with Document Processing, 10-24, per device, 5 years",{"v":96,"d":"$96.00"},{"v":86,"d":"$86.00"},"Subscription"]
["PCS-OCR10-1M","PaperCut Subscription Cloud OCR with Document Processing, 10-24, per device, monthly",{"v":2,"d":"$2.00"},{"$f":"ROUND(C338*(1-0.05),1)","v":{"v":1.9,"d":"$1.90"}},"Subscription"]
["PaperCut Subscription Cloud OCR with Document Processing 25-49 Devices (Price per Device)"]
["PCS-OCR25-1Y","PaperCut Subscription Cloud OCR with Document Processing, 25-49, per device, 1 year",{"v":19,"d":"$19.00"},{"v":17,"d":"$17.00"},"Subscription"]
["PCS-OCR25-2Y","PaperCut Subscription Cloud OCR with Document Processing, 25-49, per device, 2 years",{"v":38,"d":"$38.00"},{"v":34,"d":"$34.00"},"Subscription"]
["PCS-OCR25-3Y","PaperCut Subscription Cloud OCR with Document Processing, 25-49, per device, 3 years",{"v":54,"d":"$54.00"},{"v":49,"d":"$49.00"},"Subscription"]
["PCS-OCR25-4Y","PaperCut Subscription Cloud OCR with Document Processing, 25-49, per device, 4 years",{"v":72,"d":"$72.00"},{"v":65,"d":"$65.00"},"Subscription"]
["PCS-OCR25-5Y","PaperCut Subscription Cloud OCR with Document Processing, 25-49, per device, 5 years",{"v":83,"d":"$83.00"},{"v":75,"d":"$75.00"},"Subscription"]
["PCS-OCR25-1M","PaperCut Subscription Cloud OCR with Document Processing, 25-49, per device, monthly",{"v":1.5,"d":"$1.50"},{"$f":"ROUND(C345*(1-0.05),1)","v":{"v":1.4,"d":"$1.40"}},"Subscription"]
["PaperCut Subscription Cloud OCR with Document Processing 50-99 Devices (Price per Device)"]
["PCS-OCR50-1Y","PaperCut Subscription Cloud OCR with Document Processing, 50-99, per device, 1 year",{"v":16,"d":"$16.00"},{"v":14,"d":"$14.00"},"Subscription"]
["PCS-OCR50-2Y","PaperCut Subscription Cloud OCR with Document Processing, 50-99, per device, 2 years",{"v":32,"d":"$32.00"},{"v":29,"d":"$29.00"},"Subscription"]
["PCS-OCR50-3Y","PaperCut Subscription Cloud OCR with Document Processing, 50-99, per device, 3 years",{"v":45.5,"d":"$45.50"},{"v":41,"d":"$41.00"},"Subscription"]
["PCS-OCR50-4Y","PaperCut Subscription Cloud OCR with Document Processing, 50-99, per device, 4 years",{"v":61,"d":"$61.00"},{"v":55,"d":"$55.00"},"Subscription"]
["PCS-OCR50-5Y","PaperCut Subscription Cloud OCR with Document Processing, 50-99, per device, 5 years",{"v":70,"d":"$70.00"},{"v":63,"d":"$63.00"},"Subscription"]
["PCS-OCR50-1M","PaperCut Subscription Cloud OCR with Document Processing, 50-99, per device, monthly",{"v":1.5,"d":"$1.50"},{"$f":"ROUND(C352*(1-0.05),1)","v":{"v":1.4,"d":"$1.40"}},"Subscription"]
["PaperCut Subscription Cloud OCR with Document Processing 100-499 Devices (Price per Device)"]
["PCS-OCR100-1Y","PaperCut Subscription Cloud OCR with Document Processing, 100-499, per device, 1 year",{"v":14,"d":"$14.00"},{"v":13,"d":"$13.00"},"Subscription"]
["PCS-OCR100-2Y","PaperCut Subscription Cloud OCR with Document Processing, 100-499, per device, 2 years",{"v":28,"d":"$28.00"},{"v":25,"d":"$25.00"},"Subscription"]
["PCS-OCR100-3Y","PaperCut Subscription Cloud OCR with Document Processing, 100-499, per device, 3 years",{"v":40,"d":"$40.00"},{"v":36,"d":"$36.00"},"Subscription"]
["PCS-OCR100-4Y","PaperCut Subscription Cloud OCR with Document Processing, 100-499, per device, 4 years",{"v":53,"d":"$53.00"},{"v":48,"d":"$48.00"},"Subscription"]
["PCS-OCR100-5Y","PaperCut Subscription Cloud OCR with Document Processing, 100-499, per device, 5 years",{"v":61,"d":"$61.00"},{"v":55,"d":"$55.00"},"Subscription"]
["PCS-OCR100-1M","PaperCut Subscription Cloud OCR with Document Processing, 100-499, per device, monthly",{"v":1,"d":"$1.00"},{"$f":"ROUND(C359*(1-0.05),2)","v":{"v":0.95,"d":"$0.95"}},"Subscription"]
["PaperCut Subscription Cloud OCR with Document Processing 500-999 Devices (Price per Device)"]
["PCS-OCR500-1Y","PaperCut Subscription Cloud OCR with Document Processing, 500-999, per device, 1 year",{"v":13,"d":"$13.00"},{"v":12,"d":"$12.00"},"Subscription"]
["PCS-OCR500-2Y","PaperCut Subscription Cloud OCR with Document Processing, 500-999, per device, 2 years",{"v":26,"d":"$26.00"},{"v":23,"d":"$23.00"},"Subscription"]
["PCS-OCR500-3Y","PaperCut Subscription Cloud OCR with Document Processing, 500-999, per device, 3 years",{"v":37,"d":"$37.00"},{"$f":"ROUND(C363*(1-0.1),0)","v":{"v":33,"d":"$33.00"}},"Subscription"]
["PCS-OCR500-4Y","PaperCut Subscription Cloud OCR with Document Processing, 500-999, per device, 4 years",{"v":49.5,"d":"$49.50"},{"$f":"ROUND(C364*(1-0.1),0)","v":{"v":45,"d":"$45.00"}},"Subscription"]
["PCS-OCR500-5Y","PaperCut Subscription Cloud OCR with Document Processing, 500-999, per device, 5 years",{"v":57,"d":"$57.00"},{"$f":"ROUND(C365*(1-0.1),0)","v":{"v":51,"d":"$51.00"}},"Subscription"]
["PCS-OCR500-1M","PaperCut Subscription Cloud OCR with Document Processing, 500-999, per device, monthly",{"v":1,"d":"$1.00"},{"$f":"ROUND(C366*(1-0.05),2)","v":{"v":0.95,"d":"$0.95"}},"Subscription"]
["PaperCut Subscription Cloud OCR with Document Processing 1000+ Devices (Price per Device)"]
["PCS-OCR1K-1Y","PaperCut Subscription Cloud OCR with Document Processing, 1000+, per device, 1 year",{"v":12,"d":"$12.00"},{"$f":"ROUND(C368*(1-0.1),0)","v":{"v":11,"d":"$11.00"}},"Subscription"]
["PCS-OCR1K-2Y","PaperCut Subscription Cloud OCR with Document Processing, 1000+, per device, 2 years",{"v":24,"d":"$24.00"},{"v":22,"d":"$22.00"},"Subscription"]
["PCS-OCR1K-3Y","PaperCut Subscription Cloud OCR with Document Processing, 1000+, per device, 3 years",{"v":34,"d":"$34.00"},{"v":31,"d":"$31.00"},"Subscription"]
["PCS-OCR1K-4Y","PaperCut Subscription Cloud OCR with Document Processing, 1000+, per device, 4 years",{"v":45.5,"d":"$45.50"},{"v":41,"d":"$41.00"},"Subscription"]
["PCS-OCR1K-5Y","PaperCut Subscription Cloud OCR with Document Processing, 1000+, per device, 5 years",{"v":52,"d":"$52.00"},{"v":47,"d":"$47.00"},"Subscription"]
["PCS-OCR1K-1M","PaperCut Subscription Cloud OCR with Document Processing, 1000+, per device, monthly",{"v":1,"d":"$1.00"},{"$f":"ROUND(C373*(1-0.05),2)","v":{"v":0.95,"d":"$0.95"}},"Subscription"]
["PaperCut Subscription Additional License Components-Fax Connectors, 10 Devices (Price per Device)"]
["PCS-FAX-1Y","PaperCut Subscription Fax Connectors, 10 device connection minimum, 1 year",{"v":265,"d":"$265.00"},{"$f":"ROUND(C375*(1-0.1),0)","v":{"v":239,"d":"$239.00"}},"Subscription"]
["PCS-FAX-2Y","PaperCut Subscription Fax Connectors, 10 device connection minimum, 2 years",{"v":530,"d":"$530.00"},{"v":477,"d":"$477.00"},"Subscription"]
["PCS-FAX-3Y","PaperCut Subscription Fax Connectors, 10 device connection minimum, 3 years",{"v":750,"d":"$750.00"},{"v":675,"d":"$675.00"},"Subscription"]
["PCS-FAX-4Y","PaperCut Subscription Fax Connectors, 10 device connection minimum, 4 years",{"v":1000,"d":"$1,000.00"},{"v":900,"d":"$900.00"},"Subscription"]
["PCS-FAX-5Y","PaperCut Subscription Fax Connectors, 10 device connection minimum, 5 years",{"v":1150,"d":"$1,150.00"},{"v":1035,"d":"$1,035.00"},"Subscription"]
["PCS-FAX-1M","PaperCut Subscription Fax Connectors, 10 device connection minimum, monthly",{"v":20,"d":"$20.00"},{"v":18,"d":"$18.00"},"Subscription"]
["PaperCut Subscription Additional License Components-Fax Connectors, 11-49 Devices (Price per Device)"]
["PCS-FAX10-1Y","PaperCut Subscription Fax Connectors, 11-49, per device, 1 year",{"v":26.5,"d":"$26.50"},{"$f":"ROUND(C382*(1-0.1),0)","v":{"v":24,"d":"$24.00"}},"Subscription"]
["PCS-FAX10-2Y","PaperCut Subscription Fax Connectors, 11-49, per device, 2 years",{"v":53,"d":"$53.00"},{"v":48,"d":"$48.00"},"Subscription"]
["PCS-FAX10-3Y","PaperCut Subscription Fax Connectors, 11-49, per device, 3 years",{"v":75,"d":"$75.00"},{"v":68,"d":"$68.00"},"Subscription"]
["PCS-FAX10-4Y","PaperCut Subscription Fax Connectors, 11-49, per device, 4 years",{"v":100,"d":"$100.00"},{"v":90,"d":"$90.00"},"Subscription"]
["PCS-FAX10-5Y","PaperCut Subscription Fax Connectors, 11-49, per device, 5 years",{"v":115,"d":"$115.00"},{"v":104,"d":"$104.00"},"Subscription"]
["PCS-FAX10-1M","PaperCut Subscription Fax Connectors, 11-49, per device, monthly",{"v":2,"d":"$2.00"},{"$f":"ROUND(C387*(1-0.05),1)","v":{"v":1.9,"d":"$1.90"}},"Subscription"]
["PaperCut Subscription Additional License Components-Fax Connectors, 50-249 Devices (Price per Device)"]
["PCS-FAX50-1Y","PaperCut Subscription Fax Connectors, 50-249, per device, 1 year",{"v":16,"d":"$16.00"},{"$f":"ROUND(C389*(1-0.1),0)","v":{"v":14,"d":"$14.00"}},"Subscription"]
["PCS-FAX50-2Y","PaperCut Subscription Fax Connectors, 50-249, per device, 2 years",{"v":31.5,"d":"$31.50"},{"$f":"ROUND(C390*(1-0.1),0)","v":{"v":28,"d":"$28.00"}},"Subscription"]
["PCS-FAX50-3Y","PaperCut Subscription Fax Connectors, 50-249, per device, 3 years",{"v":45,"d":"$45.00"},{"$f":"ROUND(C391*(1-0.1),0)","v":{"v":41,"d":"$41.00"}},"Subscription"]
["PCS-FAX50-4Y","PaperCut Subscription Fax Connectors, 50-249, per device, 4 years",{"v":60,"d":"$60.00"},{"$f":"ROUND(C392*(1-0.1),0)","v":{"v":54,"d":"$54.00"}},"Subscription"]
["PCS-FAX50-5Y","PaperCut Subscription Fax Connectors, 50-249, per device, 5 years",{"v":69,"d":"$69.00"},{"$f":"ROUND(C393*(1-0.1),0)","v":{"v":62,"d":"$62.00"}},"Subscription"]
["PCS-FAX50-1M","PaperCut Subscription Fax Connectors, 50-249, per device, monthly",{"v":1.5,"d":"$1.50"},{"$f":"ROUND(C394*(1-0.05),1)","v":{"v":1.4,"d":"$1.40"}},"Subscription"]
["PaperCut Subscription Additional License Components-Fax Connectors, 250-399 Devices (Price per Device)"]
["PCS-FAX250-1Y","PaperCut Subscription Fax Connectors, 250-399, per device, 1 year",{"v":8,"d":"$8.00"},{"$f":"ROUND(C396*(1-0.1),0)","v":{"v":7,"d":"$7.00"}},"Subscription"]
["PCS-FAX250-2Y","PaperCut Subscription Fax Connectors, 250-399, per device, 2 years",{"v":16,"d":"$16.00"},{"$f":"ROUND(C397*(1-0.1),0)","v":{"v":14,"d":"$14.00"}},"Subscription"]
["PCS-FAX250-3Y","PaperCut Subscription Fax Connectors, 250-399, per device, 3 years",{"v":22.5,"d":"$22.50"},{"$f":"ROUND(C398*(1-0.1),0)","v":{"v":20,"d":"$20.00"}},"Subscription"]
["PCS-FAX250-4Y","PaperCut Subscription Fax Connectors, 250-399, per device, 4 years",{"v":30,"d":"$30.00"},{"$f":"ROUND(C399*(1-0.1),0)","v":{"v":27,"d":"$27.00"}},"Subscription"]
["PCS-FAX250-5Y","PaperCut Subscription Fax Connectors, 250-399, per device, 5 years",{"v":34.5,"d":"$34.50"},{"$f":"ROUND(C400*(1-0.1),0)","v":{"v":31,"d":"$31.00"}},"Subscription"]
["PCS-FAX250-1M","PaperCut Subscription Fax Connectors, 250-399, per device, monthly",{"v":0.66,"d":"$0.66"},{"$f":"ROUND(C401*(1-0.05),2)","v":{"v":0.63,"d":"$0.63"}},"Subscription"]
["PaperCut Subscription Additional License Components-Fax Connectors, 400+ Devices (Price per Device)"]
["PCS-FAX400-1Y","PaperCut Subscription Fax Connectors, 400+, per device, 1 year",{"v":6.5,"d":"$6.50"},{"$f":"ROUND(C403*(1-0.1),0)","v":{"v":6,"d":"$6.00"}},"Subscription"]
["PCS-FAX400-2Y","PaperCut Subscription Fax Connectors, 400+, per device, 2 years",{"v":13,"d":"$13.00"},{"$f":"ROUND(C404*(1-0.1),0)","v":{"v":12,"d":"$12.00"}},"Subscription"]
["PCS-FAX400-3Y","PaperCut Subscription Fax Connectors, 400+, per device, 3 years",{"v":19,"d":"$19.00"},{"$f":"ROUND(C405*(1-0.1),0)","v":{"v":17,"d":"$17.00"}},"Subscription"]
["PCS-FAX400-4Y","PaperCut Subscription Fax Connectors, 400+, per device, 4 years",{"v":25,"d":"$25.00"},{"$f":"ROUND(C406*(1-0.1),0)","v":{"v":23,"d":"$23.00"}},"Subscription"]
["PCS-FAX400-5Y","PaperCut Subscription Fax Connectors, 400+, per device, 5 years",{"v":28.5,"d":"$28.50"},{"$f":"ROUND(C407*(1-0.1),0)","v":{"v":26,"d":"$26.00"}},"Subscription"]
["PCS-FAX400-1M","PaperCut Subscription Fax Connectors, 400+, per device, monthly",{"v":0.55,"d":"$0.55"},{"$f":"ROUND(C408*(1-0.05),2)","v":{"v":0.52,"d":"$0.52"}},"Subscription"]
[]
["Fax Connector Add-Ons"]
["Vendor Part #","Description","MSRP","NASPO Price","Type"]
["PaperCut"]
["Additional Fax Connector Addon Subscription Packs, 10 Devices (Price per Device)"]
["ADDFC-SUB10-1Y","Additional Fax Connector Addon Subscription packs, 10 device pack, 1 year",{"v":45,"d":"$45.00"},{"$f":"ROUND(C414*(1-0.1),0)","v":{"v":41,"d":"$41.00"}},"Subscription"]
["ADDFC-SUB10-2Y","Additional Fax Connector Addon Subscription packs, 10 device pack, 1 year",{"v":83,"d":"$83.00"},{"$f":"ROUND(C415*(1-0.1),0)","v":{"v":75,"d":"$75.00"}},"Subscription"]
["ADDFC-SUB10-3Y","Additional Fax Connector Addon Subscription packs, 10 device pack, 1 year",{"v":120,"d":"$120.00"},{"$f":"ROUND(C416*(1-0.1),0)","v":{"v":108,"d":"$108.00"}},"Subscription"]
["ADDFC-SUB10-4Y","Additional Fax Connector Addon Subscription packs, 10 device pack, 1 year",{"v":160,"d":"$160.00"},{"$f":"ROUND(C417*(1-0.1),0)","v":{"v":144,"d":"$144.00"}},"Subscription"]
["ADDFC-SUB10-5Y","Additional Fax Connector Addon Subscription packs, 10 device pack, 1 year",{"v":195,"d":"$195.00"},{"$f":"ROUND(C418*(1-0.1),0)","v":{"v":176,"d":"$176.00"}},"Subscription"]
["ADDFC-SUB10-1M","Additional Fax Connector Addon Subscription packs, 10 device pack, monthly",{"v":3.75,"d":"$3.75"},{"$f":"ROUND(C419*(1-0.05),1)","v":{"v":3.6,"d":"$3.60"}},"Subscription"]
["Additional Fax Connector Addon Subscription Packs, 100 Devices (Price per Device)"]
["ADDFC-SUB100-1Y","Additional Fax Connector Addon Subscription packs, 100 device pack, 1 year",{"v":325,"d":"$325.00"},{"$f":"ROUND(C421*(1-0.1),0)","v":{"v":293,"d":"$293.00"}},"Subscription"]
["ADDFC-SUB100-2Y","Additional Fax Connector Addon Subscription packs, 100 device pack, 2 years",{"v":600,"d":"$600.00"},{"v":540,"d":"$540.00"},"Subscription"]
["ADDFC-SUB100-3Y","Additional Fax Connector Addon Subscription packs, 100 device pack, 3 years",{"v":875,"d":"$875.00"},{"v":788,"d":"$788.00"},"Subscription"]
["ADDFC-SUB100-4Y","Additional Fax Connector Addon Subscription packs, 100 device pack, 4 years",{"v":1150,"d":"$1,150.00"},{"v":1035,"d":"$1,035.00"},"Subscription"]
["ADDFC-SUB100-5Y","Additional Fax Connector Addon Subscription packs, 100 device pack, 5 years",{"v":1395,"d":"$1,395.00"},{"v":1256,"d":"$1,256.00"},"Subscription"]
["ADDFC-SUB100-1M","Additional Fax Connector Addon Subscription packs, 100 device pack, monthly",{"v":27,"d":"$27.00"},{"v":24,"d":"$24.00"},"Subscription"]
["Additional Fax Connector Addon Subscription Packs, Unlimited"]
["ADDFC-SUBUNL-1Y","Additional Fax Connector Addon Subscription packs, Unlimited device pack, 1 year",{"v":825,"d":"$825.00"},{"$f":"ROUND(C428*(1-0.1),0)","v":{"v":743,"d":"$743.00"}},"Subscription"]
["ADDFC-SUBUNL-2Y","Additional Fax Connector Addon Subscription packs, Unlimited device pack, 2 years",{"v":1525,"d":"$1,525.00"},{"v":1373,"d":"$1,373.00"},"Subscription"]
["ADDFC-SUBUNL-3Y","Additional Fax Connector Addon Subscription packs, Unlimited device pack, 3 years",{"v":2220,"d":"$2,220.00"},{"v":1998,"d":"$1,998.00"},"Subscription"]
["ADDFC-SUBUNL-4Y","Additional Fax Connector Addon Subscription packs, Unlimited device pack, 4 years",{"v":2920,"d":"$2,920.00"},{"v":2628,"d":"$2,628.00"},"Subscription"]
["ADDFC-SUBUNL-5Y","Additional Fax Connector Addon Subscription packs, Unlimited device pack, 5 years",{"v":3550,"d":"$3,550.00"},{"v":3195,"d":"$3,195.00"},"Subscription"]
["ADDFC-SUBUNL-1M","Additional Fax Connector Addon Subscription packs, Unlimited device pack, monthly",{"v":69,"d":"$69.00"},{"v":62,"d":"$62.00"},"Subscription"]
[]
["Annual Maintenance & Support (%'s based off total retail value of subscription license)"]
["Vendor Part #","Description","MSRP","NASPO Price","Type"]
["Annual Maintenance & Support"]
["ACDI Subscription Software Maintenance and Support"]
["AMSS-PL","ACDI Subscription Plus software maintenance and support",{"v":0.1,"d":"$0.10"},{"$f":"ROUNDDOWN(C439*(1-0.05),2)","v":{"v":0.09,"d":"$0.09"}},"Subscription"]
["AMSS-ADV","ACDI Subscription Advanced software maintenance and support",{"v":0.14,"d":"$0.14"},{"$f":"ROUNDDOWN(C440*(1-0.05),2)","v":{"v":0.13,"d":"$0.13"}},"Subscription"]
["AMSS-247","ACDI Subscription 24/7 software maintenance and support",{"v":0.25,"d":"$0.25"},{"v":0.23,"d":"$0.23"},"Subscription"]

{"sheet":"PaperCut Hive","index":5,"n_rows":391,"n_cols":7,"rows_kept":391,"merged":[[1,0,1,4],[2,0,2,4],[4,0,4,4]]}
["Return To Table of Contents"]
["PaperCut Hive"]
[]
[]
["PaperCut Hive is a cloud-native, full embedded print management software for businesses that need secure and flexible printing solution to track, control, and enable print copy scan."]
[]
[]
["PAPERCUT HIVE FULL EMBEDDED (M&S INCLUDED)"]
["Vendor Part #","Description","MSRP","NASPO Price","Type"]
["PaperCut Hive Commercial Device Licenses 1-9 Devices (Price per Device)"]
["PCH-FULLC-1Y","PaperCut Hive Full Embedded Subscription, Comm 1-9, per device, 1 year",{"v":252,"d":"$252.00"},{"$f":"ROUND(C11*(1-0.1),0)","v":{"v":227,"d":"$227.00"}},"Subscription"]
["PCH-FULLC-2Y","PaperCut Hive Full Embedded Subscription, Comm 1-9, per device, 2 years",{"v":504,"d":"$504.00"},{"v":454,"d":"$454.00"},"Subscription"]
["PCH-FULLC-3Y","PaperCut Hive Full Embedded Subscription, Comm 1-9, per device, 3 years",{"v":718,"d":"$718.00"},{"v":646,"d":"$646.00"},"Subscription"]
["PCH-FULLC-4Y","PaperCut Hive Full Embedded Subscription, Comm 1-9, per device, 4 years",{"v":958,"d":"$958.00"},{"v":862,"d":"$862.00"},"Subscription",null," "]
["PCH-FULLC-5Y","PaperCut Hive Full Embedded Subscription, Comm 1-9, per device, 5 years",{"v":1096,"d":"$1,096.00"},{"v":986,"d":"$986.00"},"Subscription"]
["PCH-FULLC-1M","PaperCut Hive Full Embedded Subscription, Comm 1-9, per device, monthly",{"v":21,"d":"$21.00"},{"v":19,"d":"$19.00"},"Subscription"]
["PaperCut Hive Commercial Device Licenses 10-24 Devices (Price per Device)"]
["PCH-FULLC10-1Y","PaperCut Hive Full Embedded Subscription, Comm 10-24, per device, 1 year",{"v":221,"d":"$221.00"},{"v":199,"d":"$199.00"},"Subscription"]
["PCH-FULLC10-2Y","PaperCut Hive Full Embedded Subscription, Comm 10-24, per device, 2 years",{"v":442,"d":"$442.00"},{"v":398,"d":"$398.00"},"Subscription"]
["PCH-FULLC10-3Y","PaperCut Hive Full Embedded Subscription, Comm 10-24, per device, 3 years",{"v":630,"d":"$630.00"},{"v":567,"d":"$567.00"},"Subscription"]
["PCH-FULLC10-4Y","PaperCut Hive Full Embedded Subscription, Comm 10-24, per device, 4 years",{"v":840,"d":"$840.00"},{"v":756,"d":"$756.00"},"Subscription"]
["PCH-FULLC10-5Y","PaperCut Hive Full Embedded Subscription, Comm 10-24, per device, 5 years",{"v":961,"d":"$961.00"},{"v":865,"d":"$865.00"},"Subscription"]
["PCH-FULLC10-1M","PaperCut Hive Full Embedded Subscription, Comm 10-24, per device, monthly",{"v":18.5,"d":"$18.50"},{"v":17,"d":"$17.00"},"Subscription"]
["PaperCut Hive Commercial Device Licenses 25-49 Devices (Price per Device)"]
["PCH-FULLC25-1Y","PaperCut Hive Full Embedded Subscription, Comm 25-49, per device, 1 year",{"v":193,"d":"$193.00"},{"v":174,"d":"$174.00"},"Subscription"]
["PCH-FULLC25-2Y","PaperCut Hive Full Embedded Subscription, Comm 25-49, per device, 2 years",{"v":386,"d":"$386.00"},{"v":347,"d":"$347.00"},"Subscription"]
["PCH-FULLC25-3Y","PaperCut Hive Full Embedded Subscription, Comm 25-49, per device, 3 years",{"v":550,"d":"$550.00"},{"v":495,"d":"$495.00"},"Subscription"]
["PCH-FULLC25-4Y","PaperCut Hive Full Embedded Subscription, Comm 25-49, per device, 4 years",{"v":733,"d":"$733.00"},{"v":660,"d":"$660.00"},"Subscription"]
["PCH-FULLC25-5Y","PaperCut Hive Full Embedded Subscription, Comm 25-49, per device, 5 years",{"v":840,"d":"$840.00"},{"v":756,"d":"$756.00"},"Subscription"]
["PCH-FULLC25-1M","PaperCut Hive Full Embedded Subscription, Comm 25-49, per device, monthly",{"v":16,"d":"$16.00"},{"v":14,"d":"$14.00"},"Subscription"]
["PaperCut Hive Commercial Device Licenses 50-99 Devices (Price per Device)"]
["PCH-FULLC50-1Y","PaperCut Hive Full Embedded Subscription, Comm 50-99, per device, 1 year",{"v":163,"d":"$163.00"},{"v":147,"d":"$147.00"},"Subscription"]
["PCH-FULLC50-2Y","PaperCut Hive Full Embedded Subscription, Comm 50-99, per device, 2 years",{"v":326,"d":"$326.00"},{"v":293,"d":"$293.00"},"Subscription"]
["PCH-FULLC50-3Y","PaperCut Hive Full Embedded Subscription, Comm 50-99, per device, 3 years",{"v":465,"d":"$465.00"},{"v":419,"d":"$419.00"},"Subscription"]
["PCH-FULLC50-4Y","PaperCut Hive Full Embedded Subscription, Comm 50-99, per device, 4 years",{"v":619,"d":"$619.00"},{"v":557,"d":"$557.00"},"Subscription"]
["PCH-FULLC50-5Y","PaperCut Hive Full Embedded Subscription, Comm 50-99, per device, 5 years",{"v":709,"d":"$709.00"},{"v":638,"d":"$638.00"},"Subscription"]
["PCH-FULLC50-1M","PaperCut Hive Full Embedded Subscription, Comm 50-99, per device, monthly",{"v":13.5,"d":"$13.50"},{"v":12,"d":"$12.00"},"Subscription"]
["PaperCut Hive Commercial Device Licenses 100-499 Devices (Price per Device)"]
["PCH-FULLC100-1Y","PaperCut Hive Full Embedded Subscription, Comm 100-499, per device, 1 year",{"v":136,"d":"$136.00"},{"v":122,"d":"$122.00"},"Subscription"]
["PCH-FULLC100-2Y","PaperCut Hive Full Embedded Subscription, Comm 100-499, per device, 2 years",{"v":272,"d":"$272.00"},{"v":245,"d":"$245.00"},"Subscription"]
["PCH-FULLC100-3Y","PaperCut Hive Full Embedded Subscription, Comm 100-499, per device, 3 years",{"v":388,"d":"$388.00"},{"v":349,"d":"$349.00"},"Subscription"]
["PCH-FULLC100-4Y","PaperCut Hive Full Embedded Subscription, Comm 100-499, per device, 4 years",{"v":517,"d":"$517.00"},{"v":465,"d":"$465.00"},"Subscription"]
["PCH-FULLC100-5Y","PaperCut Hive Full Embedded Subscription, Comm 100-499, per device, 5 years",{"v":592,"d":"$592.00"},{"v":533,"d":"$533.00"},"Subscription"]
["PCH-FULLC100-1M","PaperCut Hive Full Embedded Subscription, Comm 100-499, per device, monthly",{"v":11.5,"d":"$11.50"},{"v":10,"d":"$10.00"},"Subscription"]
["PaperCut Hive Commercial Device Licenses 500-999 Devices (Price per Device)"]
["PCH-FULLC500-1Y","PaperCut Hive Full Embedded Subscription, Comm 500-999, per device, 1 year",{"v":131,"d":"$131.00"},{"v":118,"d":"$118.00"},"Subscription"]
["PCH-FULLC500-2Y","PaperCut Hive Full Embedded Subscription, Comm 500-999, per device, 2 years",{"v":262,"d":"$262.00"},{"v":236,"d":"$236.00"},"Subscription"]
["PCH-FULLC500-3Y","PaperCut Hive Full Embedded Subscription, Comm 500-999, per device, 3 years",{"v":373,"d":"$373.00"},{"v":336,"d":"$336.00"},"Subscription"]
["PCH-FULLC500-4Y","PaperCut Hive Full Embedded Subscription, Comm 500-999, per device, 4 years",{"v":498,"d":"$498.00"},{"v":448,"d":"$448.00"},"Subscription"]
["PCH-FULLC500-5Y","PaperCut Hive Full Embedded Subscription, Comm 500-999, per device, 5 years",{"v":570,"d":"$570.00"},{"v":513,"d":"$513.00"},"Subscription"]
["PCH-FULLC500-1M","PaperCut Hive Full Embedded Subscription, Comm 500-999, per device, monthly",{"v":11,"d":"$11.00"},{"v":10,"d":"$10.00"},"Subscription"]
["PaperCut Hive Commercial Device Licenses 1000+ Devices (Price per Device)"]
["PCH-FULLC1K-1Y","PaperCut Hive Full Embedded Subscription, Comm 1000+, per device, 1 year",{"v":121,"d":"$121.00"},{"v":109,"d":"$109.00"},"Subscription"]
["PCH-FULLC1K-2Y","PaperCut Hive Full Embedded Subscription, Comm 1000+, per device, 2 years",{"v":242,"d":"$242.00"},{"v":218,"d":"$218.00"},"Subscription"]
["PCH-FULLC1K-3Y","PaperCut Hive Full Embedded Subscription, Comm 1000+, per device, 3 years",{"v":345,"d":"$345.00"},{"v":311,"d":"$311.00"},"Subscription"]
["PCH-FULLC1K-4Y","PaperCut Hive Full Embedded Subscription, Comm 1000+, per device, 4 years",{"v":460,"d":"$460.00"},{"v":414,"d":"$414.00"},"Subscription"]
["PCH-FULLC1K-5Y","PaperCut Hive Full Embedded Subscription, Comm 1000+, per device, 5 years",{"v":526,"d":"$526.00"},{"v":473,"d":"$473.00"},"Subscription"]
["PCH-FULLC1K-1M","PaperCut Hive Full Embedded Subscription, Comm 1000+, per device, monthly",{"v":10,"d":"$10.00"},{"v":9,"d":"$9.00"},"Subscription"]
[]
["PAPERCUT HIVE COMMERCIAL LITE RELEASE"]
["Vendor Part #","Description","MSRP","NASPO Price","Type"]
["PaperCut Hive Lite Commercial Device Licenses 1-9 Devices (Price per Device)"]
["PCH-LITEC-1Y","PaperCut Hive Lite Release Subscription, Comm 1-9, per device, 1 year",{"v":126,"d":"$126.00"},{"$f":"ROUND(C63*(1-0.1),0)","v":{"v":113,"d":"$113.00"}},"Subscription"]
["PCH-LITEC-2Y","PaperCut Hive Lite Release Subscription, Comm 1-9, per device, 2 years",{"v":252,"d":"$252.00"},{"v":227,"d":"$227.00"},"Subscription"]
["PCH-LITEC-3Y","PaperCut Hive Lite Release Subscription, Comm 1-9, per device, 3 years",{"v":359,"d":"$359.00"},{"v":323,"d":"$323.00"},"Subscription"]
["PCH-LITEC-4Y","PaperCut Hive Lite Release Subscription, Comm 1-9, per device, 4 years",{"v":479,"d":"$479.00"},{"v":431,"d":"$431.00"},"Subscription"]
["PCH-LITEC-5Y","PaperCut Hive Lite Release Subscription, Comm 1-9, per device, 5 years",{"v":548,"d":"$548.00"},{"v":493,"d":"$493.00"},"Subscription"]
["PCH-LITEC-1M","PaperCut Hive Lite Release Subscription, Comm 1-9, per device, monthly",{"v":10.5,"d":"$10.50"},{"v":9,"d":"$9.00"},"Subscription"]
["PaperCut Hive Lite Commercial Device Licenses 10-24 Devices (Price per Device)"]
["PCH-LITEC10-1Y","PaperCut Hive Lite Release Subscription, Comm 10-24, per device, 1 year",{"v":111,"d":"$111.00"},{"$f":"ROUND(C70*(1-0.1),0)","v":{"v":100,"d":"$100.00"}},"Subscription"]
["PCH-LITEC10-2Y","PaperCut Hive Lite Release Subscription, Comm 10-24, per device, 2 years",{"v":222,"d":"$222.00"},{"v":200,"d":"$200.00"},"Subscription"]
["PCH-LITEC10-3Y","PaperCut Hive Lite Release Subscription, Comm 10-24, per device, 3 years",{"v":316,"d":"$316.00"},{"v":284,"d":"$284.00"},"Subscription"]
["PCH-LITEC10-4Y","PaperCut Hive Lite Release Subscription, Comm 10-24, per device, 4 years",{"v":422,"d":"$422.00"},{"v":380,"d":"$380.00"},"Subscription"]
["PCH-LITEC10-5Y","PaperCut Hive Lite Release Subscription, Comm 10-24, per device, 5 years",{"v":483,"d":"$483.00"},{"v":435,"d":"$435.00"},"Subscription"]
["PCH-LITEC10-1M","PaperCut Hive Lite Release Subscription, Comm 10-24, per device, monthly",{"v":9.5,"d":"$9.50"},{"v":9,"d":"$9.00"},"Subscription"]
["PaperCut Hive Lite Commercial Device Licenses 25-49 Devices (Price per Device)"]
["PCH-LITEC25-1Y","PaperCut Hive Lite Release Subscription, Comm 25-49, per device, 1 year",{"v":96,"d":"$96.00"},{"v":86,"d":"$86.00"},"Subscription"]
["PCH-LITEC25-2Y","PaperCut Hive Lite Release Subscription, Comm 25-49, per device, 2 years",{"v":192,"d":"$192.00"},{"v":173,"d":"$173.00"},"Subscription"]
["PCH-LITEC25-3Y","PaperCut Hive Lite Release Subscription, Comm 25-49, per device, 3 years",{"v":274,"d":"$274.00"},{"v":247,"d":"$247.00"},"Subscription"]
["PCH-LITEC25-4Y","PaperCut Hive Lite Release Subscription, Comm 25-49, per device, 4 years",{"v":365,"d":"$365.00"},{"v":329,"d":"$329.00"},"Subscription"]
["PCH-LITEC25-5Y","PaperCut Hive Lite Release Subscription, Comm 25-49, per device, 5 years",{"v":418,"d":"$418.00"},{"v":376,"d":"$376.00"},"Subscription"]
["PCH-LITEC25-1M","PaperCut Hive Lite Release Subscription, Comm 25-49, per device, monthly",{"v":8,"d":"$8.00"},{"v":7,"d":"$7.00"},"Subscription"]
["PaperCut Hive Lite Commercial Device Licenses 50-99 Devices (Price per Device)"]
["PCH-LITEC50-1Y","PaperCut Hive Lite Release Subscription, Comm 50-99, per device, 1 year",{"v":81,"d":"$81.00"},{"$f":"ROUND(C84*(1-0.1),0)","v":{"v":73,"d":"$73.00"}},"Subscription"]
["PCH-LITEC50-2Y","PaperCut Hive Lite Release Subscription, Comm 50-99, per device, 2 years",{"v":162,"d":"$162.00"},{"v":146,"d":"$146.00"},"Subscription"]
["PCH-LITEC50-3Y","PaperCut Hive Lite Release Subscription, Comm 50-99, per device, 3 years",{"v":231,"d":"$231.00"},{"v":208,"d":"$208.00"},"Subscription"]
["PCH-LITEC50-4Y","PaperCut Hive Lite Release Subscription, Comm 50-99, per device, 4 years",{"v":308,"d":"$308.00"},{"v":277,"d":"$277.00"},"Subscription"]
["PCH-LITEC50-5Y","PaperCut Hive Lite Release Subscription, Comm 50-99, per device, 5 years",{"v":352,"d":"$352.00"},{"v":317,"d":"$317.00"},"Subscription"]
["PCH-LITEC50-1M","PaperCut Hive Lite Release Subscription, Comm 50-99, per device, monthly",{"v":7,"d":"$7.00"},{"v":6,"d":"$6.00"},"Subscription"]
["PaperCut Hive Lite Commercial Device Licenses 100-499 Devices (Price per Device)"]
["PCH-LITEC100-1Y","PaperCut Hive Lite Release Subscription, Comm 100-499, per device, 1 year",{"v":68,"d":"$68.00"},{"$f":"ROUND(C91*(1-0.1),0)","v":{"v":61,"d":"$61.00"}},"Subscription"]
["PCH-LITEC100-2Y","PaperCut Hive Lite Release Subscription, Comm 100-499, per device, 2 years",{"v":136,"d":"$136.00"},{"$f":"ROUND(C92*(1-0.1),0)","v":{"v":122,"d":"$122.00"}},"Subscription"]
["PCH-LITEC100-3Y","PaperCut Hive Lite Release Subscription, Comm 100-499, per device, 3 years",{"v":194,"d":"$194.00"},{"$f":"ROUND(C93*(1-0.1),0)","v":{"v":175,"d":"$175.00"}},"Subscription"]
["PCH-LITEC100-4Y","PaperCut Hive Lite Release Subscription, Comm 100-499, per device, 4 years",{"v":258,"d":"$258.00"},{"$f":"ROUND(C94*(1-0.1),0)","v":{"v":232,"d":"$232.00"}},"Subscription"]
["PCH-LITEC100-5Y","PaperCut Hive Lite Release Subscription, Comm 100-499, per device, 5 years",{"v":296,"d":"$296.00"},{"$f":"ROUND(C95*(1-0.1),0)","v":{"v":266,"d":"$266.00"}},"Subscription"]
["PCH-LITEC100-1M","PaperCut Hive Lite Release Subscription, Comm 100-499, per device, monthly",{"v":5.5,"d":"$5.50"},{"$f":"ROUND(C96*(1-0.05),2)","v":{"v":5.23,"d":"$5.23"}},"Subscription"]
["PaperCut Hive Lite Commercial Device Licenses 500-999 Devices (Price per Device)"]
["PCH-LITEC500-1Y","PaperCut Hive Lite Release Subscription, Comm 500-999, per device, 1 year",{"v":66,"d":"$66.00"},{"$f":"ROUND(C98*(1-0.1),0)","v":{"v":59,"d":"$59.00"}},"Subscription"]
["PCH-LITEC500-2Y","PaperCut Hive Lite Release Subscription, Comm 500-999, per device, 2 years",{"v":132,"d":"$132.00"},{"$f":"ROUND(C99*(1-0.1),0)","v":{"v":119,"d":"$119.00"}},"Subscription"]
["PCH-LITEC500-3Y","PaperCut Hive Lite Release Subscription, Comm 500-999, per device, 3 years",{"v":188,"d":"$188.00"},{"$f":"ROUND(C100*(1-0.1),0)","v":{"v":169,"d":"$169.00"}},"Subscription"]
["PCH-LITEC500-4Y","PaperCut Hive Lite Release Subscription, Comm 500-999, per device, 4 years",{"v":251,"d":"$251.00"},{"$f":"ROUND(C101*(1-0.1),0)","v":{"v":226,"d":"$226.00"}},"Subscription"]
["PCH-LITEC500-5Y","PaperCut Hive Lite Release Subscription, Comm 500-999, per device, 5 years",{"v":287,"d":"$287.00"},{"$f":"ROUND(C102*(1-0.1),0)","v":{"v":258,"d":"$258.00"}},"Subscription"]
["PCH-LITEC500-1M","PaperCut Hive Lite Release Subscription, Comm 500-999, per device, monthly",{"v":5.5,"d":"$5.50"},{"$f":"ROUND(C103*(1-0.05),2)","v":{"v":5.23,"d":"$5.23"}},"Subscription"]
["PaperCut Hive Lite Commercial Device Licenses 1000+Devices (Price per Device)"]
["PCH-LITEC1K-1Y","PaperCut Hive Lite Release Subscription, Comm 1000+, per device, 1 year",{"v":60,"d":"$60.00"},{"$f":"ROUND(C105*(1-0.1),0)","v":{"v":54,"d":"$54.00"}},"Subscription"]
["PCH-LITEC1K-2Y","PaperCut Hive Lite Release Subscription, Comm 1000+, per device, 2 years",{"v":120,"d":"$120.00"},{"$f":"ROUND(C106*(1-0.1),0)","v":{"v":108,"d":"$108.00"}},"Subscription"]
["PCH-LITEC1K-3Y","PaperCut Hive Lite Release Subscription, Comm 1000+, per device, 3 years",{"v":171,"d":"$171.00"},{"$f":"ROUND(C107*(1-0.1),0)","v":{"v":154,"d":"$154.00"}},"Subscription"]
["PCH-LITEC1K-4Y","PaperCut Hive Lite Release Subscription, Comm 1000+, per device, 4 years",{"v":228,"d":"$228.00"},{"$f":"ROUND(C108*(1-0.1),0)","v":{"v":205,"d":"$205.00"}},"Subscription"]
["PCH-LITEC1K-5Y","PaperCut Hive Lite Release Subscription, Comm 1000+, per device, 5 years",{"v":261,"d":"$261.00"},{"$f":"ROUND(C109*(1-0.1),0)","v":{"v":235,"d":"$235.00"}},"Subscription"]
["PCH-LITEC1K-1M","PaperCut Hive Lite Release Subscription, Comm 1000+, per device, monthly",{"v":5,"d":"$5.00"},{"$f":"ROUND(C110*(1-0.05),2)","v":{"v":4.75,"d":"$4.75"}},"Subscription"]
[]
["PAPERCUT HIVE COMMERCIAL PRINTER"]
["Vendor Part #","Description","MSRP","NASPO Price","Type"]
["PaperCut Hive Commercial Printer Subscription 1-9 Devices (Price per Device)"]
["PCH-PRTC-1Y","PaperCut Hive Printer Subscription, Comm 1-9, per device, 1 year",{"v":102,"d":"$102.00"},{"$f":"ROUND(C115*(1-0.1),0)","v":{"v":92,"d":"$92.00"}},"Subscription"]
["PCH-PRTC-2Y","PaperCut Hive Printer Subscription, Comm 1-9, per device, 2 years",{"v":204,"d":"$204.00"},{"$f":"ROUND(C116*(1-0.1),0)","v":{"v":184,"d":"$184.00"}},"Subscription"]
["PCH-PRTC-3Y","PaperCut Hive Printer Subscription, Comm 1-9, per device, 3 years",{"v":291,"d":"$291.00"},{"$f":"ROUND(C117*(1-0.1),0)","v":{"v":262,"d":"$262.00"}},"Subscription"]
["PCH-PRTC-4Y","PaperCut Hive Printer Subscription, Comm 1-9, per device, 4 years",{"v":388,"d":"$388.00"},{"$f":"ROUND(C118*(1-0.1),0)","v":{"v":349,"d":"$349.00"}},"Subscription"]
["PCH-PRTC-5Y","PaperCut Hive Printer Subscription, Comm 1-9, per device, 5 years",{"v":444,"d":"$444.00"},{"$f":"ROUND(C119*(1-0.1),0)","v":{"v":400,"d":"$400.00"}},"Subscription"]
["PCH-PRTC-1M","PaperCut Hive Printer Subscription, Comm 1-9, per device, monthly",{"v":8.5,"d":"$8.50"},{"$f":"ROUND(C120*(1-0.05),2)","v":{"v":8.08,"d":"$8.08"}},"Subscription"]
["PaperCut Hive Commercial Printer Subscription 10-24 Devices (Price per Device)"]
["PCH-PRTC10-1Y","PaperCut Hive Printer Subscription, Comm 10-24, per device, 1 year",{"v":90,"d":"$90.00"},{"$f":"ROUND(C122*(1-0.1),0)","v":{"v":81,"d":"$81.00"}},"Subscription"]
["PCH-PRTC10-2Y","PaperCut Hive Printer Subscription, Comm 10-24, per device, 2 years",{"v":180,"d":"$180.00"},{"$f":"ROUND(C123*(1-0.1),0)","v":{"v":162,"d":"$162.00"}},"Subscription"]
["PCH-PRTC10-3Y","PaperCut Hive Printer Subscription, Comm 10-24, per device, 3 years",{"v":256,"d":"$256.00"},{"$f":"ROUND(C124*(1-0.1),0)","v":{"v":230,"d":"$230.00"}},"Subscription"]
["PCH-PRTC10-4Y","PaperCut Hive Printer Subscription, Comm 10-24, per device, 4 years",{"v":342,"d":"$342.00"},{"$f":"ROUND(C125*(1-0.1),0)","v":{"v":308,"d":"$308.00"}},"Subscription"]
["PCH-PRTC10-5Y","PaperCut Hive Printer Subscription, Comm 10-24, per device, 5 years",{"v":391,"d":"$391.00"},{"$f":"ROUND(C126*(1-0.1),0)","v":{"v":352,"d":"$352.00"}},"Subscription"]
["PCH-PRTC10-1M","PaperCut Hive Printer Subscription, Comm 10-24, per device, monthly",{"v":7.5,"d":"$7.50"},{"$f":"ROUND(C127*(1-0.05),2)","v":{"v":7.13,"d":"$7.13"}},"Subscription"]
["PaperCut Hive Commercial Printer Subscription 24-49 Devices (Price per Device)"]
["PCH-PRTC25-1Y","PaperCut Hive Printer Subscription, Comm 24-49, per device, 1 year",{"v":78,"d":"$78.00"},{"$f":"ROUND(C129*(1-0.1),0)","v":{"v":70,"d":"$70.00"}},"Subscription"]
["PCH-PRTC25-2Y","PaperCut Hive Printer Subscription, Comm 24-49, per device, 2 years",{"v":156,"d":"$156.00"},{"$f":"ROUND(C130*(1-0.1),0)","v":{"v":140,"d":"$140.00"}},"Subscription"]
["PCH-PRTC25-3Y","PaperCut Hive Printer Subscription, Comm 24-49, per device, 3 years",{"v":222,"d":"$222.00"},{"$f":"ROUND(C131*(1-0.1),0)","v":{"v":200,"d":"$200.00"}},"Subscription"]
["PCH-PRTC25-4Y","PaperCut Hive Printer Subscription, Comm 24-49, per device, 4 years",{"v":296,"d":"$296.00"},{"$f":"ROUND(C132*(1-0.1),0)","v":{"v":266,"d":"$266.00"}},"Subscription"]
["PCH-PRTC25-5Y","PaperCut Hive Printer Subscription, Comm 24-49, per device, 5 years",{"v":339,"d":"$339.00"},{"$f":"ROUND(C133*(1-0.1),0)","v":{"v":305,"d":"$305.00"}},"Subscription"]
["PCH-PRTC25-1M","PaperCut Hive Printer Subscription, Comm 24-49, per device, monthly",{"v":6.5,"d":"$6.50"},{"$f":"ROUND(C134*(1-0.05),2)","v":{"v":6.18,"d":"$6.18"}},"Subscription"]
["PaperCut Hive Commercial Printer Subscription 50-99 Devices (Price per Device)"]
["PCH-PRTC50-1Y","PaperCut Hive Printer Subscription, Comm 50-99, per device, 1 year",{"v":66,"d":"$66.00"},{"$f":"ROUND(C136*(1-0.1),0)","v":{"v":59,"d":"$59.00"}},"Subscription"]
["PCH-PRTC50-2Y","PaperCut Hive Printer Subscription, Comm 50-99, per device, 2 years",{"v":132,"d":"$132.00"},{"$f":"ROUND(C137*(1-0.1),0)","v":{"v":119,"d":"$119.00"}},"Subscription"]
["PCH-PRTC50-3Y","PaperCut Hive Printer Subscription, Comm 50-99, per device, 3 years",{"v":188,"d":"$188.00"},{"$f":"ROUND(C138*(1-0.1),0)","v":{"v":169,"d":"$169.00"}},"Subscription"]
["PCH-PRTC50-4Y","PaperCut Hive Printer Subscription, Comm 50-99, per device, 4 years",{"v":251,"d":"$251.00"},{"$f":"ROUND(C139*(1-0.1),0)","v":{"v":226,"d":"$226.00"}},"Subscription"]
["PCH-PRTC50-5Y","PaperCut Hive Printer Subscription, Comm 50-99, per device, 5 years",{"v":287,"d":"$287.00"},{"$f":"ROUND(C140*(1-0.1),0)","v":{"v":258,"d":"$258.00"}},"Subscription"]
["PCH-PRTC50-1M","PaperCut Hive Printer Subscription, Comm 50-99, per device, monthly",{"v":5.5,"d":"$5.50"},{"$f":"ROUND(C141*(1-0.05),2)","v":{"v":5.23,"d":"$5.23"}},"Subscription"]
["PaperCut Hive Commercial Printer Subscription 100-499 Devices (Price per Device)"]
["PCH-PRTC100-1Y","PaperCut Hive Printer Subscription, Comm 100-499, per device, 1 year",{"v":55,"d":"$55.00"},{"$f":"ROUND(C143*(1-0.1),0)","v":{"v":50,"d":"$50.00"}},"Subscription"]
["PCH-PRTC100-2Y","PaperCut Hive Printer Subscription, Comm 100-499, per device, 2 years",{"v":110,"d":"$110.00"},{"$f":"ROUND(C144*(1-0.1),0)","v":{"v":99,"d":"$99.00"}},"Subscription"]
["PCH-PRTC100-3Y","PaperCut Hive Printer Subscription, Comm 100-499, per device, 3 years",{"v":157,"d":"$157.00"},{"$f":"ROUND(C145*(1-0.1),0)","v":{"v":141,"d":"$141.00"}},"Subscription"]
["PCH-PRTC100-4Y","PaperCut Hive Printer Subscription, Comm 100-499, per device, 4 years",{"v":209,"d":"$209.00"},{"$f":"ROUND(C146*(1-0.1),0)","v":{"v":188,"d":"$188.00"}},"Subscription"]
["PCH-PRTC100-5Y","PaperCut Hive Printer Subscription, Comm 100-499, per device, 5 years",{"v":239,"d":"$239.00"},{"$f":"ROUND(C147*(1-0.1),0)","v":{"v":215,"d":"$215.00"}},"Subscription"]
["PCH-PRTC100-1M","PaperCut Hive Printer Subscription, Comm 100-499, per device, monthly",{"v":4.5,"d":"$4.50"},{"$f":"ROUND(C148*(1-0.05),2)","v":{"v":4.28,"d":"$4.28"}},"Subscription"]
["PaperCut Hive Commercial Printer Subscription 500-999 Devices (Price per Device)"]
["PCH-PRTC500-1Y","PaperCut Hive Printer Subscription, Comm 500-999, per device, 1 year",{"v":53,"d":"$53.00"},{"$f":"ROUND(C150*(1-0.05),2)","v":{"v":50.35,"d":"$50.35"}},"Subscription"]
["PCH-PRTC500-2Y","PaperCut Hive Printer Subscription, Comm 500-999, per device, 2 years",{"v":106,"d":"$106.00"},{"v":100.7,"d":"$100.70"},"Subscription"]
["PCH-PRTC500-3Y","PaperCut Hive Printer Subscription, Comm 500-999, per device, 3 years",{"v":151,"d":"$151.00"},{"v":143.45,"d":"$143.45"},"Subscription"]
["PCH-PRTC500-4Y","PaperCut Hive Printer Subscription, Comm 500-999, per device, 4 years",{"v":201,"d":"$201.00"},{"v":190.95,"d":"$190.95"},"Subscription"]
["PCH-PRTC500-5Y","PaperCut Hive Printer Subscription, Comm 500-999, per device, 5 years",{"v":231,"d":"$231.00"},{"v":219.45,"d":"$219.45"},"Subscription"]
["PCH-PRTC500-1M","PaperCut Hive Printer Subscription, Comm 500-999, per device, monthly",{"v":4.5,"d":"$4.50"},{"v":4.28,"d":"$4.28"},"Subscription"]
["PaperCut Hive Commercial Printer Subscription 1000+ Devices (Price per Device)"]
["PCH-PRTC1K-1Y","PaperCut Hive Printer Subscription, Comm 1000+, per device, 1 year",{"v":49,"d":"$49.00"},{"$f":"ROUND(C157*(1-0.1),0)","v":{"v":44,"d":"$44.00"}},"Subscription"]
["PCH-PRTC1K-2Y","PaperCut Hive Printer Subscription, Comm 1000+, per device, 2 years",{"v":98,"d":"$98.00"},{"$f":"ROUND(C158*(1-0.1),0)","v":{"v":88,"d":"$88.00"}},"Subscription"]
["PCH-PRTC1K-3Y","PaperCut Hive Printer Subscription, Comm 1000+, per device, 3 years",{"v":140,"d":"$140.00"},{"$f":"ROUND(C159*(1-0.1),0)","v":{"v":126,"d":"$126.00"}},"Subscription"]
["PCH-PRTC1K-4Y","PaperCut Hive Printer Subscription, Comm 1000+, per device, 4 years",{"v":186,"d":"$186.00"},{"$f":"ROUND(C160*(1-0.1),0)","v":{"v":167,"d":"$167.00"}},"Subscription"]
["PCH-PRTC1K-5Y","PaperCut Hive Printer Subscription, Comm 1000+, per device, 5 years",{"v":213,"d":"$213.00"},{"$f":"ROUND(C161*(1-0.1),0)","v":{"v":192,"d":"$192.00"}},"Subscription"]
["PCH-PRTC1K-1M","PaperCut Hive Printer Subscription, Comm 1000+, per device, monthly",{"v":4,"d":"$4.00"},{"$f":"ROUND(C162*(1-0.05),2)","v":{"v":3.8,"d":"$3.80"}},"Subscription"]
[]
["PAPERCUT HIVE EDU /GOV FULL EMBEDDED"]
["Vendor Part #","Description","MSRP","NASPO Price","Type"]
["PaperCut Hive Full Embedded Subscription, EduGov  1-9 Devices (Price per Device)"]
["PCH-FULLE-1Y","PaperCut Hive Full Embedded Subscription, EduGov 1-9, per device, 1 year",{"v":236,"d":"$236.00"},{"$f":"ROUND(C167*(1-0.05),2)","v":{"v":224.2,"d":"$224.20"}},"Subscription"]
["PCH-FULLE-2Y","PaperCut Hive Full Embedded Subscription, EduGov 1-9, per device, 2 years",{"v":472,"d":"$472.00"},{"v":448.4,"d":"$448.40"},"Subscription"]
["PCH-FULLE-3Y","PaperCut Hive Full Embedded Subscription, EduGov 1-9, per device, 3 years",{"v":673,"d":"$673.00"},{"v":639.35,"d":"$639.35"},"Subscription"]
["PCH-FULLE-4Y","PaperCut Hive Full Embedded Subscription, EduGov 1-9, per device, 4 years",{"v":897,"d":"$897.00"},{"v":852.15,"d":"$852.15"},"Subscription"]
["PCH-FULLE-5Y","PaperCut Hive Full Embedded Subscription, EduGov 1-9, per device, 5 years",{"v":1027,"d":"$1,027.00"},{"v":975.65,"d":"$975.65"},"Subscription"]
["PCH-FULLE-1M","PaperCut Hive Full Embedded Subscription, EduGov 1-9, per device, monthly",{"v":19.5,"d":"$19.50"},{"v":18.53,"d":"$18.53"},"Subscription"]
["PaperCut Hive Full Embedded Subscription, EduGov  10-24 Devices (Price per Device)"]
["PCH-FULLE10-1Y","PaperCut Hive Full Embedded Subscription, EduGov 10-24, per device, 1 year",{"v":207,"d":"$207.00"},{"v":196.65,"d":"$196.65"},"Subscription"]
["PCH-FULLE10-2Y","PaperCut Hive Full Embedded Subscription, EduGov 10-24, per device, 2 years",{"v":414,"d":"$414.00"},{"v":393.3,"d":"$393.30"},"Subscription"]
["PCH-FULLE10-3Y","PaperCut Hive Full Embedded Subscription, EduGov 10-24, per device, 3 years",{"v":590,"d":"$590.00"},{"v":560.5,"d":"$560.50"},"Subscription"]
["PCH-FULLE10-4Y","PaperCut Hive Full Embedded Subscription, EduGov 10-24, per device, 4 years",{"v":787,"d":"$787.00"},{"v":747.65,"d":"$747.65"},"Subscription"]
["PCH-FULLE10-5Y","PaperCut Hive Full Embedded Subscription, EduGov 10-24, per device, 5 years",{"v":900,"d":"$900.00"},{"v":855,"d":"$855.00"},"Subscription"]
["PCH-FULLE10-1M","PaperCut Hive Full Embedded Subscription, EduGov 10-24, per device, monthly",{"v":17.5,"d":"$17.50"},{"v":16.63,"d":"$16.63"},"Subscription"]
["PaperCut Hive Full Embedded Subscription, EduGov  24-49 Devices (Price per Device)"]
["PCH-FULLE25-1Y","PaperCut Hive Full Embedded Subscription, EduGov 24-49, per device, 1 year",{"v":180,"d":"$180.00"},{"v":171,"d":"$171.00"},"Subscription"]
["PCH-FULLE25-2Y","PaperCut Hive Full Embedded Subscription, EduGov 24-49, per device, 2 years",{"v":360,"d":"$360.00"},{"v":342,"d":"$342.00"},"Subscription"]
["PCH-FULLE25-3Y","PaperCut Hive Full Embedded Subscription, EduGov 24-49, per device, 3 years",{"v":513,"d":"$513.00"},{"v":487.35,"d":"$487.35"},"Subscription"]
["PCH-FULLE25-4Y","PaperCut Hive Full Embedded Subscription, EduGov 24-49, per device, 4 years",{"v":684,"d":"$684.00"},{"v":649.8,"d":"$649.80"},"Subscription"]
["PCH-FULLE25-5Y","PaperCut Hive Full Embedded Subscription, EduGov 24-49, per device, 5 years",{"v":783,"d":"$783.00"},{"v":743.85,"d":"$743.85"},"Subscription"]
["PCH-FULLE25-1M","PaperCut Hive Full Embedded Subscription, EduGov 24-49, per device, monthly",{"v":15,"d":"$15.00"},{"v":14.25,"d":"$14.25"},"Subscription"]
["PaperCut Hive Full Embedded Subscription, EduGov  50-99 Devices (Price per Device)"]
["PCH-FULLE50-1Y","PaperCut Hive Full Embedded Subscription, EduGov 50-99, per device, 1 year",{"v":153,"d":"$153.00"},{"v":145.35,"d":"$145.35"},"Subscription"]
["PCH-FULLE50-2Y","PaperCut Hive Full Embedded Subscription, EduGov 50-99, per device, 2 years",{"v":306,"d":"$306.00"},{"v":290.7,"d":"$290.70"},"Subscription"]
["PCH-FULLE50-3Y","PaperCut Hive Full Embedded Subscription, EduGov 50-99, per device, 3 years",{"v":436,"d":"$436.00"},{"v":414.2,"d":"$414.20"},"Subscription"]
["PCH-FULLE50-4Y","PaperCut Hive Full Embedded Subscription, EduGov 50-99, per device, 4 years",{"v":581,"d":"$581.00"},{"v":551.95,"d":"$551.95"},"Subscription"]
["PCH-FULLE50-5Y","PaperCut Hive Full Embedded Subscription, EduGov 50-99, per device, 5 years",{"v":666,"d":"$666.00"},{"v":632.7,"d":"$632.70"},"Subscription"]
["PCH-FULLE50-1M","PaperCut Hive Full Embedded Subscription, EduGov 50-99, per device, monthly",{"v":13,"d":"$13.00"},{"$f":"ROUND(C193*(1-0.05),2)","v":{"v":12.35,"d":"$12.35"}},"Subscription"]
["PaperCut Hive Full Embedded Subscription, EduGov  100-499 Devices (Price per Device)"]
["PCH-FULLE100-1Y","PaperCut Hive Full Embedded Subscription, EduGov 100-499, per device, 1 year",{"v":127,"d":"$127.00"},{"$f":"ROUND(C195*(1-0.05),2)","v":{"v":120.65,"d":"$120.65"}},"Subscription"]
["PCH-FULLE100-2Y","PaperCut Hive Full Embedded Subscription, EduGov 100-499, per device, 2 years",{"v":254,"d":"$254.00"},{"v":241.3,"d":"$241.30"},"Subscription"]
["PCH-FULLE100-3Y","PaperCut Hive Full Embedded Subscription, EduGov 100-499, per device, 3 years",{"v":362,"d":"$362.00"},{"v":343.9,"d":"$343.90"},"Subscription"]
["PCH-FULLE100-4Y","PaperCut Hive Full Embedded Subscription, EduGov 100-499, per device, 4 years",{"v":483,"d":"$483.00"},{"v":458.85,"d":"$458.85"},"Subscription"]
["PCH-FULLE100-5Y","PaperCut Hive Full Embedded Subscription, EduGov 100-499, per device, 5 years",{"v":552,"d":"$552.00"},{"v":524.4,"d":"$524.40"},"Subscription"]
["PCH-FULLE100-1M","PaperCut Hive Full Embedded Subscription, EduGov 100-499, per device, monthly",{"v":10.5,"d":"$10.50"},{"v":9.98,"d":"$9.98"},"Subscription"]
["PaperCut Hive Full Embedded Subscription, EduGov  500-999 Devices (Price per Device)"]
["PCH-FULLE500-1Y","PaperCut Hive Full Embedded Subscription, EduGov 500-999, per device, 1 year",{"v":123,"d":"$123.00"},{"v":116.85,"d":"$116.85"},"Subscription"]
["PCH-FULLE500-2Y","PaperCut Hive Full Embedded Subscription, EduGov 500-999, per device, 2 years",{"v":246,"d":"$246.00"},{"v":233.7,"d":"$233.70"},"Subscription"]
["PCH-FULLE500-3Y","PaperCut Hive Full Embedded Subscription, EduGov 500-999, per device, 3 years",{"v":351,"d":"$351.00"},{"v":333.45,"d":"$333.45"},"Subscription"]
["PCH-FULLE500-4Y","PaperCut Hive Full Embedded Subscription, EduGov 500-999, per device, 4 years",{"v":467,"d":"$467.00"},{"v":443.65,"d":"$443.65"},"Subscription"]
["PCH-FULLE500-5Y","PaperCut Hive Full Embedded Subscription, EduGov 500-999, per device, 5 years",{"v":535,"d":"$535.00"},{"v":508.25,"d":"$508.25"},"Subscription"]
["PCH-FULLE500-1M","PaperCut Hive Full Embedded Subscription, EduGov 500-999, per device, monthly",{"v":10.5,"d":"$10.50"},{"v":9.98,"d":"$9.98"},"Subscription"]
["PaperCut Hive Full Embedded Subscription, EduGov  1000+ Devices (Price per Device)"]
["PCH-FULLE1K-1Y","PaperCut Hive Full Embedded Subscription, EduGov 1000+, per device, 1 year",{"v":113,"d":"$113.00"},{"v":107.35,"d":"$107.35"},"Subscription"]
["PCH-FULLE1K-2Y","PaperCut Hive Full Embedded Subscription, EduGov 1000+, per device, 2 years",{"v":226,"d":"$226.00"},{"v":214.7,"d":"$214.70"},"Subscription"]
["PCH-FULLE1K-3Y","PaperCut Hive Full Embedded Subscription, EduGov 1000+, per device, 3 years",{"v":322,"d":"$322.00"},{"v":305.9,"d":"$305.90"},"Subscription"]
["PCH-FULLE1K-4Y","PaperCut Hive Full Embedded Subscription, EduGov 1000+, per device, 4 years",{"v":429,"d":"$429.00"},{"v":407.55,"d":"$407.55"},"Subscription"]
["PCH-FULLE1K-5Y","PaperCut Hive Full Embedded Subscription, EduGov 1000+, per device, 5 years",{"v":492,"d":"$492.00"},{"v":467.4,"d":"$467.40"},"Subscription"]
["PCH-FULLE1K-1M","PaperCut Hive Full Embedded Subscription, EduGov 1000+, per device, monthly",{"v":9.5,"d":"$9.50"},{"v":9.03,"d":"$9.03"},"Subscription"]
[]
["PAPERCUT HIVE EDU/GOV  LITE RELEASE"]
["Vendor Part #","Description","MSRP","NASPO Price","Type"]
["PaperCut Hive Lite Release Subscription, EduGov  1-9 Devices (Price per Device)"]
["PCH-LITEE-1Y","PaperCut Hive Lite Release Subscription, EduGov 1-9, per device, 1 year",{"v":118,"d":"$118.00"},{"v":112.1,"d":"$112.10"},"Subscription"]
["PCH-LITEE-2Y","PaperCut Hive Lite Release Subscription, EduGov 1-9, per device, 2 years",{"v":236,"d":"$236.00"},{"v":224.2,"d":"$224.20"},"Subscription"]
["PCH-LITEE-3Y","PaperCut Hive Lite Release Subscription, EduGov 1-9, per device, 3 years",{"v":336,"d":"$336.00"},{"v":319.2,"d":"$319.20"},"Subscription"]
["PCH-LITEE-4Y","PaperCut Hive Lite Release Subscription, EduGov 1-9, per device, 4 years",{"v":448,"d":"$448.00"},{"v":425.6,"d":"$425.60"},"Subscription"]
["PCH-LITEE-5Y","PaperCut Hive Lite Release Subscription, EduGov 1-9, per device, 5 years",{"v":513,"d":"$513.00"},{"v":487.35,"d":"$487.35"},"Subscription"]
["PCH-LITEE-1M","PaperCut Hive Lite Release Subscription, EduGov 1-9, per device, monthly",{"v":10,"d":"$10.00"},{"$f":"ROUND(C224*(1-0.05),2)","v":{"v":9.5,"d":"$9.50"}},"Subscription"]
["PaperCut Hive Lite Release Subscription, EduGov  10-24 Devices (Price per Device)"]
["PCH-LITEE10-1Y","PaperCut Hive Lite Release Subscription, EduGov 10-24, per device, 1 year",{"v":104,"d":"$104.00"},{"$f":"ROUND(C226*(1-0.05),2)","v":{"v":98.8,"d":"$98.80"}},"Subscription"]
["PCH-LITEE10-2Y","PaperCut Hive Lite Release Subscription, EduGov 10-24, per device, 2 years",{"v":208,"d":"$208.00"},{"v":197.6,"d":"$197.60"},"Subscription"]
["PCH-LITEE10-3Y","PaperCut Hive Lite Release Subscription, EduGov 10-24, per device, 3 years",{"v":296,"d":"$296.00"},{"v":281.2,"d":"$281.20"},"Subscription"]
["PCH-LITEE10-4Y","PaperCut Hive Lite Release Subscription, EduGov 10-24, per device, 4 years",{"v":395,"d":"$395.00"},{"v":375.25,"d":"$375.25"},"Subscription"]
["PCH-LITEE10-5Y","PaperCut Hive Lite Release Subscription, EduGov 10-24, per device, 5 years",{"v":452,"d":"$452.00"},{"v":429.4,"d":"$429.40"},"Subscription"]
["PCH-LITEE10-1M","PaperCut Hive Lite Release Subscription, EduGov 10-24, per device, monthly",{"v":8.5,"d":"$8.50"},{"v":8.08,"d":"$8.08"},"Subscription"]
["PaperCut Hive Lite Release Subscription, EduGov  25-49 Devices (Price per Device)"]
["PCH-LITEE25-1Y","PaperCut Hive Lite Release Subscription, EduGov 25-49, per device, 1 year",{"v":90,"d":"$90.00"},{"v":85.5,"d":"$85.50"},"Subscription"]
["PCH-LITEE25-2Y","PaperCut Hive Lite Release Subscription, EduGov 25-49, per device, 2 years",{"v":180,"d":"$180.00"},{"v":171,"d":"$171.00"},"Subscription"]
["PCH-LITEE25-3Y","PaperCut Hive Lite Release Subscription, EduGov 25-49, per device, 3 years",{"v":256,"d":"$256.00"},{"v":243.2,"d":"$243.20"},"Subscription"]
["PCH-LITEE25-4Y","PaperCut Hive Lite Release Subscription, EduGov 25-49, per device, 4 years",{"v":342,"d":"$342.00"},{"v":324.9,"d":"$324.90"},"Subscription"]
["PCH-LITEE25-5Y","PaperCut Hive Lite Release Subscription, EduGov 25-49, per device, 5 years",{"v":391,"d":"$391.00"},{"v":371.45,"d":"$371.45"},"Subscription"]
["PCH-LITEE25-1M","PaperCut Hive Lite Release Subscription, EduGov 25-49, per device, monthly",{"v":7.5,"d":"$7.50"},{"v":7.13,"d":"$7.13"},"Subscription"]
["PaperCut Hive Lite Release Subscription, EduGov  50-99 Devices (Price per Device)"]
["PCH-LITEE50-1Y","PaperCut Hive Lite Release Subscription, EduGov 50-99, per device, 1 year",{"v":76,"d":"$76.00"},{"v":72.2,"d":"$72.20"},"Subscription"]
["PCH-LITEE50-2Y","PaperCut Hive Lite Release Subscription, EduGov 50-99, per device, 2 years",{"v":152,"d":"$152.00"},{"v":144.4,"d":"$144.40"},"Subscription"]
["PCH-LITEE50-3Y","PaperCut Hive Lite Release Subscription, EduGov 50-99, per device, 3 years",{"v":217,"d":"$217.00"},{"v":206.15,"d":"$206.15"},"Subscription"]
["PCH-LITEE50-4Y","PaperCut Hive Lite Release Subscription, EduGov 50-99, per device, 4 years",{"v":289,"d":"$289.00"},{"v":274.55,"d":"$274.55"},"Subscription"]
["PCH-LITEE50-5Y","PaperCut Hive Lite Release Subscription, EduGov 50-99, per device, 5 years",{"v":331,"d":"$331.00"},{"v":314.45,"d":"$314.45"},"Subscription"]
["PCH-LITEE50-1M","PaperCut Hive Lite Release Subscription, EduGov 50-99, per device, monthly",{"v":6.5,"d":"$6.50"},{"v":6.18,"d":"$6.18"},"Subscription"]
["PaperCut Hive Lite Release Subscription, EduGov  100-499 Devices (Price per Device)"]
["PCH-LITEE100-1Y","PaperCut Hive Lite Release Subscription, EduGov 100-499, per device, 1 year",{"v":64,"d":"$64.00"},{"v":60.8,"d":"$60.80"},"Subscription"]
["PCH-LITEE100-2Y","PaperCut Hive Lite Release Subscription, EduGov 100-499, per device, 2 years",{"v":128,"d":"$128.00"},{"v":121.6,"d":"$121.60"},"Subscription"]
["PCH-LITEE100-3Y","PaperCut Hive Lite Release Subscription, EduGov 100-499, per device, 3 years",{"v":182,"d":"$182.00"},{"v":172.9,"d":"$172.90"},"Subscription"]
["PCH-LITEE100-4Y","PaperCut Hive Lite Release Subscription, EduGov 100-499, per device, 4 years",{"v":243,"d":"$243.00"},{"v":230.85,"d":"$230.85"},"Subscription"]
["PCH-LITEE100-5Y","PaperCut Hive Lite Release Subscription, EduGov 100-499, per device, 5 years",{"v":278,"d":"$278.00"},{"v":264.1,"d":"$264.10"},"Subscription"]
["PCH-LITEE100-1M","PaperCut Hive Lite Release Subscription, EduGov 100-499, per device, monthly",{"v":5.5,"d":"$5.50"},{"v":5.23,"d":"$5.23"},"Subscription"]
["PaperCut Hive Lite Release Subscription, EduGov  500-999 Devices (Price per Device)"]
["PCH-LITEE500-1Y","PaperCut Hive Lite Release Subscription, EduGov 500-999, per device, 1 year",{"v":62,"d":"$62.00"},{"v":58.9,"d":"$58.90"},"Subscription"]
["PCH-LITEE500-2Y","PaperCut Hive Lite Release Subscription, EduGov 500-999, per device, 2 years",{"v":124,"d":"$124.00"},{"v":117.8,"d":"$117.80"},"Subscription"]
["PCH-LITEE500-3Y","PaperCut Hive Lite Release Subscription, EduGov 500-999, per device, 3 years",{"v":177,"d":"$177.00"},{"v":168.15,"d":"$168.15"},"Subscription"]
["PCH-LITEE500-4Y","PaperCut Hive Lite Release Subscription, EduGov 500-999, per device, 4 years",{"v":236,"d":"$236.00"},{"v":224.2,"d":"$224.20"},"Subscription"]
["PCH-LITEE500-5Y","PaperCut Hive Lite Release Subscription, EduGov 500-999, per device, 5 years",{"v":270,"d":"$270.00"},{"v":256.5,"d":"$256.50"},"Subscription"]
["PCH-LITEE500-1M","PaperCut Hive Lite Release Subscription, EduGov 500-999, per device, monthly",{"v":5,"d":"$5.00"},{"v":4.75,"d":"$4.75"},"Subscription"]
["PaperCut Hive Lite Release Subscription, EduGov  500-999 Devices (Price per Device)"]
["PCH-LITEE1K-1Y","PaperCut Hive Lite Release Subscription, EduGov 1000+, per device, 1 year",{"v":56,"d":"$56.00"},{"v":53.2,"d":"$53.20"},"Subscription"]
["PCH-LITEE1K-2Y","PaperCut Hive Lite Release Subscription, EduGov 1000+, per device, 2 years",{"v":112,"d":"$112.00"},{"v":106.4,"d":"$106.40"},"Subscription"]
["PCH-LITEE1K-3Y","PaperCut Hive Lite Release Subscription, EduGov 1000+, per device, 3 years",{"v":160,"d":"$160.00"},{"v":152,"d":"$152.00"},"Subscription"]
["PCH-LITEE1K-4Y","PaperCut Hive Lite Release Subscription, EduGov 1000+, per device, 4 years",{"v":213,"d":"$213.00"},{"v":202.35,"d":"$202.35"},"Subscription"]
["PCH-LITEE1K-5Y","PaperCut Hive Lite Release Subscription, EduGov 1000+, per device, 5 years",{"v":244,"d":"$244.00"},{"v":231.8,"d":"$231.80"},"Subscription"]
["PCH-LITEE1K-1M","PaperCut Hive Lite Release Subscription, EduGov 1000+, per device, monthly",{"v":4.5,"d":"$4.50"},{"$f":"ROUND(C266*(1-0.05),2)","v":{"v":4.28,"d":"$4.28"}},"Subscription"]
[]
["PAPERCUT HIVE EDU/GOV PRINTER"]
["Vendor Part #","Description","MSRP","NASPO Price","Type"]
["PaperCut Hive Printer Subscription, EduGov  1-9 Devices (Price per Device)"]
["PCH-PRTE-1Y","PaperCut Hive Printer Subscription, EduGov 1-9, per device, 1 year",{"v":95,"d":"$95.00"},{"$f":"ROUND(C271*(1-0.05),2)","v":{"v":90.25,"d":"$90.25"}},"Subscription"]
["PCH-PRTE-2Y","PaperCut Hive Printer Subscription, EduGov 1-9, per device, 2 years",{"v":190,"d":"$190.00"},{"v":180.5,"d":"$180.50"},"Subscription"]
["PCH-PRTE-3Y","PaperCut Hive Printer Subscription, EduGov 1-9, per device, 3 years",{"v":271,"d":"$271.00"},{"v":257.45,"d":"$257.45"},"Subscription"]
["PCH-PRTE-4Y","PaperCut Hive Printer Subscription, EduGov 1-9, per device, 4 years",{"v":361,"d":"$361.00"},{"v":342.95,"d":"$342.95"},"Subscription"]
["PCH-PRTE-5Y","PaperCut Hive Printer Subscription, EduGov 1-9, per device, 5 years",{"v":413,"d":"$413.00"},{"v":392.35,"d":"$392.35"},"Subscription"]
["PCH-PRTE-1M","PaperCut Hive Printer Subscription, EduGov 1-9, per device, monthly",{"v":8,"d":"$8.00"},{"v":7.6,"d":"$7.60"},"Subscription"]
["PaperCut Hive Printer Subscription, EduGov  10-24 Devices (Price per Device)"]
["PCH-PRTE10-1Y","PaperCut Hive Printer Subscription, EduGov 10-24, per device, 1 year",{"v":84,"d":"$84.00"},{"v":79.8,"d":"$79.80"},"Subscription"]
["PCH-PRTE10-2Y","PaperCut Hive Printer Subscription, EduGov 10-24, per device, 2 years",{"v":168,"d":"$168.00"},{"v":159.6,"d":"$159.60"},"Subscription"]
["PCH-PRTE10-3Y","PaperCut Hive Printer Subscription, EduGov 10-24, per device, 3 years",{"v":239,"d":"$239.00"},{"v":227.05,"d":"$227.05"},"Subscription"]
["PCH-PRTE10-4Y","PaperCut Hive Printer Subscription, EduGov 10-24, per device, 4 years",{"v":319,"d":"$319.00"},{"v":303.05,"d":"$303.05"},"Subscription"]
["PCH-PRTE10-5Y","PaperCut Hive Printer Subscription, EduGov 10-24, per device, 5 years",{"v":365,"d":"$365.00"},{"v":346.75,"d":"$346.75"},"Subscription"]
["PCH-PRTE10-1M","PaperCut Hive Printer Subscription, EduGov 10-24, per device, monthly",{"v":7,"d":"$7.00"},{"v":6.65,"d":"$6.65"},"Subscription"]
["PaperCut Hive Printer Subscription, EduGov 24-49 Devices (Price per Device)"]
["PCH-PRTE25-1Y","PaperCut Hive Printer Subscription, EduGov 24-49, per device, 1 year",{"v":73,"d":"$73.00"},{"v":69.35,"d":"$69.35"},"Subscription"]
["PCH-PRTE25-2Y","PaperCut Hive Printer Subscription, EduGov 24-49, per device, 2 years",{"v":146,"d":"$146.00"},{"v":138.7,"d":"$138.70"},"Subscription"]
["PCH-PRTE25-3Y","PaperCut Hive Printer Subscription, EduGov 24-49, per device, 3 years",{"v":208,"d":"$208.00"},{"v":197.6,"d":"$197.60"},"Subscription"]
["PCH-PRTE25-4Y","PaperCut Hive Printer Subscription, EduGov 24-49, per device, 4 years",{"v":277,"d":"$277.00"},{"v":263.15,"d":"$263.15"},"Subscription"]
["PCH-PRTE25-5Y","PaperCut Hive Printer Subscription, EduGov 24-49, per device, 5 years",{"v":318,"d":"$318.00"},{"v":302.1,"d":"$302.10"},"Subscription"]
["PCH-PRTE25-1M","PaperCut Hive Printer Subscription, EduGov 24-49, per device, monthly",{"v":6,"d":"$6.00"},{"v":5.7,"d":"$5.70"},"Subscription"]
["PaperCut Hive Printer Subscription, EduGov 50-99 Devices (Price per Device)"]
["PCH-PRTE50-1Y","PaperCut Hive Printer Subscription, EduGov 50-99, per device, 1 year",{"v":62,"d":"$62.00"},{"v":58.9,"d":"$58.90"},"Subscription"]
["PCH-PRTE50-2Y","PaperCut Hive Printer Subscription, EduGov 50-99, per device, 2 years",{"v":124,"d":"$124.00"},{"v":117.8,"d":"$117.80"},"Subscription"]
["PCH-PRTE50-3Y","PaperCut Hive Printer Subscription, EduGov 50-99, per device, 3 years",{"v":177,"d":"$177.00"},{"v":168.15,"d":"$168.15"},"Subscription"]
["PCH-PRTE50-4Y","PaperCut Hive Printer Subscription, EduGov 50-99, per device, 4 years",{"v":236,"d":"$236.00"},{"v":224.2,"d":"$224.20"},"Subscription"]
["PCH-PRTE50-5Y","PaperCut Hive Printer Subscription, EduGov 50-99, per device, 5 years",{"v":270,"d":"$270.00"},{"v":256.5,"d":"$256.50"},"Subscription"]
["PCH-PRTE50-1M","PaperCut Hive Printer Subscription, EduGov 50-99, per device, monthly",{"v":5,"d":"$5.00"},{"v":4.75,"d":"$4.75"},"Subscription"]
["PaperCut Hive Printer Subscription, EduGov 100-499 Devices (Price per Device)"]
["PCH-PRTE100-1Y","PaperCut Hive Printer Subscription, EduGov 100-499, per device, 1 year",{"v":51,"d":"$51.00"},{"v":48.45,"d":"$48.45"},"Subscription"]
["PCH-PRTE100-2Y","PaperCut Hive Printer Subscription, EduGov 100-499, per device, 2 years",{"v":102,"d":"$102.00"},{"v":96.9,"d":"$96.90"},"Subscription"]
["PCH-PRTE100-3Y","PaperCut Hive Printer Subscription, EduGov 100-499, per device, 3 years",{"v":145,"d":"$145.00"},{"v":137.75,"d":"$137.75"},"Subscription"]
["PCH-PRTE100-4Y","PaperCut Hive Printer Subscription, EduGov 100-499, per device, 4 years",{"v":194,"d":"$194.00"},{"v":184.3,"d":"$184.30"},"Subscription"]
["PCH-PRTE100-5Y","PaperCut Hive Printer Subscription, EduGov 100-499, per device, 5 years",{"v":222,"d":"$222.00"},{"v":210.9,"d":"$210.90"},"Subscription"]
["PCH-PRTE100-1M","PaperCut Hive Printer Subscription, EduGov 100-499, per device, monthly",{"v":4.5,"d":"$4.50"},{"v":4.28,"d":"$4.28"},"Subscription"]
["PaperCut Hive Printer Subscription, EduGov 500-999 Devices (Price per Device)"]
["PCH-PRTE500-1Y","PaperCut Hive Printer Subscription, EduGov 500-999, per device, 1 year",{"v":50,"d":"$50.00"},{"v":47.5,"d":"$47.50"},"Subscription"]
["PCH-PRTE500-2Y","PaperCut Hive Printer Subscription, EduGov 500-999, per device, 2 years",{"v":100,"d":"$100.00"},{"v":95,"d":"$95.00"},"Subscription"]
["PCH-PRTE500-3Y","PaperCut Hive Printer Subscription, EduGov 500-999, per device, 3 years",{"v":142,"d":"$142.00"},{"v":134.9,"d":"$134.90"},"Subscription"]
["PCH-PRTE500-4Y","PaperCut Hive Printer Subscription, EduGov 500-999, per device, 4 years",{"v":190,"d":"$190.00"},{"v":180.5,"d":"$180.50"},"Subscription"]
["PCH-PRTE500-5Y","PaperCut Hive Printer Subscription, EduGov 500-999, per device, 5 years",{"v":217,"d":"$217.00"},{"v":206.15,"d":"$206.15"},"Subscription"]
["PCH-PRTE500-1M","PaperCut Hive Printer Subscription, EduGov 500-999, per device, monthly",{"v":4,"d":"$4.00"},{"v":3.8,"d":"$3.80"},"Subscription"]
["PaperCut Hive Printer Subscription, EduGov 1000+ Devices (Price per Device)"]
["PCH-PRTE1K-1Y","PaperCut Hive Printer Subscription, EduGov 1000+, per device, 1 year",{"v":46,"d":"$46.00"},{"v":43.7,"d":"$43.70"},"Subscription"]
["PCH-PRTE1K-2Y","PaperCut Hive Printer Subscription, EduGov 1000+, per device, 2 years",{"v":92,"d":"$92.00"},{"v":87.4,"d":"$87.40"},"Subscription"]
["PCH-PRTE1K-3Y","PaperCut Hive Printer Subscription, EduGov 1000+, per device, 3 years",{"v":131,"d":"$131.00"},{"v":124.45,"d":"$124.45"},"Subscription"]
["PCH-PRTE1K-4Y","PaperCut Hive Printer Subscription, EduGov 1000+, per device, 4 years",{"v":175,"d":"$175.00"},{"v":166.25,"d":"$166.25"},"Subscription"]
["PCH-PRTE1K-5Y","PaperCut Hive Printer Subscription, EduGov 1000+, per device, 5 years",{"v":200,"d":"$200.00"},{"v":190,"d":"$190.00"},"Subscription"]
["PCH-PRTE1K-1M","PaperCut Hive Printer Subscription, EduGov 1000+, per device, monthly",{"v":4,"d":"$4.00"},{"v":3.8,"d":"$3.80"},"Subscription"]
[]
["PAPERCUT HIVE LICENSE ADD ONS"]
["Vendor Part #","Description","MSRP","NASPO Price","Type"]
["PaperCut Hive Cloud OCR with Document Processing Licenses 1-9 Devices (Price per Device)"]
["PCH-OCR-1Y","PaperCut Hive Cloud OCR with Document Processing, 1-9, per device, 1 year",{"v":25,"d":"$25.00"},{"$f":"ROUND(C323*(1-0.1),0)","v":{"v":23,"d":"$23.00"}},"Subscription"]
["PCH-OCR-2Y","PaperCut Hive Cloud OCR with Document Processing, 1-9, per device, 2 years",{"v":50,"d":"$50.00"},{"v":45,"d":"$45.00"},"Subscription"]
["PCH-OCR-3Y","PaperCut Hive Cloud OCR with Document Processing, 1-9, per device, 3 years",{"v":71,"d":"$71.00"},{"v":64,"d":"$64.00"},"Subscription"]
["PCH-OCR-4Y","PaperCut Hive Cloud OCR with Document Processing, 1-9, per device, 4 years",{"v":95,"d":"$95.00"},{"v":86,"d":"$86.00"},"Subscription"]
["PCH-OCR-5Y","PaperCut Hive Cloud OCR with Document Processing, 1-9, per device, 5 years",{"v":109,"d":"$109.00"},{"v":98,"d":"$98.00"},"Subscription"]
["PCH-OCR-1M","PaperCut Hive Cloud OCR with Document Processing, 1-9, per device, monthly",{"v":2,"d":"$2.00"},{"$f":"ROUND(C328*(1-0.05),1)","v":{"v":1.9,"d":"$1.90"}},"Subscription"]
["PaperCut Hive Cloud OCR with Document Processing Licenses 10-24 Devices (Price per Device)"]
["PCH-OCR10-1Y","PaperCut Hive Cloud OCR with Document Processing, 10-24, per device, 1 year",{"v":22,"d":"$22.00"},{"v":20,"d":"$20.00"},"Subscription"]
["PCH-OCR10-2Y","PaperCut Hive Cloud OCR with Document Processing, 10-24, per device, 2 years",{"v":44,"d":"$44.00"},{"v":40,"d":"$40.00"},"Subscription"]
["PCH-OCR10-3Y","PaperCut Hive Cloud OCR with Document Processing, 10-24, per device, 3 years",{"v":63,"d":"$63.00"},{"v":57,"d":"$57.00"},"Subscription"]
["PCH-OCR10-4Y","PaperCut Hive Cloud OCR with Document Processing, 10-24, per device, 4 years",{"v":84,"d":"$84.00"},{"v":76,"d":"$76.00"},"Subscription"]
["PCH-OCR10-5Y","PaperCut Hive Cloud OCR with Document Processing, 10-24, per device, 5 years",{"v":96,"d":"$96.00"},{"v":86,"d":"$86.00"},"Subscription"]
["PCH-OCR10-1M","PaperCut Hive Cloud OCR with Document Processing, 10-24, per device, monthly",{"v":2,"d":"$2.00"},{"$f":"ROUND(C335*(1-0.05),1)","v":{"v":1.9,"d":"$1.90"}},"Subscription"]
["PaperCut Hive Cloud OCR with Document Processing Licenses 25-49 Devices (Price per Device)"]
["PCH-OCR25-1Y","PaperCut Hive Cloud OCR with Document Processing, 25-49, per device, 1 year",{"v":19,"d":"$19.00"},{"v":17,"d":"$17.00"},"Subscription"]
["PCH-OCR25-2Y","PaperCut Hive Cloud OCR with Document Processing, 25-49, per device, 2 years",{"v":38,"d":"$38.00"},{"v":34,"d":"$34.00"},"Subscription"]
["PCH-OCR25-3Y","PaperCut Hive Cloud OCR with Document Processing, 25-49, per device, 3 years",{"v":54,"d":"$54.00"},{"v":49,"d":"$49.00"},"Subscription"]
["PCH-OCR25-4Y","PaperCut Hive Cloud OCR with Document Processing, 25-49, per device, 4 years",{"v":72,"d":"$72.00"},{"v":65,"d":"$65.00"},"Subscription"]
["PCH-OCR25-5Y","PaperCut Hive Cloud OCR with Document Processing, 25-49, per device, 5 years",{"v":83,"d":"$83.00"},{"v":75,"d":"$75.00"},"Subscription"]
["PCH-OCR25-1M","PaperCut Hive Cloud OCR with Document Processing, 25-49, per device, monthly",{"v":1.5,"d":"$1.50"},{"$f":"ROUND(C342*(1-0.05),1)","v":{"v":1.4,"d":"$1.40"}},"Subscription"]
["PaperCut Hive Cloud OCR with Document Processing Licenses 50-99 Devices (Price per Device)"]
["PCH-OCR50-1Y","PaperCut Hive Cloud OCR with Document Processing, 50-99, per device, 1 year",{"v":16,"d":"$16.00"},{"v":14,"d":"$14.00"},"Subscription"]
["PCH-OCR50-2Y","PaperCut Hive Cloud OCR with Document Processing, 50-99, per device, 2 years",{"v":32,"d":"$32.00"},{"v":29,"d":"$29.00"},"Subscription"]
["PCH-OCR50-3Y","PaperCut Hive Cloud OCR with Document Processing, 50-99, per device, 3 years",{"v":45.5,"d":"$45.50"},{"v":41,"d":"$41.00"},"Subscription"]
["PCH-OCR50-4Y","PaperCut Hive Cloud OCR with Document Processing, 50-99, per device, 4 years",{"v":61,"d":"$61.00"},{"v":55,"d":"$55.00"},"Subscription"]
["PCH-OCR50-5Y","PaperCut Hive Cloud OCR with Document Processing, 50-99, per device, 5 years",{"v":70,"d":"$70.00"},{"v":63,"d":"$63.00"},"Subscription"]
["PCH-OCR50-1M","PaperCut Hive Cloud OCR with Document Processing, 50-99, per device, monthly",{"v":1.5,"d":"$1.50"},{"$f":"ROUND(C349*(1-0.05),1)","v":{"v":1.4,"d":"$1.40"}},"Subscription"]
["PaperCut Hive Cloud OCR with Document Processing Licenses 100-499 Devices (Price per Device)"]
["PCH-OCR100-1Y","PaperCut Hive Cloud OCR with Document Processing, 100-499, per device, 1 year",{"v":14,"d":"$14.00"},{"$f":"ROUND(C351*(1-0.05),1)","v":{"v":13.3,"d":"$13.30"}},"Subscription"]
["PCH-OCR100-2Y","PaperCut Hive Cloud OCR with Document Processing, 100-499, per device, 2 years",{"v":28,"d":"$28.00"},{"v":26.6,"d":"$26.60"},"Subscription"]
["PCH-OCR100-3Y","PaperCut Hive Cloud OCR with Document Processing, 100-499, per device, 3 years",{"v":40,"d":"$40.00"},{"v":38,"d":"$38.00"},"Subscription"]
["PCH-OCR100-4Y","PaperCut Hive Cloud OCR with Document Processing, 100-499, per device, 4 years",{"v":53,"d":"$53.00"},{"v":50.4,"d":"$50.40"},"Subscription"]
["PCH-OCR100-5Y","PaperCut Hive Cloud OCR with Document Processing, 100-499, per device, 5 years",{"v":61,"d":"$61.00"},{"v":58,"d":"$58.00"},"Subscription"]
["PCH-OCR100-1M","PaperCut Hive Cloud OCR with Document Processing, 100-499, per device, monthly",{"v":1,"d":"$1.00"},{"$f":"ROUND(C356*(1-0.05),2)","v":{"v":0.95,"d":"$0.95"}},"Subscription"]
["PaperCut Hive Cloud OCR with Document Processing Licenses 500-999 Devices (Price per Device)"]
["PCH-OCR500-1Y","PaperCut Hive Cloud OCR with Document Processing, 500-999, per device, 1 year",{"v":13,"d":"$13.00"},{"$f":"ROUND(C358*(1-0.1),0)","v":{"v":12,"d":"$12.00"}},"Subscription"]
["PCH-OCR500-2Y","PaperCut Hive Cloud OCR with Document Processing, 500-999, per device, 2 years",{"v":26,"d":"$26.00"},{"v":23,"d":"$23.00"},"Subscription"]
["PCH-OCR500-3Y","PaperCut Hive Cloud OCR with Document Processing, 500-999, per device, 3 years",{"v":37,"d":"$37.00"},{"v":33,"d":"$33.00"},"Subscription"]
["PCH-OCR500-4Y","PaperCut Hive Cloud OCR with Document Processing, 500-999, per device, 4 years",{"v":49.5,"d":"$49.50"},{"v":45,"d":"$45.00"},"Subscription"]
["PCH-OCR500-5Y","PaperCut Hive Cloud OCR with Document Processing, 500-999, per device, 5 years",{"v":57,"d":"$57.00"},{"v":51,"d":"$51.00"},"Subscription"]
["PCH-OCR500-1M","PaperCut Hive Cloud OCR with Document Processing, 500-999, per device, monthly",{"v":1,"d":"$1.00"},{"$f":"ROUND(C363*(1-0.05),2)","v":{"v":0.95,"d":"$0.95"}},"Subscription"]
["PaperCut Hive Cloud OCR with Document Processing Licenses 1000+ Devices (Price per Device)"]
["PCH-OCR1K-1Y","PaperCut Hive Cloud OCR with Document Processing, 1000+, per device, 1 year",{"v":12,"d":"$12.00"},{"v":11,"d":"$11.00"},"Subscription"]
["PCH-OCR1K-2Y","PaperCut Hive Cloud OCR with Document Processing, 1000+, per device, 2 years",{"v":24,"d":"$24.00"},{"v":22,"d":"$22.00"},"Subscription"]
["PCH-OCR1K-3Y","PaperCut Hive Cloud OCR with Document Processing, 1000+, per device, 3 years",{"v":34,"d":"$34.00"},{"v":31,"d":"$31.00"},"Subscription"]
["PCH-OCR1K-4Y","PaperCut Hive Cloud OCR with Document Processing, 1000+, per device, 4 years",{"v":45.5,"d":"$45.50"},{"v":41,"d":"$41.00"},"Subscription"]
["PCH-OCR1K-5Y","PaperCut Hive Cloud OCR with Document Processing, 1000+, per device, 5 years",{"v":52,"d":"$52.00"},{"v":47,"d":"$47.00"},"Subscription"]
["PCH-OCR1K-1M","PaperCut Hive Cloud OCR with Document Processing, 1000+, per device, monthly",{"v":1,"d":"$1.00"},{"$f":"ROUND(C370*(1-0.05),2)","v":{"v":0.95,"d":"$0.95"}},"Subscription"]
["PaperCut Hive Cilantro Add-On for OfficeRND"]
["PCH-OfficeRND-1Y","PaperCut Hive Cilantro add-on for OfficeRND, 1 year",{"v":995,"d":"$995.00"},{"$f":"ROUND(C372*(1-0.1),0)","v":{"v":896,"d":"$896.00"}},"Subscription"]
["PCH-OfficeRND-2Y","PaperCut Hive Cilantro add-on for OfficeRND, 2 year",{"v":1990,"d":"$1,990.00"},{"v":1791,"d":"$1,791.00"},"Subscription"]
["PCH-OfficeRND-3Y","PaperCut Hive Cilantro add-on for OfficeRND, 3 years",{"v":2985,"d":"$2,985.00"},{"v":2687,"d":"$2,687.00"},"Subscription"]
["PCH-OfficeRND-4Y","PaperCut Hive Cilantro add-on for OfficeRND, 4 years",{"v":3980,"d":"$3,980.00"},{"v":3582,"d":"$3,582.00"},"Subscription"]
["PCH-OfficeRND-5Y","PaperCut Hive Cilantro add-on for OfficeRND, 5 years",{"v":4975,"d":"$4,975.00"},{"v":4478,"d":"$4,478.00"},"Subscription"]
["PCH-OfficeRND-1M","PaperCut Hive Cilantro add-on for OfficeRND, monthly",{"v":84,"d":"$84.00"},{"$f":"ROUND(C377*(1-0.05),1)","v":{"v":79.8,"d":"$79.80"}},"Subscription"]
[]
["Annual Maintenance & Support (%'s based off total retail value of subscription license"]
["Vendor Part #","Description","MSRP","NASPO Price","Type"]
["Annual Maintenance & Support"]
["ACDI Subscription Software Maintenance and Support"]
["AMSS-PL","ACDI Subscription Plus software maintenance and support",{"v":0.1,"d":"$0.10"},{"$f":"ROUND(C383*(1-0.1),2)","v":{"v":0.09,"d":"$0.09"}},"One Time Fee"]
["AMSS-ADV","ACDI Subscription Advanced software maintenance and support",{"v":0.14,"d":"$0.14"},{"$f":"ROUND(C384*(1-0.1),2)","v":{"v":0.13,"d":"$0.13"}},"One Time Fee"]
["AMSS-247","ACDI Subscription 24/7 software maintenance and support",{"v":0.25,"d":"$0.25"},{"v":0.23,"d":"$0.23"},"One Time Fee"]
["PaperCut Hive Remote Configuration, Training, and Device Bundle "]
["PCH-Remote","PaperCut Hive remote configuration, training, and device bundle for 1-9 devices",{"v":995,"d":"$995.00"},{"$f":"ROUND(C387*(1-0.1),0)","v":{"v":896,"d":"$896.00"}},"One Time Fee"]
["PCH-Remote-10","PaperCut Hive remote configuration, training, and device bundle for 10-24 devices",{"v":1825,"d":"$1,825.00"},{"v":1643,"d":"$1,643.00"},"One Time Fee"]
["PCH-Remote-25","PaperCut Hive remote configuration, training, and device bundle for 25-49 devices",{"v":3200,"d":"$3,200.00"},{"v":2880,"d":"$2,880.00"},"One Time Fee"]
["PCH-Remote-50","PaperCut Hive remote configuration, training, and device bundle for 50-99 devices",{"v":5500,"d":"$5,500.00"},{"v":4950,"d":"$4,950.00"},"One Time Fee"]
["PCH-Remote-100","PaperCut Hive remote configuration, training, and device bundle for 100+ devices\n** Percent of one year retail value of Hive license **",{"v":0.35,"d":"$0.35"},{"$f":"ROUND(C391*(1-0.1),2)","v":{"v":0.32,"d":"$0.32"}},"One Time Fee"]

{"sheet":"Scanshare","index":6,"n_rows":136,"n_cols":5,"rows_kept":136,"merged":[[1,0,1,4],[2,0,2,4],[4,0,4,4],[5,0,5,4]]}
["Return To Table of Contents"]
["Scanshare"]
[]
[]
["Scanshare Capture is a powerful yet easy-to-use solution that lets you integrate your paper-based workflows, inbound emails, and faxes to your document management systems, databases, corporate file servers, and content management applications. "]
["Capture and convert your paper documents using your Sharp multifunctional device (with apps for most popular brands) via the Scanshare Capture embedded client."]
[]
[]
["SCANSHARE ESSENTIALS (1 YEAR M&S INCLUDED)"]
["Vendor Part #","Description","MSRP","NASPO Price","Type"]
["SS-SRV-ESS","Scanshare Essentials Server, incl. 1 yr m&s",{"v":495,"d":"$495.00"},{"$f":"ROUND(C11*(1-0.1),0)","v":{"v":446,"d":"$446.00"}},"One Time Fee"]
["SS-SRV-ESSVM","Scanshare Essentials VM Server, incl. 1 yr m&s",{"v":495,"d":"$495.00"},{"$f":"ROUND(C12*(1-0.1),0)","v":{"v":446,"d":"$446.00"}},"One Time Fee"]
[]
["ESSENTIALS CLIENTS (1 YEAR M&S INCLUDED)"]
["Vendor Part #","Description","MSRP","NASPO Price","Type"]
["ESSClient","Essentials Client, 1-24, per device, incl. 1 yr m&s",{"v":295,"d":"$295.00"},{"$f":"ROUND(C16*(1-0.1),0)","v":{"v":266,"d":"$266.00"}},"One Time Fee"]
["ESSClient-25","Essentials Client, 25-49, per device, incl. 1 yr m&s",{"v":205,"d":"$205.00"},{"$f":"ROUND(C17*(1-0.1),0)","v":{"v":185,"d":"$185.00"}},"One Time Fee"]
["ESSClient-50","Essentials Client, 50+, per device, incl. 1 yr m&s",{"v":175,"d":"$175.00"},{"$f":"ROUND(C18*(1-0.1),0)","v":{"v":158,"d":"$158.00"}},"One Time Fee"]
[]
["SCANSHARE ENTERPRISE (1 YEAR M&S INCLUDED)"]
["Vendor Part #","Description","MSRP","NASPO Price","Type"]
["SS-SRV-ENT","Scanshare Enterprise Server, incl. 1 yr m&s",{"v":1150,"d":"$1,150.00"},{"$f":"ROUND(C22*(1-0.1),0)","v":{"v":1035,"d":"$1,035.00"}},"One Time Fee"]
["SS-SRV-ENTVM","Scanshare Enterprise VM Server,  incl. 1 yr m&s",{"v":1150,"d":"$1,150.00"},{"$f":"ROUND(C23*(1-0.1),0)","v":{"v":1035,"d":"$1,035.00"}},"One Time Fee"]
["SS-FR-SRV","Scanshare File Repository, incl. 1 yr m&s",{"v":1500,"d":"$1,500.00"},{"$f":"ROUND(C24*(1-0.1),0)","v":{"v":1350,"d":"$1,350.00"}},"One Time Fee"]
[]
["ENTERPRISE CLIENTS (1 YEAR M&S INCLUDED)"]
["Vendor Part #","Description","MSRP","NASPO Price","Type"]
["Enterprise Client (Price per Device) - Includes 1 year M&S"]
["ENTClient","Enterprise Client 1-24, per device, incl. 1 yr m&s",{"v":595,"d":"$595.00"},{"$f":"ROUND(C29*(1-0.1),0)","v":{"v":536,"d":"$536.00"}},"One Time Fee"]
["ENTClient-25","Enterprise Client 25-99, per device, incl. 1 yr m&s",{"v":400,"d":"$400.00"},{"v":360,"d":"$360.00"},"One Time Fee"]
["ENTClient-100","Enterprise Client 100-399, per device, incl. 1 yr m&s",{"v":270,"d":"$270.00"},{"v":243,"d":"$243.00"},"One Time Fee"]
["ENTClient-400","Enterprise Client 400+, per device, incl. 1 yr m&s",{"v":250,"d":"$250.00"},{"v":225,"d":"$225.00"},"One Time Fee"]
["Enterprise PC Professional Client (Price per Device) - Includes 1 year M&S"]
["PC-DTP","Enterprise PC Professional Client, 1-24, per device incl. 1 yr m&s",{"v":595,"d":"$595.00"},{"v":536,"d":"$536.00"},"One Time Fee"]
["PC-DTP-25","Enterprise PC Professional Client, 25 -99, per device incl. 1 yr m&s",{"v":400,"d":"$400.00"},{"v":360,"d":"$360.00"},"One Time Fee"]
["PC-DTP-100","Enterprise PC Professional Client, 100-399, per device incl. 1 yr m&s",{"v":270,"d":"$270.00"},{"v":243,"d":"$243.00"},"One Time Fee"]
["PC-DTP-400","Enterprise PC Professional Client, 400+, per device incl. 1 yr m&s",{"v":250,"d":"$250.00"},{"v":225,"d":"$225.00"},"One Time Fee"]
["Enterprise PC Standard Client (Price per Device) - Includes 1 year M&S"]
["PC-DTS","Enterprise PC Standard Client, 1-24, per device incl. 1 yr m&s",{"v":325,"d":"$325.00"},{"v":293,"d":"$293.00"},"One Time Fee"]
["PC-DTS-25","Enterprise PC Standard Client, 25-99, per device incl. 1 yr m&s",{"v":195,"d":"$195.00"},{"v":176,"d":"$176.00"},"One Time Fee"]
["PC-DTS-100","Enterprise PC Standard Client, 100-399, per device incl. 1 yr m&s",{"v":150,"d":"$150.00"},{"v":135,"d":"$135.00"},"One Time Fee"]
["PC-DTS-400","Enterprise PC Standard Client, 400+, per device incl. 1 yr m&s",{"v":138,"d":"$138.00"},{"v":124,"d":"$124.00"},"One Time Fee"]
["Clientpack for Mobile Devices (10 pack) - Includes 1 year M&S"]
["MO-AND","Clientpack for 10 mobile devices incl. 1 yr m&s  ",{"v":595,"d":"$595.00"},{"v":536,"d":"$536.00"},"One Time Fee"]
[]
["ADDITIONAL LICENSE ADD-ONS"]
["Vendor Part #","Description","MSRP","NASPO Price","Type"]
["MOD-OMR","OMR",{"v":720,"d":"$720.00"},{"$f":"ROUND(C48*(1-0.1),0)","v":{"v":648,"d":"$648.00"}},"One Time Fee"]
["MOD-FFR","Free Form ",{"v":1790,"d":"$1,790.00"},{"v":1611,"d":"$1,611.00"},"One Time Fee"]
["MOD-BCA","Barcode writer / annotation",{"v":720,"d":"$720.00"},{"v":648,"d":"$648.00"},"One Time Fee"]
["MOD-VER_1","Verification Module 1 concurrent user ",{"v":145,"d":"$145.00"},{"v":131,"d":"$131.00"},"One Time Fee"]
["MOD-VER_10","Verification Module 10 concurrent users",{"v":185,"d":"$185.00"},{"v":167,"d":"$167.00"},"One Time Fee"]
["MOD-WCL_1","Webclient Standard 1 concurrent user",{"v":1425,"d":"$1,425.00"},{"v":1283,"d":"$1,283.00"},"One Time Fee"]
["MOD-WCL_10","Webclient Standard 10 concurrent users",{"v":245,"d":"$245.00"},{"v":221,"d":"$221.00"},"One Time Fee"]
["MOD-LBS","Load Balancing incl. 3 Connections",{"v":1880,"d":"$1,880.00"},{"v":1692,"d":"$1,692.00"},"One Time Fee"]
["MOD-LBC","Load Balancing additional Connection",{"v":2150,"d":"$2,150.00"},{"v":1935,"d":"$1,935.00"},"One Time Fee"]
["MOD-ADR","Automatic Document Recognition",{"v":720,"d":"$720.00"},{"v":648,"d":"$648.00"},"One Time Fee"]
["MOD-RGR","MS Word Report Generator module ",{"v":575,"d":"$575.00"},{"v":518,"d":"$518.00"},"One Time Fee"]
["MOD-PAS","PDF Advanced Signing ",{"v":2000,"d":"$2,000.00"},{"v":1800,"d":"$1,800.00"},"One Time Fee"]
["MOD-WEB","WEB Capture module",{"v":720,"d":"$720.00"},{"v":648,"d":"$648.00"},"One Time Fee"]
["MOD-MIC","MICR Module ",{"v":720,"d":"$720.00"},{"v":648,"d":"$648.00"},"One Time Fee"]
["MOD-HL7","HL7 Module ",{"v":1450,"d":"$1,450.00"},{"v":1305,"d":"$1,305.00"},"One Time Fee"]
["AI-SF-1K","Smart Forms incl. ICR  - (1,000 images)",{"v":55,"d":"$55.00"},{"v":50,"d":"$50.00"},"One Time Fee"]
["AI-SF-20K","Smart Forms incl. ICR   - (20,000 images)",{"v":770,"d":"$770.00"},{"v":693,"d":"$693.00"},"One Time Fee"]
["AI-SF-100K","Smart Forms incl. ICR   - (100,000 images)",{"v":3295,"d":"$3,295.00"},{"v":2966,"d":"$2,966.00"},"One Time Fee"]
["AI-SD-1K","Smart Documents incl. Summary / Classification / Personal Information - (1,000 images)",{"v":30,"d":"$30.00"},{"v":27,"d":"$27.00"},"One Time Fee"]
["AI-SD-20K","Smart Docuemnts incl.  Summary / Classification / Personal Information - (20,000 images)",{"v":500,"d":"$500.00"},{"v":450,"d":"$450.00"},"One Time Fee"]
["AI-SD-100K","Smart Documents incl. Summary / Classification / Personal Information - (100,000 images)",{"v":2000,"d":"$2,000.00"},{"v":1800,"d":"$1,800.00"},"One Time Fee"]
["AI-TR-1K","Smart Translation  - (1,000 images)",{"v":240,"d":"$240.00"},{"v":216,"d":"$216.00"},"One Time Fee"]
["AI-TR-20K","Smart Translation  - (20,000 images)",{"v":4000,"d":"$4,000.00"},{"v":3600,"d":"$3,600.00"},"One Time Fee"]
["AI-TR-100K","Smart Translation  - (100,000 images)",{"v":18000,"d":"$18,000.00"},{"v":16200,"d":"$16,200.00"},"One Time Fee"]
[]
["CONNECTORS (1 YEAR M&S INCLUDED)"]
["Vendor Part #","Description","MSRP","NASPO Price","Type"]
["PACK-FIN","Enterprise Financial Systems connectors, incl. 1 yr m&s",{"v":1200,"d":"$1,200.00"},{"$f":"ROUND(C75*(1-0.1),0)","v":{"v":1080,"d":"$1,080.00"}},"One Time Fee"]
["PACK-LEG","Enterprise Legal Systems connectors, incl. 1 yr m&s",{"v":1200,"d":"$1,200.00"},{"$f":"ROUND(C76*(1-0.1),0)","v":{"v":1080,"d":"$1,080.00"}},"One Time Fee"]
["PACK-ECM","Enterprise ECM/DMS Systems connectors, incl. 1 yr m&s",{"v":1200,"d":"$1,200.00"},{"$f":"ROUND(C77*(1-0.1),0)","v":{"v":1080,"d":"$1,080.00"}},"One Time Fee"]
["PACK-CLO","Enterprise Cloud Systems connectors, incl. 1 yr m&s",{"v":1200,"d":"$1,200.00"},{"$f":"ROUND(C78*(1-0.1),0)","v":{"v":1080,"d":"$1,080.00"}},"One Time Fee"]
["PACK-EXC","Enterprise Exclusive Systems connectors, incl. 1 yr m&s",{"v":1800,"d":"$1,800.00"},{"$f":"ROUND(C79*(1-0.1),0)","v":{"v":1620,"d":"$1,620.00"}},"One Time Fee"]
[]
["SCANSHARE SUBSCRIPTION"]
["Vendor Part #","Description","MSRP","NASPO Price","Type"]
["Scanshare Client Workflow (Price per Device) "]
["SS-SUB","Scanshare Client Workflow Subscription for 1-24 client/pc licenses, per device, yearly",{"v":480,"d":"$480.00"},{"$f":"ROUND(C84*(1-0.1),0)","v":{"v":432,"d":"$432.00"}},"Subscription"]
["SS-SUB-25","Scanshare Client Workflow Subscription for 25-99 client/pc licenses, per device, yearly",{"v":300,"d":"$300.00"},{"$f":"ROUND(C85*(1-0.1),0)","v":{"v":270,"d":"$270.00"}},"Subscription"]
["SS-SUB-100","Scanshare Client Workflow Subscription for 100-399 client/pc licenses, per device, yearly",{"v":180,"d":"$180.00"},{"$f":"ROUND(C86*(1-0.1),0)","v":{"v":162,"d":"$162.00"}},"Subscription"]
["SS-SUB-400","Scanshare Client Workflow Subscription for 400+ client/pc licenses, per device, yearly",{"v":144,"d":"$144.00"},{"$f":"ROUND(C87*(1-0.1),0)","v":{"v":130,"d":"$130.00"}},"Subscription"]
["Scanshare User Access (Price per User) "]
["SS-USER","Scanshare user access for Repository, Verification, WEB client, or Mobile client access 1-49, per user, yearly",{"v":48,"d":"$48.00"},{"$f":"ROUND(C89*(1-0.1),1)","v":{"v":43.2,"d":"$43.20"}},"Subscription"]
["SS-USER-50","Scanshare user access for Repository, Verification, WEB client, or Mobile client access 50-249, per user, yearly",{"v":42,"d":"$42.00"},{"$f":"ROUND(C90*(1-0.1),1)","v":{"v":37.8,"d":"$37.80"}},"Subscription"]
["SS-USER-250","Scanshare user access for Repository, Verification, WEB client, or Mobile client access 250-499, per user, yearly",{"v":36,"d":"$36.00"},{"$f":"ROUND(C91*(1-0.1),1)","v":{"v":32.4,"d":"$32.40"}},"Subscription"]
["SS-USER-500","Scanshare user access for Repository, Verification, WEB client, or Mobile client access 500+, per user, yearly",{"v":30,"d":"$30.00"},{"$f":"ROUND(C92*(1-0.1),1)","v":{"v":27,"d":"$27.00"}},"Subscription"]
[]
["SCANSHARE CLOUD SUBSCRIPTION"]
["Vendor Part #","Description","MSRP","NASPO Price","Type"]
["Scanshare Cloud Subscription"]
["SS-SUBCLD-12K","Scanshare Subscription - Hosted  - (12,000 images), yearly",{"v":720,"d":"$720.00"},{"$f":"ROUND(C97*(1-0.1),1)","v":{"v":648,"d":"$648.00"}},"Subscription"]
["SS-SUBCLD-24K","Scanshare Subscription - Hosted  - (24,000 images), yearly",{"v":1220,"d":"$1,220.00"},{"v":1098,"d":"$1,098.00"},"Subscription"]
["SS-SUBCLD-48K","Scanshare Subscription - Hosted  - (48,000 images), yearly",{"v":2300,"d":"$2,300.00"},{"v":2070,"d":"$2,070.00"},"Subscription"]
["SS-SUBCLD-96K","Scanshare Subscription - Hosted  - (96,000 images), yearly",{"v":4320,"d":"$4,320.00"},{"v":3888,"d":"$3,888.00"},"Subscription"]
["SS-SUBCLD-120K","Scanshare Subscription - Hosted  - (120,000 images), yearly",{"v":5000,"d":"$5,000.00"},{"v":4500,"d":"$4,500.00"},"Subscription"]
["SS-SUBCLD-240K","Scanshare Subscription - Hosted  - (240,000 images), yearly",{"v":9360,"d":"$9,360.00"},{"v":8424,"d":"$8,424.00"},"Subscription"]
["Scanshare One Time Addon Images"]
["SS-ADD-1K","Scanshare one time addon images - Hosted  - (1,000 images)",{"v":60,"d":"$60.00"},{"v":54,"d":"$54.00"},"One Time Fee"]
["SS-ADD-5K","Scanshare one time addon images - Hosted  - (5,000 images)",{"v":240,"d":"$240.00"},{"v":216,"d":"$216.00"},"One Time Fee"]
["Scanshare Reconnection Fee"]
["SUB-CLD-REC","Reconnection fee Scanshare Subscription - Hosted, one time",{"v":200,"d":"$200.00"},{"v":180,"d":"$180.00"},"One Time Fee"]
[]
["ADDITIONAL LICENSING - AI PAGES"]
["Vendor Part #","Description","MSRP","NASPO Price","Type"]
["AI-SF-1K","Smart Forms incl. ICR  - (1,000 images)",{"v":55,"d":"$55.00"},{"v":49.5,"d":"$49.50"},"One Time Fee"]
["AI-SF-20K","Smart Forms incl. ICR   - (20,000 images)",{"v":770,"d":"$770.00"},{"v":693,"d":"$693.00"},"One Time Fee"]
["AI-SF-100K","Smart Forms incl. ICR   - (100,000 images)",{"v":3295,"d":"$3,295.00"},{"v":2965.5,"d":"$2,965.50"},"One Time Fee"]
["AI-SD-1K","Smart Documents incl. Summary / Classification / Personal Information - (1,000 images)",{"v":30,"d":"$30.00"},{"$f":"ROUND(C114*(1-0.1),1)","v":{"v":27,"d":"$27.00"}},"One Time Fee"]
["AI-SD-20K","Smart Documents incl.  Summary / Classification / Personal Information - (20,000 images)",{"v":500,"d":"$500.00"},{"v":450,"d":"$450.00"},"One Time Fee"]
["AI-SD-100K","Smart Documents incl. Summary / Classification / Personal Information - (100,000 images)",{"v":2000,"d":"$2,000.00"},{"v":1800,"d":"$1,800.00"},"One Time Fee"]
["AI-TR-1K","Smart Translation  - (1,000 images)",{"v":240,"d":"$240.00"},{"v":216,"d":"$216.00"},"One Time Fee"]
["AI-TR-20K","Smart Translation  - (20,000 images)",{"v":4000,"d":"$4,000.00"},{"v":3600,"d":"$3,600.00"},"One Time Fee"]
["AI-TR-100K","Smart Translation  - (100,000 images)",{"v":18000,"d":"$18,000.00"},{"v":16200,"d":"$16,200.00"},"One Time Fee"]
[]
["PROFESSIONAL SERVICES"]
["Vendor Part #","Description","MSRP","NASPO Price","Type"]
["SS-AMSPlus-1","Scanshare Annual Maintenance and Support, 1 year",{"v":0.2,"d":"$0.20"},{"$f":"ROUND(C123*(1-0.05),2)","v":{"v":0.19,"d":"$0.19"}},"One Time Fee"]
["SS-AMSPlus-2","Scanshare Annual Maintenance and Support, 2 years",{"v":0.4,"d":"$0.40"},{"$f":"ROUND(C124*(1-0.05),2)","v":{"v":0.38,"d":"$0.38"}},"One Time Fee"]
["SS-AMSPlus-3","Scanshare Annual Maintenance and Support, 3 years",{"v":0.45,"d":"$0.45"},{"$f":"ROUND(C125*(1-0.05),2)","v":{"v":0.43,"d":"$0.43"}},"One Time Fee"]
["SS-AMSPlus-4","Scanshare Annual Maintenance and Support, 4 years",{"v":0.6,"d":"$0.60"},{"$f":"ROUND(C126*(1-0.05),2)","v":{"v":0.57,"d":"$0.57"}},"One Time Fee"]
["SS-AMSPlus-5","Scanshare Annual Maintenance and Support, 5 years",{"v":0.75,"d":"$0.75"},{"$f":"ROUND(C127*(1-0.05),2)","v":{"v":0.71,"d":"$0.71"}},"One Time Fee"]
["SS-RmtServer","Scanshare remote server configuration and training",{"v":595,"d":"$595.00"},{"$f":"ROUND(C128*(1-0.1),0)","v":{"v":536,"d":"$536.00"}},"One Time Fee"]
["SS-Manual-WF","Scanshare manual classification workflow, no data extraction, per workflow",{"v":290,"d":"$290.00"},{"v":261,"d":"$261.00"},"One Time Fee"]
["SS-Static-WF","Scanshare static document workflow includes basic data extraction, up to 5 fields per document, per workflow",{"v":480,"d":"$480.00"},{"v":432,"d":"$432.00"},"One Time Fee"]
["SS-ACDI-PS","ACDI Remote Professional Services for Scanshare (hourly)",{"v":200,"d":"$200.00"},{"v":180,"d":"$180.00"},"One Time Fee"]
["SS-RmtServer-Mig","Scanshare remote server migration",{"v":525,"d":"$525.00"},{"v":473,"d":"$473.00"},"One Time Fee"]
["SS-RmtClient","Scanshare client set up 1-24, per device",{"v":40,"d":"$40.00"},{"v":36,"d":"$36.00"},"One Time Fee"]
["SS-RmtClient-25","Scanshare client set up 25-99, per device",{"v":34,"d":"$34.00"},{"v":31,"d":"$31.00"},"One Time Fee"]
["SS-RmtClient-100","Scanshare client set up 100-399, per device",{"v":30,"d":"$30.00"},{"v":27,"d":"$27.00"},"One Time Fee"]
["SS-RmtClient-400","Scanshare client set up 400+, per device",{"v":24,"d":"$24.00"},{"v":22,"d":"$22.00"},"One Time Fee"]

{"sheet":"Intuitive _PC","index":7,"n_rows":164,"n_cols":5,"rows_kept":164,"merged":[[1,0,1,4],[2,0,2,4],[3,0,3,4],[41,0,42,2],[41,3,42,4],[59,0,60,2],[59,3,60,4],[102,0,103,2],[102,3,103,4],[104,0,105,2],[104,3,105,4],[147,0,148,2],[147,3,148,4],[149,0,150,2],[149,3,150,4]]}
["Return To Table of Contents"]
["Intuitive "]
[]
["Intuitive is an advanced dashboard and analytics tool that transforms print data into interactive, easy-to-understand visual reports. Powered by Intuitive Business Intelligence and offered through ACDI, it helps organizations monitor usage, track costs, and uncover opportunities to reduce waste and improve sustainability."]
[]
[]
["INTUITIVE FOR PAPERCUT MF (12 MONTH MINIMUM, 5 DEVICE MINIMUM)"]
["Vendor Part #","Description","MSRP","NASPO Price","Type"]
["Intuitive for PaperCut MF 5-9 Devices (Price Per Device)"]
["INTPCMF09U-1Y","Intuitive for Papercut MF 5-9 devices, per device, yearly",{"v":42,"d":"$42.00"},{"$f":"ROUND(C10*(1-0.1),0)","v":{"v":38,"d":"$38.00"}},"Subscription"]
["INTPCMF09U-1M","Intuitive for Papercut MF 5-9 devices, per device, monthly",{"$f":"C10/12","v":{"v":3.5,"d":"$3.50"}},{"$f":"ROUND(C11*(1-0.1),0)","v":{"v":3,"d":"$3.00"}},"Subscription"]
["Intuitive for PaperCut MF 10-49 Devices (Price Per Device)"]
["INTPCMF49U-1Y","Intuitive for Papercut MF 10-49 devices, per device, yearly",{"v":40,"d":"$40.00"},{"$f":"ROUND(C13*(1-0.1),0)","v":{"v":36,"d":"$36.00"}},"Subscription"]
["INTPCMF49U-1M","Intuitive for Papercut MF 10-49 devices, per device, monthly",{"$f":"C13/12","v":{"v":3.3333333333333335,"d":"$3.33"}},{"v":3,"d":"$3.00"},"Subscription"]
["Intuitive for PaperCut MF 50-99 Devices (Price Per Device)"]
["INTPCMF99U-1Y","Intuitive for Papercut MF 50-99 devices, per device, yearly",{"v":38.4,"d":"$38.40"},{"v":35,"d":"$35.00"},"Subscription"]
["INTPCMF99U-1M","Intuitive for Papercut MF 50-99 devices, per device, monthly",{"$f":"C16/12","v":{"v":3.1999999999999997,"d":"$3.20"}},{"v":3,"d":"$3.00"},"Subscription"]
["Intuitive for PaperCut MF 100-499 Devices (Price Per Device)"]
["INTPCMF499U-1Y","Intuitive for Papercut MF 100-499 devices, per device, yearly",{"v":32,"d":"$32.00"},{"v":29,"d":"$29.00"},"Subscription"]
["INTPCMF499U-1M","Intuitive for Papercut MF 100-499 devices, per device, monthly",{"$f":"C19/12","v":{"v":2.6666666666666665,"d":"$2.67"}},{"$f":"ROUND(C20*(1-0.05),1)","v":{"v":2.5,"d":"$2.50"}},"Subscription"]
["Intuitive for PaperCut MF 500+ Devices (Price Per Device)"]
["INTPCMF500U-1Y","Intuitive for Papercut MF 500+ devices, per device, yearly",{"v":26.5,"d":"$26.50"},{"v":24,"d":"$24.00"},"Subscription"]
["INTPCMF500U-1M","Intuitive for Papercut MF 500+ devices, per device, monthly",{"$f":"C22/12","v":{"v":2.2083333333333335,"d":"$2.21"}},{"$f":"ROUND(C23*(1-0.05),1)","v":{"v":2.1,"d":"$2.10"}},"Subscription"]
[]
["INTUITIVE FOR PAPERCUT HIVE -12 MONTH MINIMUM, 5 DEVICE MINIMUM (includes 25 viewers and PC Hive API Connection)"]
["Vendor Part #","Description","MSRP\nRetail","NASPO Price","Type"]
["Intuitive for PaperCut Hive 5-9 Devices (Price Per Device)"]
["INTPCHV09U-1Y","Intuitive for Papercut Hive* 5-9 devices, per device, yearly",{"v":66,"d":"$66.00"},{"v":59,"d":"$59.00"},"Subscription"]
["INTPCHV09U-1M","Intuitive for Papercut Hive* 5-9 devices, per device, monthly",{"$f":"C28/12","v":{"v":5.5,"d":"$5.50"}},{"v":5,"d":"$5.00"},"Subscription"]
["Intuitive for PaperCut Hive 10-49 Devices (Price Per Device)"]
["INTPCHV49U-1Y","Intuitive for Papercut Hive* 10-49 devices, per device, yearly",{"v":50,"d":"$50.00"},{"v":45,"d":"$45.00"},"Subscription"]
["INTPCHV49U-1M","Intuitive for Papercut Hive* 10-49 devices, per device, monthly",{"$f":"C31/12","v":{"v":4.166666666666667,"d":"$4.17"}},{"v":4,"d":"$4.00"},"Subscription"]
["Intuitive for PaperCut Hive 50-99 Devices (Price Per Device)"]
["INTPCHV99U-1Y","Intuitive for Papercut Hive* 50-99 devices, per device, yearly",{"v":38.4,"d":"$38.40"},{"v":35,"d":"$35.00"},"Subscription"]
["INTPCHV99U-1M","Intuitive for Papercut Hive* 50-99 devices, per device, monthly",{"$f":"C34/12","v":{"v":3.1999999999999997,"d":"$3.20"}},{"v":3,"d":"$3.00"},"Subscription"]
["Intuitive for PaperCut Hive 100-499 Devices (Price Per Device)"]
["INTPCHV499U-1Y","Intuitive for Papercut Hive* 100-499 devices, per device, yearly",{"v":32,"d":"$32.00"},{"v":29,"d":"$29.00"},"Subscription"]
["INTPCHV499U-1M","Intuitive for Papercut Hive* 100-499 devices, per device, monthly",{"$f":"C37/12","v":{"v":2.6666666666666665,"d":"$2.67"}},{"$f":"ROUND(C38*(1-0.05),1)","v":{"v":2.5,"d":"$2.50"}},"Subscription"]
["Intuitive for PaperCut Hive 500+ Devices (Price Per Device)"]
["INTPCHV500U-1Y","Intuitive for Papercut Hive* 500+ devices, per device, yearly",{"v":26.5,"d":"$26.50"},{"v":24,"d":"$24.00"},"Subscription"]
["INTPCHV500U-1M","Intuitive for Papercut Hive* 500+ devices, per device, monthly",{"$f":"C40/12","v":{"v":2.2083333333333335,"d":"$2.21"}},{"$f":"ROUND(C41*(1-0.05),1)","v":{"v":2.1,"d":"$2.10"}},"Subscription"]
["*The standard version of Intuitive for PaperCut Hive includes all dashboards being issued according to a standard design and cannot be modified either by the customer/partner or by Intuitive. Intuitive will create and issue Licenses using a secure password management platform, and all user management is performed by Intuitive."]
[]
[]
["INTUITIVE FOR DOCUWARE -12 MONTH MINIMUM, (includes 2 Administrators and Docuware API Connection)"]
[]
["Vendor Part #","Description","MSRP\nRetail","NASPO Price","Type"]
["Intuitive for Docuware Cloud 4 (4 named viewers)"]
["INTDW4U-1Y","Intuitive for Docuware Cloud 4, per year (4 named viewers)",{"v":2895,"d":"$2,895.00"},{"v":2606,"d":"$2,606.00"},"Subscription"]
["INTDW4U-1M","Intuitive for Docuware Cloud 4, per month",{"$f":"C49/12","v":{"v":241.25,"d":"$241.25"}},{"v":217,"d":"$217.00"},"Subscription"]
["Intuitive for Docuware Cloud 15 (15 named viewers + 1 add. admin)"]
["INTDW15U-1Y","Intuitive for Docuware Cloud 15, per year (15 named viewers + 1 additional admin)",{"v":4985,"d":"$4,985.00"},{"v":4487,"d":"$4,487.00"},"Subscription"]
["INTDW15U-1M","Intuitive for Docuware Cloud 15, per month",{"$f":"C52/12","v":{"v":415.4166666666667,"d":"$415.42"}},{"v":374,"d":"$374.00"},"Subscription"]
["Intuitive for Docuware Cloud 40 (40 named viewers + 1 add. admin)"]
["INTDW40U-1Y","Intuitive for Docuware Cloud 40, per year (40 named viewers + 2 additional admin)",{"v":7230,"d":"$7,230.00"},{"v":6507,"d":"$6,507.00"},"Subscription"]
["INTDW40U-1M","Intuitive for Docuware Cloud 40, per month",{"$f":"C55/12","v":{"v":602.5,"d":"$602.50"}},{"v":542,"d":"$542.00"},"Subscription"]
["Intuitive for Docuware Cloud 100 (100 named viewers + 1 add. admin)"]
["INTDW100U-1Y","Intuitive for Docuware Cloud 100, per year (100 named viewers + 3 additional admin)",{"v":10765,"d":"$10,765.00"},{"v":9689,"d":"$9,689.00"},"Subscription"]
["INTDW100U-1M","Intuitive for Docuware Cloud 100, per month",{"$f":"C58/12","v":{"v":897.0833333333334,"d":"$897.08"}},{"v":807,"d":"$807.00"},"Subscription"]
["Intuitive Licenses do not need to match Docuware Licenses"]
[]
[]
["INTUITIVE FOR SAFEQ -12 MONTH MINIMUM, 5 DEVICE MINIMUM (includes 25 viewers and SafeQ Database Connection)"]
[]
["Vendor Part #","Description","MSRP\nRetail","NASPO Price","Type"]
["Intuitive for SafeQ 5-9 Devices (Price Per Device)"]
["INTSQ09U-1Y","Intuitive for SafeQ 5-9 devices, per device, yearly",{"v":42,"d":"$42.00"},{"v":38,"d":"$38.00"},"Subscription"]
["INTSQ09U-1M","Intuitive for SafeQ 5-9 devices, per device, monthly",{"$f":"C67/12","v":{"v":3.5,"d":"$3.50"}},{"$f":"ROUND(C68*(1-0.1),0)","v":{"v":3,"d":"$3.00"}},"Subscription"]
["Intuitive for SafeQ 10-49 Devices (Price Per Device)"]
["INTSQ49U-1Y","Intuitive for SafeQ 10-49 devices, per device, yearly",{"v":40,"d":"$40.00"},{"v":36,"d":"$36.00"},"Subscription"]
["INTSQ49U-1M","Intuitive for SafeQ 10-49 devices, per device, monthly",{"$f":"C70/12","v":{"v":3.3333333333333335,"d":"$3.33"}},{"v":3,"d":"$3.00"},"Subscription"]
["Intuitive for SafeQ 50-99 Devices (Price Per Device)"]
["INTSQ99U-1Y","Intuitive for SafeQ 50-99 devices, per device, yearly",{"v":38.4,"d":"$38.40"},{"v":35,"d":"$35.00"},"Subscription"]
["INTSQ99U-1M","Intuitive for SafeQ 50-99 devices, per device, monthly",{"$f":"C73/12","v":{"v":3.1999999999999997,"d":"$3.20"}},{"v":3,"d":"$3.00"},"Subscription"]
["Intuitive for SafeQ 100-499 Devices (Price Per Device)"]
["INTSQ499U-1Y","Intuitive for SafeQ 100-499 devices, per device, yearly",{"v":32,"d":"$32.00"},{"v":29,"d":"$29.00"},"Subscription"]
["INTSQ499U-1M","Intuitive for SafeQ 100-499 devices, per device, monthly",{"$f":"C76/12","v":{"v":2.6666666666666665,"d":"$2.67"}},{"$f":"ROUND(C77*(1-0.05),1)","v":{"v":2.5,"d":"$2.50"}},"Subscription"]
["Intuitive for SafeQ 500+ Devices (Price Per Device)"]
["INTSQ500U-1Y","Intuitive for SafeQ* 500+ devices, per device, yearly",{"v":26.5,"d":"$26.50"},{"v":24,"d":"$24.00"},"Subscription"]
["INTSQ500U-1M","Intuitive for SafeQ* 500+ devices, per device, monthly",{"$f":"C79/12","v":{"v":2.2083333333333335,"d":"$2.21"}},{"$f":"ROUND(C80*(1-0.05),1)","v":{"v":2.1,"d":"$2.10"}},"Subscription"]
[]
["INTUITIVE FOR SAFEQ CLOUD -12 MONTH MINIMUM, 5 DEVICE MINIMUM (includes 25 viewers and SafeQ API Connection)"]
[]
["Vendor Part #","Description","MSRP\nRetail","NASPO Price","Type"]
["Intuitive for SafeQ 5-9 Devices (Price Per Device)"]
["INTSQCL09U-1Y","Intuitive for SafeQ* Cloud 5-9 devices, per device, yearly",{"v":66,"d":"$66.00"},{"$f":"ROUND(C86*(1-0.1),0)","v":{"v":59,"d":"$59.00"}},"Subscription"]
["INTSQCL09U-1M","Intuitive for SafeQ* Cloud 5-9 devices, per device, monthly",{"$f":"C86/12","v":{"v":5.5,"d":"$5.50"}},{"v":5,"d":"$5.00"},"Subscription"]
["Intuitive for SafeQ 10-49 Devices (Price Per Device)"]
["INTSQCL49U-1Y","Intuitive for SafeQ* Cloud 10-49 devices, per device, yearly",{"v":50,"d":"$50.00"},{"v":45,"d":"$45.00"},"Subscription"]
["INTSQCL49U-1M","Intuitive for SafeQ* Cloud 10-49 devices, per device, monthly",{"$f":"C89/12","v":{"v":4.166666666666667,"d":"$4.17"}},{"v":4,"d":"$4.00"},"Subscription"]
["Intuitive for SafeQ 50-99 Devices (Price Per Device)"]
["INTSQCL99U-1Y","Intuitive for SafeQ* Cloud 50-99 devices, per device, yearly",{"v":38.4,"d":"$38.40"},{"v":35,"d":"$35.00"},"Subscription"]
["INTSQCL99U-1M","Intuitive for SafeQ* Cloud 50-99 devices, per device, monthly",{"$f":"C92/12","v":{"v":3.1999999999999997,"d":"$3.20"}},{"v":3,"d":"$3.00"},"Subscription"]
["Intuitive for SafeQ 100-499 Devices (Price Per Device)"]
["INTSQCL499U-1Y","Intuitive for SafeQ* Cloud 100-499 devices, per device, yearly",{"v":32,"d":"$32.00"},{"v":29,"d":"$29.00"},"Subscription"]
["INTSQCL499U-1M","Intuitive for SafeQ* Cloud 100-499 devices, per device, monthly",{"$f":"C95/12","v":{"v":2.6666666666666665,"d":"$2.67"}},{"$f":"ROUND(C96*(1-0.05),1)","v":{"v":2.5,"d":"$2.50"}},"Subscription"]
["Intuitive for SafeQ 500+ Devices (Price Per Device)"]
["INTSQCL500U-1Y","Intuitive for SafeQ* Cloud 500+ devices, per device, yearly",{"v":26.5,"d":"$26.50"},{"v":24,"d":"$24.00"},"Subscription"]
["INTSQCL500U-1M","Intuitive for SafeQ* Cloud 500+ devices, per device, monthly",{"$f":"C98/12","v":{"v":2.2083333333333335,"d":"$2.21"}},{"$f":"ROUND(C99*(1-0.05),1)","v":{"v":2.1,"d":"$2.10"}},"Subscription"]
["Intuitive for SafeQ Cloud Enterprise"]
["INTHOSTU - 1Y","Intuitive for SafeQ Cloud Enterprise** (upgrade), yearly",{"v":2650,"d":"$2,650.00"},{"$f":"ROUND(C101*(1-0.1),0)","v":{"v":2385,"d":"$2,385.00"}},"Subscription"]
["INTHOSTU - 1M","Intuitive for SafeQ Cloud Enterprise** (upgrade), monthly",{"v":220.85,"d":"$220.85"},{"v":199,"d":"$199.00"},"Subscription"]
["*The standard version of Intuitive for SafeQ Cloud includes all dashboards being issued according to a standard design and cannot be modified either by the customer/partner or by Intuitive. Intuitive will create and issue licenses using a secure password management platform, and all user management is performed by Intuitive."]
[]
["**Intuitive for SafeQ Cloud Enterprise is an upgrade to an enhanced hosting environment which allows customers or partners to retain administration rights including adding/removing users and administration of the system, utilize third party authentication, add customer specific branding, and configure their own unique dashboards. Customer success support includes initial onboarding session to train users on navigating and maximizing the value of the print management dashboards, and an annual consultative review of data."]
[]
[]
["INTUITIVE FOR PARAGON -12 MONTH MINIMUM, 5 DEVICE MINIMUM (includes 25 viewers and Paragon Database Connection)"]
[]
["Vendor Part #","Description","MSRP\nRetail","NASPO Price","Type"]
["Intuitive for Paragon 5-9 Devices (Price Per Device)"]
["INTPG09U-1Y","Intuitive for Paragon 5-9 devices, per device, yearly",{"v":42,"d":"$42.00"},{"$f":"ROUND(C112*(1-0.1),0)","v":{"v":38,"d":"$38.00"}},"Subscription"]
["INTPG09U-1M","Intuitive for Paragon 5-9 devices, per device, monthly",{"v":3.5,"d":"$3.50"},{"$f":"ROUND(C113*(1-0.1),0)","v":{"v":3,"d":"$3.00"}},"Subscription"]
["Intuitive for Paragon 10-49 Devices (Price Per Device)"]
["INTPG49U-1Y","Intuitive for Paragon 10-49 devices, per device, yearly",{"v":40,"d":"$40.00"},{"v":36,"d":"$36.00"},"Subscription"]
["INTPG49U-1M","Intuitive for Paragon 10-49 devices, per device, monthly",{"v":3.33,"d":"$3.33"},{"v":3,"d":"$3.00"},"Subscription"]
["Intuitive for Paragon 50-99 Devices (Price Per Device)"]
["INTPG99U-1Y","Intuitive for Paragon 50-99 devices, per device, yearly",{"v":38.4,"d":"$38.40"},{"v":35,"d":"$35.00"},"Subscription"]
["INTPG99U-1M","Intuitive for Paragon 50-99 devices, per device, monthly",{"v":3.2,"d":"$3.20"},{"v":3,"d":"$3.00"},"Subscription"]
["Intuitive for Paragon 100-499 Devices (Price Per Device)"]
["INTPG499U-1Y","Intuitive for Paragon 100-499 devices, per device, yearly",{"v":32,"d":"$32.00"},{"v":29,"d":"$29.00"},"Subscription"]
["INTPG499U-1M","Intuitive for Paragon 100-499 devices, per device, monthly",{"v":2.67,"d":"$2.67"},{"v":2,"d":"$2.00"},"Subscription"]
["Intuitive for Paragon 500+ Devices (Price Per Device)"]
["INTPG500U-1Y","Intuitive for Paragon 500+ devices, per device, yearly",{"v":26.5,"d":"$26.50"},{"v":24,"d":"$24.00"},"Subscription"]
["INTPG500U-1M","Intuitive for Paragon 500+ devices, per device, monthly",{"v":2.21,"d":"$2.21"},{"$f":"ROUND(C125*(1-0.05),1)","v":{"v":2.1,"d":"$2.10"}},"Subscription"]
[]
["INTUITIVE FOR PARAGON CLOUD -12 MONTH MINIMUM, 5 DEVICE MINIMUM (includes 25 viewers and Paragon Cloud Connection)"]
[]
["Vendor Part #","Description","MSRP\nRetail","NASPO Price","Type"]
["Intuitive for Paragon 5-9 Devices (Price Per Device)"]
["INTPG09U-1Y","Intuitive for Paragon Cloud* 5-9 devices, per device, yearly",{"v":66,"d":"$66.00"},{"$f":"ROUND(C131*(1-0.1),0)","v":{"v":59,"d":"$59.00"}},"Subscription"]
["INTPG09U-1M","Intuitive for Paragon Cloud* 5-9 devices, per device, monthly",{"v":5.5,"d":"$5.50"},{"$f":"ROUND(C132*(1-0.1),0)","v":{"v":5,"d":"$5.00"}},"Subscription"]
["Intuitive for Paragon 10-49 Devices (Price Per Device)"]
["INTPG49U-1Y","Intuitive for Paragon Cloud* 10-49 devices, per device, yearly",{"v":50,"d":"$50.00"},{"v":45,"d":"$45.00"},"Subscription"]
["INTPG49U-1M","Intuitive for Paragon Cloud* 10-49 devices, per device, monthly",{"v":4.17,"d":"$4.17"},{"v":4,"d":"$4.00"},"Subscription"]
["Intuitive for Paragon 50-99 Devices (Price Per Device)"]
["INTPG99U-1Y","Intuitive for Paragon Cloud* 50-99 devices, per device, yearly",{"v":23.04,"d":"$23.04"},{"v":21,"d":"$21.00"},"Subscription"]
["INTPG99U-1M","Intuitive for Paragon Cloud* 50-99 devices, per device, monthly",{"v":1.92,"d":"$1.92"},{"v":2,"d":"$2.00"},"Subscription"]
["Intuitive for Paragon 100-499 Devices (Price Per Device)"]
["INTPG499U-1Y","Intuitive for Paragon Cloud*100-499 devices, per device, yearly",{"v":19.2,"d":"$19.20"},{"v":17,"d":"$17.00"},"Subscription"]
["INTPG499U-1M","Intuitive for Paragon Cloud* 100-499 devices, per device, monthly",{"v":1.6,"d":"$1.60"},{"v":1,"d":"$1.00"},"Subscription"]
["Intuitive for Paragon 500+ Devices (Price Per Device)"]
["INTPG500U-1Y","Intuitive for Paragon Cloud* 500+ devices, per device, yearly",{"v":26.5,"d":"$26.50"},{"v":24,"d":"$24.00"},"Subscription"]
["INTPG500U-1M","Intuitive for Paragon Cloud* 500+ devices, per device, monthly",{"v":2.21,"d":"$2.21"},{"$f":"ROUND(C144*(1-0.05),1)","v":{"v":2.1,"d":"$2.10"}},"Subscription"]
["Intuitive for Paragon Enterprise (upgrade)"]
["INTPGCLHOSTU-1Y","Intuitive for Paragon Cloud Enterprise** (upgrade), yearly",{"v":2650,"d":"$2,650.00"},{"$f":"ROUND(C146*(1-0.1),0)","v":{"v":2385,"d":"$2,385.00"}},"Subscription"]
["INTPGCLHOSTU-1M","Intuitive for Paragon Cloud Enterprise** (upgrade), monthly",{"v":220.85,"d":"$220.85"},{"$f":"ROUND(C147*(1-0.05),1)","v":{"v":209.8,"d":"$209.80"}},"Subscription"]
["*The standard version of Intuitive for Dispatcher Paragon Cloud includes all dashboards being issued according to a standard design and cannot be modified either by the customer/partner or by Intuitive. Intuitive will create and issue Licenses using a secure password management platform, and all user management is performed by Intuitive."]
["**Intuitive for Dispatched Paragon Cloud Enterprise is an upgrade to an enhanced hosting environment which allows customers or partners to retain administration rights including adding/removing users and administration of the system, utilise third party authentication, add customer specific branding, and configure their own unique dashboards. Customer success support includes initial onboarding session to train users on navigating and maximizing the value of the print management dashboards, and an annual consultative review of data."]
["**Intuitive for Dispatched Paragon Cloud Enterprise is an upgrade to an enhanced hosting environment which allows customers or partners to retain administration rights including adding/removing users and administration of the system, utilise third party authentication, add customer specific branding, and configure their own unique dashboards. Customer success support includes initial onboarding session to train users on navigating and maximizing the value of the print management dashboards, and an annual consultative review of data."]
[]
["INTUITIVE - Additional Users"]
["Vendor Part #","Description","MSRP\nRetail","NASPO Price","Type"]
["INTVWRU-1Y","Intuitive Viewer License, 1 additional viewer user, per year",{"v":100,"d":"$100.00"},{"$f":"ROUND(C154*(1-0.1),0)","v":{"v":90,"d":"$90.00"}},"Subscription"]
["INTVWRU25-1Y","Intuitive Viewer License, 25 additional viewer users, per year",{"v":2210,"d":"$2,210.00"},{"v":1989,"d":"$1,989.00"},"Subscription"]
["INTVWRU50-1Y","Intuitive Viewer License, 50 additional viewer users, per year",{"v":4415,"d":"$4,415.00"},{"v":3974,"d":"$3,974.00"},"Subscription"]
["INTVWRU100-1Y","Intuitive Viewer License, 100 additional viewer users, per year",{"v":7230,"d":"$7,230.00"},{"v":6507,"d":"$6,507.00"},"Subscription"]
["INTVWRU-1M","Intuitive Viewer License, 1 additional viewer user, per month",{"v":8.5,"d":"$8.50"},{"v":8,"d":"$8.00"},"Subscription"]
["INTDESU-1Y","Intuitive Dashboard Designer User License, per year",{"v":1240,"d":"$1,240.00"},{"v":1116,"d":"$1,116.00"},"Subscription"]
["INTSYSU-1Y","Intuitive System Designer User License, per year",{"v":1240,"d":"$1,240.00"},{"v":1116,"d":"$1,116.00"},"Subscription"]
["INTADMU-1Y","Intuitive Administrator User License, per year",{"v":1240,"d":"$1,240.00"},{"v":1116,"d":"$1,116.00"},"Subscription"]
["INTUITIVE SETUP/CONFIGURATION"]
["Vendor Part #","Description","MSRP\nRetail","NASPO Price","Type"]
["INT-SETUP","Intuitive for PaperCut Configuration/Training",{"v":350,"d":"$350.00"},{"$f":"ROUND(C164*(1-0.1),0)","v":{"v":315,"d":"$315.00"}},"One Time Fee"]

{"sheet":"FaxCore Cloud Faxing","index":8,"n_rows":96,"n_cols":5,"rows_kept":96,"merged":[[2,0,2,4],[3,0,3,4],[4,0,9,4]]}
["Return To Table of Contents"]
[]
["FaxCore Price List"]
[]
["etherFAX® offers a secure document delivery platform and suite of applications widely used across a broad range of industries to digitize workflows and optimize business processes. As a leading provider of hybrid-cloud fax solutions supporting healthcare enterprises, etherFAX securely transmits protected health information and high-resolution, color documents  directly to  applications and devices  with end-to-end encryption and ultra-fast transmission speeds.\nFaxcore is an award-winning fax server solution that integrates MFPs and PCs into a cloud based fax solution. FaxCore also integrates with Microsoft® applications and Office 365. FaxCore is also a strategic partner of etherFAX, the fax board in the cloud. FaxCore offers partly-cloudy and fully hosted fax options.\n"]
[]
[]
[]
[]
[]
[]
["Product Code","Description","MSRP","NASPO PRICE","Type"]
["EtherFax"]
["EF-1000","1,000 pages/month ",{"v":100,"d":"$100.00"},{"$f":"ROUND(C14*(1-0.1),0)","v":{"v":90,"d":"$90.00"}},"Monthly Subscription "]
["EF-10000","10,000 pages/month ",{"v":880,"d":"$880.00"},{"$f":"ROUND(C15*(1-0.1),0)","v":{"v":792,"d":"$792.00"}},"Monthly Subscription "]
["EF-13000","13,000 pages/month ",{"v":1000,"d":"$1,000.00"},{"v":900,"d":"$900.00"},"Monthly Subscription "]
["EF-1500","1500 Pages/Month",{"v":143,"d":"$143.00"},{"v":129,"d":"$129.00"},"Monthly Subscription "]
["EF-16000","16,000 pages/month",{"v":1144,"d":"$1,144.00"},{"v":1030,"d":"$1,030.00"},"Monthly Subscription "]
["EF-2000","2,000 pages/month",{"v":176,"d":"$176.00"},{"v":158,"d":"$158.00"},"Monthly Subscription "]
["EF-20000","20,000 pages/month",{"v":1320,"d":"$1,320.00"},{"v":1188,"d":"$1,188.00"},"Monthly Subscription "]
["EF-3000","3,000 pages/month",{"v":264,"d":"$264.00"},{"v":238,"d":"$238.00"},"Monthly Subscription "]
["EF-4000","4,000 pages/month ",{"v":352,"d":"$352.00"},{"v":317,"d":"$317.00"},"Monthly Subscription "]
["EF-500","500 pages/month ",{"v":60,"d":"$60.00"},{"v":54,"d":"$54.00"},"Monthly Subscription "]
["EF-5000","5,000 pages/month ",{"v":440,"d":"$440.00"},{"v":396,"d":"$396.00"},"Monthly Subscription "]
["EF-6000","6,000 pages/month",{"v":528,"d":"$528.00"},{"v":475,"d":"$475.00"},"Monthly Subscription "]
["EF-7000","7,000 pages/month",{"v":616,"d":"$616.00"},{"v":554,"d":"$554.00"},"Monthly Subscription "]
["EF-750","750 pages/month",{"v":77,"d":"$77.00"},{"v":69,"d":"$69.00"},"Monthly Subscription "]
["EF-8000","8,000 pages/month ",{"v":704,"d":"$704.00"},{"v":634,"d":"$634.00"},"Monthly Subscription "]
["EF-9000","9,000 pages/month ",{"v":792,"d":"$792.00"},{"v":713,"d":"$713.00"},"Monthly Subscription "]
["EF-DID-Toll","Toll DID's (Direct in Dial Phone Number)",{"v":2,"d":"$2.00"},{"$f":"ROUND(C30*(1-0.5),0)","v":{"v":1,"d":"$1.00"}},"Monthly Subscription "]
["EF-DID-TollFree","Toll Free DID's (Direct in Dial Phone Number)",{"v":3,"d":"$3.00"},{"$f":"ROUND(C31*(1-0.5),0)","v":{"v":2,"d":"$2.00"}},"Monthly Subscription "]
["EF-PF","EtherFax One-time Porting Fee for existing fax numbers",{"v":20,"d":"$20.00"},{"v":18,"d":"$18.00"},"One time fee"]
["EF-Port-Change","EtherFax FOC Cancellation Fee",{"v":30,"d":"$30.00"},{"v":27,"d":"$27.00"},"One time fee"]
["Fax2u.net"]
["Fax2u-1000","1,000 pages/month ",{"v":100,"d":"$100.00"},{"v":90,"d":"$90.00"},"Monthly Subscription"]
["Fax2u-10000","10,000 pages/month",{"v":880,"d":"$880.00"},{"v":792,"d":"$792.00"},"Monthly Subscription"]
["Fax2u-13000","13,000 pages/month",{"v":1000,"d":"$1,000.00"},{"v":900,"d":"$900.00"},"Monthly Subscription"]
["Fax2u-1500","1,500 Pages/Month ",{"v":143,"d":"$143.00"},{"v":129,"d":"$129.00"},"Monthly Subscription"]
["Fax2u-16000","16,000 pages/month",{"v":1144,"d":"$1,144.00"},{"v":1030,"d":"$1,030.00"},"Monthly Subscription"]
["Fax2u-2000","2,000 pages/month",{"v":176,"d":"$176.00"},{"v":158,"d":"$158.00"},"Monthly Subscription"]
["Fax2u-20000","20,000 pages/month ",{"v":1320,"d":"$1,320.00"},{"v":1188,"d":"$1,188.00"},"Monthly Subscription"]
["Fax2u-3000","3,000 pages/month",{"v":264,"d":"$264.00"},{"v":238,"d":"$238.00"},"Monthly Subscription"]
["Fax2u-4000","4,000 pages/month",{"v":352,"d":"$352.00"},{"v":317,"d":"$317.00"},"Monthly Subscription"]
["Fax2u-500","500 pages/month ",{"v":60,"d":"$60.00"},{"v":54,"d":"$54.00"},"Monthly Subscription"]
["Fax2u-5000","5,000 pages/month",{"v":440,"d":"$440.00"},{"v":396,"d":"$396.00"},"Monthly Subscription"]
["Fax2u-6000","6,000 pages/month ",{"v":528,"d":"$528.00"},{"v":475,"d":"$475.00"},"Monthly Subscription"]
["Fax2u-7000","7,000 pages/month ",{"v":616,"d":"$616.00"},{"v":554,"d":"$554.00"},"Monthly Subscription"]
["Fax2u-750","750 pages/month",{"v":77,"d":"$77.00"},{"v":69,"d":"$69.00"},"Monthly Subscription"]
["Fax2u-8000","8,000 pages/month",{"v":704,"d":"$704.00"},{"v":634,"d":"$634.00"},"Monthly Subscription"]
["Fax2u-9000","9,000 pages/month ",{"v":792,"d":"$792.00"},{"v":713,"d":"$713.00"},"Monthly Subscription"]
["Fax2u-DID-Toll","Toll DID's (Direct in Dial Phone Number)",{"v":2,"d":"$2.00"},{"$f":"ROUND(C51*(1-0.5),0)","v":{"v":1,"d":"$1.00"}},"Monthly Subscription"]
["Fax2u-DID-TollFree","Toll Free DID's (Direct in Dial Phone Number)",{"v":3,"d":"$3.00"},{"$f":"ROUND(C52*(1-0.5),0)","v":{"v":2,"d":"$2.00"}},"Monthly Subscription"]
["Fax2u-PF","Fax2u.net One-time Porting Fee for existing fax numbers",{"v":20,"d":"$20.00"},{"v":18,"d":"$18.00"},"One time fee"]
["Fax2u-Port-Change","Fax2u.net FOC Cancellation Fee",{"v":30,"d":"$30.00"},{"v":27,"d":"$27.00"},"One time fee"]
["Faxme.cloud"," "," "]
["Faxme-1000","1,000 pages per month",{"v":100,"d":"$100.00"},{"v":90,"d":"$90.00"},"Monthly Subscription"]
["Faxme-10000","10,000 pages per month",{"v":880,"d":"$880.00"},{"v":792,"d":"$792.00"},"Monthly Subscription"]
["Faxme-13000","13,000 pages per month",{"v":1000,"d":"$1,000.00"},{"v":900,"d":"$900.00"},"Monthly Subscription"]
["Faxme-1500","1,500 pages per month",{"v":143,"d":"$143.00"},{"v":129,"d":"$129.00"},"Monthly Subscription"]
["Faxme-16000","16,000 pages per month",{"v":1144,"d":"$1,144.00"},{"v":1030,"d":"$1,030.00"},"Monthly Subscription"]
["Faxme-2000","2,000 pages per month",{"v":176,"d":"$176.00"},{"v":158,"d":"$158.00"},"Monthly Subscription"]
["Faxme-20000","20,000 pages per month",{"v":1320,"d":"$1,320.00"},{"v":1188,"d":"$1,188.00"},"Monthly Subscription"]
["Faxme-3000","3,000 pages per month",{"v":264,"d":"$264.00"},{"v":238,"d":"$238.00"},"Monthly Subscription"]
["Faxme-4000","4,000 pages per month",{"v":352,"d":"$352.00"},{"v":317,"d":"$317.00"},"Monthly Subscription"]
["Faxme-500","500 pages per month",{"v":60,"d":"$60.00"},{"v":54,"d":"$54.00"},"Monthly Subscription"]
["Faxme-5000","5,000 pages per month",{"v":440,"d":"$440.00"},{"v":396,"d":"$396.00"},"Monthly Subscription"]
["Faxme-6000","6,000 pages per month",{"v":528,"d":"$528.00"},{"v":475,"d":"$475.00"},"Monthly Subscription"]
["Faxme-7000","7,000 pages per month",{"v":616,"d":"$616.00"},{"v":554,"d":"$554.00"},"Monthly Subscription"]
["Faxme-750","750 pages per month",{"v":77,"d":"$77.00"},{"v":69,"d":"$69.00"},"Monthly Subscription"]
["Faxme-8000","8,000 pages per month",{"v":704,"d":"$704.00"},{"v":634,"d":"$634.00"},"Monthly Subscription"]
["Faxme-9000","9,000 pages per month",{"v":792,"d":"$792.00"},{"v":713,"d":"$713.00"},"Monthly Subscription"]
["Faxme-DID-Toll","Toll DID's (Direct in Dial Phone Number)",{"v":2,"d":"$2.00"},{"$f":"ROUND(C72*(1-0.5),0)","v":{"v":1,"d":"$1.00"}},"Monthly Subscription"]
["Faxme-DID-TollFree","Toll Free DID's (Direct in Dial Phone Number)",{"v":3,"d":"$3.00"},{"$f":"ROUND(C73*(1-0.5),0)","v":{"v":2,"d":"$2.00"}},"Monthly Subscription"]
["Faxme-PF","Faxme.cloud One-time Porting Fee for existing fax numbers",{"v":20,"d":"$20.00"},{"v":18,"d":"$18.00"},"One time fee"]
["Faxme-Port-Change","Faxme.cloud FOC Cancellation Fee",{"v":30,"d":"$30.00"},{"v":27,"d":"$27.00"},"One time fee"]
["Faxit2me.com ",null," "]
["Faxit2me-1000","1,000 pages/month",{"v":100,"d":"$100.00"},{"v":90,"d":"$90.00"},"Monthly Subscription"]
["Faxit2me-10000","10,000 pages/month ",{"v":880,"d":"$880.00"},{"v":792,"d":"$792.00"},"Monthly Subscription"]
["Faxit2me-13000","13,000 pages/month ",{"v":1000,"d":"$1,000.00"},{"$f":"ROUND(C79*(1-0.1),0)","v":{"v":900,"d":"$900.00"}},"Monthly Subscription"]
["Faxit2me-1500","1,500 Pages/Month ",{"v":143,"d":"$143.00"},{"v":129,"d":"$129.00"},"Monthly Subscription"]
["Faxit2me-16000","16,000 pages/month",{"v":1144,"d":"$1,144.00"},{"v":1030,"d":"$1,030.00"},"Monthly Subscription"]
["Faxit2me-2000","2,000 pages/month",{"v":176,"d":"$176.00"},{"v":158,"d":"$158.00"},"Monthly Subscription"]
["Faxit2me-20000","20,000 pages/month",{"v":1320,"d":"$1,320.00"},{"v":1188,"d":"$1,188.00"},"Monthly Subscription"]
["Faxit2me-3000","3,000 pages/month ",{"v":264,"d":"$264.00"},{"v":238,"d":"$238.00"},"Monthly Subscription"]
["Faxit2me-4000","4,000 pages/month ",{"v":352,"d":"$352.00"},{"v":317,"d":"$317.00"},"Monthly Subscription"]
["Faxit2me-500","500 pages/month ",{"v":60,"d":"$60.00"},{"v":54,"d":"$54.00"},"Monthly Subscription"]
["Faxit2me-5000","5,000 pages/month",{"v":440,"d":"$440.00"},{"v":396,"d":"$396.00"},"Monthly Subscription"]
["Faxit2me-6000","6,000 pages/month ",{"v":528,"d":"$528.00"},{"v":475,"d":"$475.00"},"Monthly Subscription"]
["Faxit2me-7000","7,000 pages/month",{"v":616,"d":"$616.00"},{"v":554,"d":"$554.00"},"Monthly Subscription"]
["Faxit2me-750","750 pages/month",{"v":77,"d":"$77.00"},{"v":69,"d":"$69.00"},"Monthly Subscription"]
["Faxit2me-8000","8,000 pages/month",{"v":704,"d":"$704.00"},{"v":634,"d":"$634.00"},"Monthly Subscription"]
["Faxit2me-9000","9,000 pages/month",{"v":792,"d":"$792.00"},{"v":713,"d":"$713.00"},"Monthly Subscription"]
["Faxit2me-DID-TF","DID's Toll-Free (Direct in Dial Phone Number)",{"v":2,"d":"$2.00"},{"v":2,"d":"$2.00"},"Monthly Subscription"]
["Faxit2me-DID-Toll","Toll DID's (Direct in Dial Phone Number)",{"v":3,"d":"$3.00"},{"$f":"ROUND(C94*(1-0.5),0)","v":{"v":2,"d":"$2.00"}},"Monthly Subscription"]
["Faxit2me-PF","Faxit2me.com One-time Porting Fee for existing fax numbers",{"v":20,"d":"$20.00"},{"v":18,"d":"$18.00"},"One time fee"]
["Faxit2me-Port-Change","Faxit2me.com FOC Cancellation Fee",{"v":30,"d":"$30.00"},{"v":27,"d":"$27.00"},"One time fee"]

{"sheet":"Square 9","index":9,"n_rows":267,"n_cols":6,"rows_kept":267,"merged":[[2,0,2,4],[3,0,3,5],[5,0,10,4],[5,5,10,5],[11,0,11,4],[12,0,12,1]]}
["Return To Table of Contents"]
[]
["Square 9 Price List"]
[]
[]
["Global Capture: Easily capture, classify and validate high volumes of documents including paper, PDF, and even email messages and their attachments.  No matter how they enter your organization, capture automation transforms them into usable insights that drive improved decision making and business outcomes. \nGlobal Search: Delivering anywhere, anytime access to documents through the browser, GlobalSearch ECM software keeps processes consistent and your team productive, while offering the same power as the desktop client.\nIntegrate GlobalSearch software with leading business applications including Quickbooks, Salesforce, Microsoft Dynamics and more.  In addition, gain full document capture and retrieval support right from the control panel of your office Multifunctional device. \nGranular security provides user-based sign-in access, keeping databases, archives, documents and feature-level security enforced. The audit trail logs all document actions by date and user with convenient filtering and export options, to provide full visibility into business output.\nGlobal Forms:  With its browser-based platform, GlobalForms offers robust styling options for easy form creation. Simply drag-and-drop form fields onto the designer to build a unique form.\nBuild rules and logic into web forms that dynamically change the layout based on selections made, ensuring required data has been provided before web form submission\nAutomatically route documents for approval, notifying users of required action. Or integrate web forms into capture workflows to create a single process for working with data!\nLeverage document capture automation to effortlessly collect data from all sources, creating a single process for working with information.\n"]
{"$rows_empty":8}
["GLOBALSEARCH CLOUD IIM"]
["Vendor Part #","Description","MSRP","NASPO PRICE","Category","Type"]
["GlobalSearch Cloud - Process Automation Essentials (Per Month per named user- Basic Capture Only"]
["GSCLPAE-001","GlobalSearch Cloud -Process Automation Essentials - per month per named user  5-15 User Tier",{"v":50,"d":"$50.00"},{"$f":"ROUND(C18*(1-0.1),0)","v":{"v":45,"d":"$45.00"}},"Cloud","Monthly Subscription"]
["GSCLPAE-002","GlobalSearch Cloud - Process Automation Essentials- per month per named user  16-25 User Tier",{"v":45,"d":"$45.00"},{"$f":"ROUND(C19*(1-0.1),0)","v":{"v":41,"d":"$41.00"}},"Cloud","Monthly Subscription"]
["GlobalSearch Cloud - Digital Transformation Essentials (Inludes GlobalForms Design Studio with Five Forms and Unlimited Workflow)"]
["GSCLDTE-001","GlobalSearch Professional Edition PLUS, Includes a Single Workflow Per User (Minimum 3 Users)",{"v":68,"d":"$68.00"},{"v":61,"d":"$61.00"},"Cloud","Monthly Subscription"]
["GSCLDTE-002","GlobalSearch Professional Edition PLUS Per User (Minimum 3 Users)- M&S (Per Month - 12 mos required)",{"v":55,"d":"$55.00"},{"v":50,"d":"$50.00"},"M&S","Monthly Subscription"]
["GSCLDTE-003","Enterprise Content Management with Unlimited Workflows - 5-10 Concurrent User Price Tier",{"v":50,"d":"$50.00"},{"v":45,"d":"$45.00"},"Cloud","Monthly Subscription"]
["GSCLDTE-004","GlobalSearch Corporate Per Concurrent User - 5-10 License Tier- M&S (Per Month) - M&S (Per Month - 12 mos required)",{"v":45,"d":"$45.00"},{"v":41,"d":"$41.00"},"M&S","Monthly Subscription"]
["GSCLDTE-005","Enterprise Content Management with Unlimited Workflows - 11-25 Concurrent User Price Tier",{"v":40,"d":"$40.00"},{"v":36,"d":"$36.00"},"Cloud","Monthly Subscription"]
["GlobalSearch Cloud - Enterprise Essentials (Includes Unltd GlobalAction Workflows and Unltd Forms)"]
["GSCLEEE-006","GlobalSearch Cloud  Enterprise Essentials Edition - per month per named user for  5-9 named users",{"v":95,"d":"$95.00"},{"v":86,"d":"$86.00"},"Cloud","Monthly Subscription"]
["GSCLEEE-001","GlobalSearch Cloud  Enterprise Essentials Edition - per month per named user for  10-15 named users",{"v":75,"d":"$75.00"},{"v":68,"d":"$68.00"},"Cloud","Monthly Subscription"]
["GSCLEEE-002","GlobalSearch Cloud  Enterprise Essentials Edition - per month per named user for  16-25 named users",{"v":70,"d":"$70.00"},{"v":63,"d":"$63.00"},"Cloud","Monthly Subscription"]
["GSCLEEE-003","GlobalSearch Cloud  Enterprise Essentials Edition - per month per named user for  26-50 named users",{"v":60,"d":"$60.00"},{"v":54,"d":"$54.00"},"Cloud","Monthly Subscription"]
["GSCLEEE-004","GlobalSearch Cloud  Enterprise Essentials Edition - per month per named user for  51-100 named users",{"v":50,"d":"$50.00"},{"v":45,"d":"$45.00"},"Cloud","Monthly Subscription"]
["GSCLEEE-005","GlobalSearch Cloud  Enterprise Essentials Edition - per month per named user for  101-250 named users",{"v":45,"d":"$45.00"},{"v":41,"d":"$41.00"},"Cloud","Monthly Subscription"]
["GCCLBOOST-001","Cloud Transformation Boost Option Per Month (per month - min 12 months) \n",{"v":200,"d":"$200.00"},{"v":180,"d":"$180.00"},"Cloud","Monthly Subscription"]
["GlobalSearch Cloud IIM Add Ons - Integration "]
["GSCLIX-003","Image Xchange per named user (per month - min 12 months)",{"v":10,"d":"$10.00"},{"v":9,"d":"$9.00"},"Cloud","Monthly Subscription"]
["GSCLIX-004","Image Xchange Enterprise  - (per month - min 12 months)",{"v":100,"d":"$100.00"},{"v":90,"d":"$90.00"},"Cloud","Monthly Subscription"]
["GCCLQBOL-001","QuickBooks Online iPaaS Connector -  (per month - min 12 mos) \n",{"v":65,"d":"$65.00"},{"v":59,"d":"$59.00"},"Cloud","Monthly Subscription"]
["GCCLCTSDYN-001","Dynamics 365 iPaaS Connector  -  (per month - min 12 mos)\n",{"v":65,"d":"$65.00"},{"v":59,"d":"$59.00"},"Cloud","Monthly Subscription"]
["GSCLNSIPAAS-001","NetSuite iPaaS Connector - (per month - min 12 mos)\n",{"v":95,"d":"$95.00"},{"v":86,"d":"$86.00"},"Cloud","Monthly Subscription"]
["GSCLIPAAS-001","Universal iPaaS Connector -  (per month - min 12 mos)\n",{"v":95,"d":"$95.00"},{"v":86,"d":"$86.00"},"Cloud","Monthly Subscription"]
["GSCLS9API-001","Additional Square 9 API Calls - 100,000 Additional API calls per month (per month - min 12 mos)\n",{"v":100,"d":"$100.00"},{"v":90,"d":"$90.00"},"Cloud","Monthly Subscription"]
["GlobalSearch Cloud IIM Add Ons - AI Services"]
["GSCLTAIOCR-001","ArticulateML 1000 Pages Per Month (priced per month -12 months required)",{"v":225,"d":"$225.00"},{"v":203,"d":"$203.00"},"Cloud","Monthly Subscription"]
["GCCLINQAI-001","InquireAI Header Data Extraction 5000 Pages Per Month (priced per month/per instance -12 months required)\n",{"v":250,"d":"$250.00"},{"v":225,"d":"$225.00"},"Cloud","Monthly Subscription"]
["GCCLINQAI-002","InquireAI Header and Table Data Extraction 5000 Pages Per Month (priced per month/per instance -12 months required)\n ",{"v":495,"d":"$495.00"},{"v":446,"d":"$446.00"},"Cloud","Monthly Subscription"]
["GCCLINQAI-003","InquireAI Upgrade to Header and Table Data Extraction (priced per month/per instance -12 months required)\n",{"v":245,"d":"$245.00"},{"v":221,"d":"$221.00"},"Cloud","Monthly Subscription"]
["GCCLINQAI-004","InquireAI One Time Use Header Data Extraction 2500 Pages\n",{"v":250,"d":"$250.00"},{"v":225,"d":"$225.00"},"Cloud","One Time Fee"]
["GCCLINQAI-005","InquireAI One Time Use Header and Table Data Extraction 2500 Pages\n",{"v":375,"d":"$375.00"},{"v":338,"d":"$338.00"},"Cloud","One Time Fee"]
["GlobalSearch Cloud IIM Add Ons - Capture Services"]
["GCCLBOOST-001","Cloud Transformation Boost Option Per Month (per month - min 12 months)\n",{"v":200,"d":"$200.00"},{"v":180,"d":"$180.00"},"Cloud","Monthly Subscription"]
["GCCLAGAPI-001","Agvance API Calls - 100,000 Agvance API calls per month (per month - min 12 months)\n",{"v":100,"d":"$100.00"},{"v":90,"d":"$90.00"},"Cloud","Monthly Subscription"]
["GlobalSearch Cloud IIM Add Ons - Storage Expansion"]
["GSCL-STOR-006","GlobalSearch Cloud Storage - Per 10 GB up to 100 GB (per month - min 12 months)",{"v":10,"d":"$10.00"},{"v":9,"d":"$9.00"},"Cloud","Monthly Subscription"]
["GSCL-STOR-007","GlobalSearch Cloud Storage - Per 100 GB - (per month - min 12 months)",{"v":65,"d":"$65.00"},{"v":59,"d":"$59.00"},"Cloud","Monthly Subscription"]
["GSCL-STOR-008","GlobalSearch Cloud Storage - Per 1 TB - (per month - min 12 months)",{"v":300,"d":"$300.00"},{"v":270,"d":"$270.00"},"Cloud","Monthly Subscription"]
["GSCL-CRDR-001","Cross Region Data Replication -  - (per month - min 12 months) (AVAILABLE IN ENTERPRISE  EDITION ONLY)\n",{"v":1,"d":"$1.00"},{"$f":"ROUND(C56*(1-0.05),2)","v":{"v":0.95,"d":"$0.95"}},"Cloud","Monthly Subscription"]
["GlobalSearch Cloud IIM Add Ons - Internal and Public Access Portals"]
["GSCLRO-002","GlobalSearch Internal Read Only License (1-25 users) (per month - min 12 months)",{"v":25,"d":"$25.00"},{"v":23,"d":"$23.00"},"Cloud","Monthly Subscription"]
["GSCLRO-003","GlobalSearch Internal Read Only License  (26-250 users) (per month - min 12 months)",{"v":20,"d":"$20.00"},{"v":18,"d":"$18.00"},"Cloud","Monthly Subscription"]
["GSCLPAP-001","GlobalSearch Guest Public Access Portal - 100 Users (per month - min 12 months)\nExternal users only",{"v":175,"d":"$175.00"},{"v":158,"d":"$158.00"},"Cloud","Monthly Subscription"]
["GSCLPAP-002","GlobalSearch Guest Public Access Portal - 250 Users (per month - min 12 months)\nexternal users only",{"v":250,"d":"$250.00"},{"v":225,"d":"$225.00"},"Cloud","Monthly Subscription"]
["GSCLPAP-003","GlobalSearch  Guest Public Access Portal - 500 Users (per month - min 12 months)\nExternal users only",{"v":350,"d":"$350.00"},{"v":315,"d":"$315.00"},"Cloud","Monthly Subscription"]
["GSCLPAP-004","GlobalSearch Guest Public Access Portal - Unlimited User Access  (per month - min 12 months)\nExternal users only",{"v":500,"d":"$500.00"},{"v":450,"d":"$450.00"},"Cloud","Monthly Subscription"]
["GSCLAPPVL-001","GlobalSearch Cloud Approval License (per month - min 12 months)\n Ready Only license with process approval capabilities.  Does NOT include coding or annotation capabilities.",{"v":35,"d":"$35.00"},{"v":32,"d":"$32.00"},"Cloud","Monthly Subscription"]
["GlobalSearch Cloud IIM Add Ons - Misc."]
["GSCLDBI-001","Global Data Integration (Provides a siloed cloud hosted database for uploading local data files into the Square 9 IIM Platform)",{"v":50,"d":"$50.00"},{"v":45,"d":"$45.00"},"Cloud","One Time Fee"]
["GSCLDBI-002","Managed Data Import service (Managed services for uploading up to 5 unique data sources into 5 unique data tables for import into the Square 9 cloud)",{"v":25,"d":"$25.00"},{"v":23,"d":"$23.00"},"Cloud","One Time Fee"]
["GSCLINTL-001","Non-US Data Hosting (Required of all Square 9 Instances located outside of the US and reflects the passthrough of the 10% upcharge incurred from AWS for non US hosting)",{"v":10,"d":"$10.00"},{"v":9,"d":"$9.00"},"Cloud","One Time Fee"]
["GSCLUP-001","GlobalSearch Cloud Subscription Upgrade (calculate quantity based on $1 increments)",{"v":1,"d":"$1.00"},{"$f":"ROUND(C69*(1-0.05),0)","v":{"v":1,"d":"$1.00"}},"Cloud","Monthly Subscription"]
["GSCLTB-001","Test Bench License -  - (per month - min 12 months) (AVAILABLE IN ENTERPRISE EDITION ONLY)\ncalculated as 20% of Subscription total",{"v":1,"d":"$1.00"},{"$f":"ROUND(C70*(1-0.1),1)","v":{"v":0.9,"d":"$0.90"}},"Cloud","Monthly Subscription"]
["S9SCLDTEA-001","Cloud Term Extension (used for contracts greater than 3 years)",{"v":1,"d":"$1.00"},{"$f":"ROUND(C71*(1-0.1),1)","v":{"v":0.9,"d":"$0.90"}},"Cloud","Monthly Subscription"]
[]
["GLOBAL SEARCH ON PREMISE SUBSCRIPTION"]
["Vendor Part #","Description","MSRP","NASPO PRICE","Category","Type"]
["GlobalSearch Process Automation Essentials (Unlimited Workflow- Basic Capture Only)"]
["GSPAE-001LT","GlobalSearch On Premise Subscription -Process Automation Essentials Edition - per month per named user  5-15 User Tier",{"v":45,"d":"$45.00"},{"v":41,"d":"$41.00"},"On Premise","Monthly Subscription"]
["GSPAE-002LT","GlobalSearch On Premise Subscription - Process Automation Essentials Edition - per month per named user  16-25 User Tier",{"v":40,"d":"$40.00"},{"v":36,"d":"$36.00"},"On Premise","Monthly Subscription"]
["GlobalSearch Digital Transformation Essentials (Includes Unltd GlobalAction Workflows, Dual Core Transformation Svs & GlobalForms Design Studio- 5 forms)"]
["GSDTE-001LT","GlobalSearch On Premise Subscription Digital Transformation Essentials Edition - per month per named user cost for 5-15 named users",{"v":60,"d":"$60.00"},{"v":54,"d":"$54.00"},"On Premise","Monthly Subscription"]
["GSDTE-002LT","GlobalSearch On Premise SubscriptionDigital Transformation Essentials Edition - per month per named user cost for 16-25 named users",{"v":50,"d":"$50.00"},{"v":45,"d":"$45.00"},"On Premise","Monthly Subscription"]
["GSDTE-003LT","GlobalSearch On Premise Subscription Digital Transformation Essentials Edition - per month per named user cost for 26-50 named users",{"v":45,"d":"$45.00"},{"v":41,"d":"$41.00"},"On Premise","Monthly Subscription"]
["GSDTE-004LT","GlobalSearch On Premise Subscription Digital Transformation Essentials Edition - per month per named user cost for 51-100 named users",{"v":40,"d":"$40.00"},{"v":36,"d":"$36.00"},"On Premise","Monthly Subscription"]
["GSDTE-005LT","GlobalSearch On Premise Subscription Digital Transformation Essentials Edition - per month per named user cost for 101-250 named users",{"v":35,"d":"$35.00"},{"$f":"ROUND(C83*(1-0.1),0)","v":{"v":32,"d":"$32.00"}},"On Premise","Monthly Subscription"]
["GlobalSearch Enterprise Essentials (Includes Unltd GlobalAction Workflows, Unltd Forms & On Premise Quad Core Transformation Svs)"]
["GSEEE-001LT","GlobalSearch On Premise Subscription  Enterprise Essentials Edition - per month per named user for  10-15 named users",{"v":70,"d":"$70.00"},{"v":63,"d":"$63.00"},"On Premise","Monthly Subscription"]
["GSEEE-002LT","GlobalSearch On Premise Subscription  Enterprise Essentials Edition - per month per named user for 16-25 named users",{"v":65,"d":"$65.00"},{"v":59,"d":"$59.00"},"On Premise","Monthly Subscription"]
["GSEEE-003LT","GlobalSearch On Premise Subscription  Enterprise Essentials Edition - per month per named user for 26-50 named users",{"v":55,"d":"$55.00"},{"v":50,"d":"$50.00"},"On Premise","Monthly Subscription"]
["GSEEE-004LT","GlobalSearch On Premise Subscription  Enterprise Essentials Edition - per month per named user for  51-100 named users",{"v":45,"d":"$45.00"},{"v":41,"d":"$41.00"},"On Premise","Monthly Subscription"]
["GSEEE-005LT","GlobalSearch On Premise Subscription  Enterprise Essentials Edition - per month per named user for  101-250 named users",{"v":40,"d":"$40.00"},{"v":36,"d":"$36.00"},"On Premise","Monthly Subscription"]
["GlobalSearch On Premise Subsciption IIM Add ons"]
["SSIMXCH-002LT","Image Xchange per named user (per month - min 12 months)",{"v":10,"d":"$10.00"},{"v":9,"d":"$9.00"},"On Premise","Monthly Subscription"]
["SSIMXCH-003LT","Image Xchange Enterprise  - (per month - min 12 months)",{"v":100,"d":"$100.00"},{"v":90,"d":"$90.00"},"On Premise","Monthly Subscription"]
["GCCLQBOL-001","QuickBooks Online iPaaS Connector -  (per month - minimum 12 mos)\n",{"v":65,"d":"$65.00"},{"v":59,"d":"$59.00"},"On Premise","Monthly Subscription"]
["GCCLCTSDYN-001","Dynamics 365 iPaaS Connector  -  (per month - minimum 12 mos)\n",{"v":65,"d":"$65.00"},{"v":59,"d":"$59.00"},"On Premise","Monthly Subscription"]
["GSCLNSIPAAS-001","NetSuite iPaaS Connector - (per month - minimum 12 mos)\n",{"v":95,"d":"$95.00"},{"v":86,"d":"$86.00"},"On Premise","Monthly Subscription"]
["GSCLIPAAS-001","Universal iPaaS Cponnector -  (per month - minimum 12 mos)\n",{"v":95,"d":"$95.00"},{"v":86,"d":"$86.00"},"On Premise","Monthly Subscription"]
["GSRO-002LT","GlobalSearch Internal Read Only License (1-25 users) (per month - min 12 months)",{"v":25,"d":"$25.00"},{"v":23,"d":"$23.00"},"On Premise","Monthly Subscription"]
["GSROEXT-002LT","GlobalSearch Internal Read Only License  (26-250 users) (per month - min 12 months)",{"v":20,"d":"$20.00"},{"v":18,"d":"$18.00"},"On Premise","Monthly Subscription"]
["GSPAP-001LT","GlobalSearch Guest Public Access Portal - 100 Users (per month - min 12 months)\nExternal users only",{"v":150,"d":"$150.00"},{"v":135,"d":"$135.00"},"On Premise","Monthly Subscription"]
["GSPAP-002LT","GlobalSearch Guest Public Access Portal - 250 Users (per month - min 12 months)\nExternal users only",{"v":225,"d":"$225.00"},{"v":203,"d":"$203.00"},"On Premise","Monthly Subscription"]
["GSPAP-003LT","GlobalSearch Guest Public Access Portal - 500 Users (per month - min 12 months)\nExternal users only",{"v":300,"d":"$300.00"},{"v":270,"d":"$270.00"},"On Premise","Monthly Subscription"]
["GSPAP-004LT","GlobalSearch Guest Public Access Portal - Unlimited Users (per month - min 12 months)\nExternal users only",{"v":500,"d":"$500.00"},{"v":450,"d":"$450.00"},"On Premise","Monthly Subscription"]
["GSTB-001LT","Test Bench License - (AVAILABLE IN ENTERPRISE EDITION ONLY)\nLimited copy of proudction instance for test and development - calculated as 20% of Subscription total",{"v":1,"d":"$1.00"},{"$f":"ROUND(C103*(1-0.05),2)","v":{"v":0.95,"d":"$0.95"}},"On Premise","Monthly Subscription"]
["GSGAASL-001LT","GlobalSearch / GlobalAction Additional Server License (GlobalCapture Additional Server License)",{"v":50,"d":"$50.00"},{"v":45,"d":"$45.00"},"On Premise","Monthly Subscription"]
[]
["ON PREMISE PERPETUAL IIM LICENSE - (Require First Year M&S with Purchase)"]
["Vendor Part #","Description","MSRP","NASPO PRICE","Category","Type"]
["GlobalSearch Process Automation Essentials - On Premise Perpetual Licensing"]
["GSPAE-001","GlobalSearch On Premise Perpetual License -Process Automation Essentials Edition - per named user  5-15 User Tier",{"v":600,"d":"$600.00"},{"v":540,"d":"$540.00"},"On Premise","Perpetual"]
["GSPAE-001MS","GlobalSearch On Premise Perpetual License -Process Automation Essentials Edition  - M&S",{"v":10,"d":"$10.00"},{"v":9,"d":"$9.00"},"M&S","Monthly Subscription"]
["GSPAE-002","GlobalSDearch On Premise Perpetual License - Process Automation Essentials Edition - per named user  16-25 User Tier",{"v":550,"d":"$550.00"},{"v":495,"d":"$495.00"},"On Premise","Perpetual"]
["GSPAE-002MS","GlobalSDearch On Premise Perpetual License - Process Automation Essentials Edition   - M&S",{"v":9,"d":"$9.00"},{"v":8,"d":"$8.00"},"M&S","Monthly Subscription"]
["GlobalSearch Digital Transformation Essentials -On Premise Perpetual Licensing"]
["GSDTE-001","GlobalSearch On Premise Perpetual License Digital Transformation Essentials Edition -  per named user cost for 5-15 named users",{"v":800,"d":"$800.00"},{"v":720,"d":"$720.00"},"On Premise","Perpetual"]
["GSDTE-001MS","GlobalSearch On Premise Perpetual License Digital Transformation Essentials Edition cost for 5-15 named users   - M&S",{"v":14,"d":"$14.00"},{"v":13,"d":"$13.00"},"M&S","Monthly Subscription"]
["GSDTE-002","GlobalSearch On Premise Perpetual License Digital Transformation Essentials Edition - per named user cost for 16-25 named users",{"v":650,"d":"$650.00"},{"v":585,"d":"$585.00"},"On Premise","Perpetual"]
["GSDTE-002MS","GlobalSearch On Premise Perpetual License Digital Transformation Essentials Edition  cost for 16-25 named users  - M&S",{"v":11,"d":"$11.00"},{"v":10,"d":"$10.00"},"M&S","Monthly Subscription"]
["GSDTE-003","GlobalSearch On Premise Perpetual License Digital Transformation Essentials Edition - per named user cost for 26-50 named users",{"v":550,"d":"$550.00"},{"v":495,"d":"$495.00"},"On Premise","Perpetual"]
["GSDTE-003MS","GlobalSearch On Premise Perpetual License Digital Transformation Essentials Edition cost for 26-50 named users  - M&S",{"v":10,"d":"$10.00"},{"v":9,"d":"$9.00"},"M&S","Monthly Subscription"]
["GSDTE-004","GlobalSearch On Premise Perpetual License Digital Transformation Essentials Edition - per named user cost for 51-100 named users",{"v":450,"d":"$450.00"},{"v":405,"d":"$405.00"},"On Premise","Perpetual"]
["GSDTE-004MS","GlobalSearch On Premise Perpetual License Digital Transformation Essentials Edition cost for 51-100 named users   - M&S",{"v":8,"d":"$8.00"},{"v":7,"d":"$7.00"},"M&S","Monthly Subscription"]
["GSDTE-005","GlobalSearch On Premise Perpetual License Digital Transformation Essentials Edition - per named user cost for 101-250 named users",{"v":350,"d":"$350.00"},{"v":315,"d":"$315.00"},"On Premise","Perpetual"]
["GSDTE-005MS","GlobalSearch On Premise Perpetual License Digital Transformation Essentials Edition cost for 101-250 named users   - M&S",{"v":6,"d":"$6.00"},{"v":5,"d":"$5.00"},"M&S","Monthly Subscription"]
["GlobalSearch Enterprise Essentials - On Premise Perpetual Licensing"]
["GSEEE-001","GlobalSearch On Premise Perpetual License Enterprise Essentials Edition - per named user for  10-15 named users",{"v":900,"d":"$900.00"},{"v":810,"d":"$810.00"},"On Premise","Perpetual"]
["GSEEE-001MS","GlobalSearch On Premise Perpetual License Enterprise Essentials Edition   - M&S",{"v":15,"d":"$15.00"},{"v":14,"d":"$14.00"},"M&S","Monthly Subscription"]
["GSEEE-002","GlobalSearch On Premise Perpetual License Enterprise Essentials Edition - per named user for  16-25 named users",{"v":750,"d":"$750.00"},{"v":675,"d":"$675.00"},"On Premise","Perpetual"]
["GSEEE-002MS","GlobalSearch On Premise Perpetual License Enterprise Essentials Edition   - M&S",{"v":13,"d":"$13.00"},{"v":12,"d":"$12.00"},"M&S","Monthly Subscription"]
["GSEEE-003","GlobalSearch On Premise Perpetual License  Enterprise Essentials Edition - per named user for 26-50 named users",{"v":650,"d":"$650.00"},{"v":585,"d":"$585.00"},"On Premise","Perpetual"]
["GSEEE-003MS","GlobalSearch On Premise Perpetual License  Enterprise Essentials Edition   - M&S",{"v":11,"d":"$11.00"},{"v":10,"d":"$10.00"},"M&S","Monthly Subscription"]
["GSEEE-004","GlobalSearch On Premise Perpetual License  Enterprise Essentials Edition - per named user for  51-100 named users",{"v":550,"d":"$550.00"},{"v":495,"d":"$495.00"},"On Premise","Perpetual"]
["GSEEE-004MS","GlobalSearch On Premise Perpetual License  Enterprise Essentials Edition   - M&S",{"v":10,"d":"$10.00"},{"v":9,"d":"$9.00"},"M&S","Monthly Subscription"]
["GSEEE-005","GlobalSearch On Premise Perpetual License Enterprise Essentials Edition - per named user for  101-250 named users",{"v":450,"d":"$450.00"},{"v":405,"d":"$405.00"},"On Premise","Perpetual"]
["GSEEE-005MS","GlobalSearch On Premise Perpetual License Enterprise Essentials Edition    - M&S",{"v":8,"d":"$8.00"},{"v":7,"d":"$7.00"},"M&S","Monthly Subscription"]
[]
["ON PREMISE PERPETUAL IIM ADD ONS "]
["Vendor Part #","Description","MSRP","NASPO PRICE","Category","Type"]
["Integration"]
["SSIMXCH-002","Image Xchange per named user  ",{"v":100,"d":"$100.00"},{"v":90,"d":"$90.00"},"On Premise","Perpetual"]
["SSIMXCH-002MS","Image Xchange per named user - Maintenance & Support",{"v":2,"d":"$2.00"},{"v":2,"d":"$2.00"},"M&S","Monthly Subscription"]
["SSIMXCH-003","Image Xchange Enterprise ",{"v":1000,"d":"$1,000.00"},{"v":900,"d":"$900.00"},"On Premise","Perpetual"]
["SSIMXCH-003MS","Image Xchange Enterprise  - Maintenance & Support",{"v":17,"d":"$17.00"},{"v":15,"d":"$15.00"},"M&S","Monthly Subscription"]
["GCCLCTSDYN-001","QuickBooks Online iPaaS Connector -  (per month - minimum 12 mos)",{"v":65,"d":"$65.00"},{"v":59,"d":"$59.00"},"On Premise","Monthly Subscription"]
["GCCLCTSDYN-001","Dynamics 365 iPaaS Connector  -  (per month - minimum 12 mos)",{"v":65,"d":"$65.00"},{"v":59,"d":"$59.00"},"On Premise","Monthly Subscription"]
["GSCLNSIPAAS-001","NetSuite iPaaS Connector - (per month - minimum 12 mos)",{"v":95,"d":"$95.00"},{"v":86,"d":"$86.00"},"On Premise","Monthly Subscription"]
["GSCLIPAAS-001","Universal iPaaS Connector -  (per month - minimum 12 mos)",{"v":95,"d":"$95.00"},{"v":86,"d":"$86.00"},"On Premise","Monthly Subscription"]
["Web Portals"]
["GSRO-002","GlobalSearch Internal Read Only License (1-25 users) ",{"v":250,"d":"$250.00"},{"$f":"ROUND(C148*(1-0.1),0)","v":{"v":225,"d":"$225.00"}},"On Premise","Perpetual"]
["GSRO-002MS","GlobalSearch Internal Read Only License (1-25 users)   - M&S",{"v":4,"d":"$4.00"},{"v":4,"d":"$4.00"},"M&S","Monthly Subscription"]
["GSRO-003","GlobalSearch Internal Read Only License  (26-250 users) ",{"v":200,"d":"$200.00"},{"v":180,"d":"$180.00"},"On Premise","Perpetual"]
["GSRO-003MS","GlobalSearch Internal Read Only License  (26-250 users)    - M&S",{"v":4,"d":"$4.00"},{"v":4,"d":"$4.00"},"M&S","Monthly Subscription"]
["GSPAPUSER-001","GlobalSearch Guest Public Access Portal - 100 Users ",{"v":5000,"d":"$5,000.00"},{"v":4500,"d":"$4,500.00"},"On Premise","Perpetual"]
["GSPAPUSER-001MS","GlobalSearch Guest Public Access Portal - 100 Users   - M&S",{"v":84,"d":"$84.00"},{"v":76,"d":"$76.00"},"M&S","Monthly Subscription"]
["GSPAPUSER-002","GlobalSearch  Guest Public Access Portal - 250 Users ",{"v":10000,"d":"$10,000.00"},{"v":9000,"d":"$9,000.00"},"On Premise","Perpetual"]
["GSPAPUSER-002MS","GlobalSearch Guest Public Access Portal - 250 Users    - M&S",{"v":167,"d":"$167.00"},{"v":150,"d":"$150.00"},"M&S","Monthly Subscription"]
["GSPAPUSER-003","GlobalSearch Guest Public Access Portal - 500 Users ",{"v":15000,"d":"$15,000.00"},{"v":13500,"d":"$13,500.00"},"On Premise","Perpetual"]
["GSPAPUSER-003MS","GlobalSearch Guest Public Access Portal - 500 Users    - M&S",{"v":250,"d":"$250.00"},{"v":225,"d":"$225.00"},"M&S","Monthly Subscription"]
["GSPAPUSER-004","GlobalSearch Guest Public Access Portal - Unlimited Users ",{"v":20000,"d":"$20,000.00"},{"v":18000,"d":"$18,000.00"},"On Premise","Perpetual"]
["GSPAPUSER-004MS","GlobalSearch Guest Public Access Portal - Unlimited Users    - M&S",{"v":334,"d":"$334.00"},{"v":301,"d":"$301.00"},"M&S","Monthly Subscription"]
["System Expansion"]
["GSAPGASL-001","GlobalSearch / GlobalAction Additional Server License",{"v":1250,"d":"$1,250.00"},{"v":1125,"d":"$1,125.00"},"On Premise","Perpetual"]
["GSAPGASL-001MS","GlobalSearch / Globalaction Additional Server License - Maintenance & Support",{"v":22,"d":"$22.00"},{"v":20,"d":"$20.00"},"M&S","Monthly Subscription"]
["GSTB-001","Test Bench License - (AVAILABLE IN ENTERPRISE EDITION ONLY)\ncalculated as 20% of Subscription total",{"v":1,"d":"$1.00"},{"$f":"ROUND(C163*(1-0.1),1)","v":{"v":0.9,"d":"$0.90"}},"On Premise","Perpetual"]
["GSTB-001MS","Test Bench License M&S - (AVAILABLE IN ENTERPRISE EDITION ONLY)\ncalculated as 20% of Subscription total",{"v":1,"d":"$1.00"},{"$f":"ROUND(C164*(1-0.1),1)","v":{"v":0.9,"d":"$0.90"}},"M&S","Monthly Subscription"]
[]
["CLOUD TRANSFORMATION SERVICES"]
["Vendor Part #","Description","MSRP","NASPO PRICE","Category","Type"]
["Core Transformation Services "]
["GCCLCTSSOR-001","GlobalCapture Structured Transformation Services (per instance, per month - 12 months required)\n",{"v":275,"d":"$275.00"},{"v":248,"d":"$248.00"},"Cloud","Monthly Subscription"]
["GCCLCTSUOR-001","GlobalCapture Unstructured  Transformation Services (per instance, per month - 12 months required)\n",{"v":325,"d":"$325.00"},{"v":293,"d":"$293.00"},"Cloud","Monthly Subscription"]
["GCCLCTSENT-002","GlobalCapture Enterprise Transformation Services (per instance, per month - 12 months required)\n",{"v":375,"d":"$375.00"},{"v":338,"d":"$338.00"},"Cloud","Monthly Subscription"]
["AI Services "]
["GSCLTAIOCR-001","ArticulateML 1000 Pages Per Month (priced per month -12 months required)",{"v":225,"d":"$225.00"},{"v":203,"d":"$203.00"},"Cloud","Monthly Subscription"]
["GCCLINQAI-001","InquireAI Header Data Extraction 5000 Pages Per Month (priced per month/per instance -12 months required)",{"v":250,"d":"$250.00"},{"v":225,"d":"$225.00"},"Cloud","Monthly Subscription"]
["GCCLINQAI-002","InquireAI Header and Table Data Extraction 5000 Pages Per Month (priced per month/per instance -12 months required)",{"v":495,"d":"$495.00"},{"v":446,"d":"$446.00"},"Cloud","Monthly Subscription"]
["GCCLINQAI-003","InquireAI Upgrade to Header and Table Data Extraction (priced per month/per instance -12 months required)\n*Upgrades InquireAI Customers from Header Data Extraction to Header and Table Data Extraction",{"v":245,"d":"$245.00"},{"v":221,"d":"$221.00"},"Cloud","Monthly Subscription"]
["GCCLINQAI-004","InquireAI One Time Use Header Data Extraction 2500 Pages",{"v":250,"d":"$250.00"},{"v":225,"d":"$225.00"},"Cloud","One Time Fee"]
["GCCLINQAI-005","InquireAI One Time Use Header and Table Data Extraction 2500 Pages",{"v":375,"d":"$375.00"},{"v":338,"d":"$338.00"},"Cloud","One Time Fee"]
["System Expansion"]
["GCCLCTSUSR-001","Addl GlobalCapture User License  (per instance, per month - 12 months required)",{"v":50,"d":"$50.00"},{"v":45,"d":"$45.00"},"Cloud","Monthly Subscription"]
["GCCLCTSUPG-001","Additional Daily Page Count - +250 Pages Per Day - (per Instance, per month)",{"v":25,"d":"$25.00"},{"v":23,"d":"$23.00"},"Cloud","Monthly Subscription"]
["GCCLCTSUPG-002","Additional Daily Page Count - +500 Pages Per Day - (per Instance, per month)",{"v":50,"d":"$50.00"},{"v":45,"d":"$45.00"},"Cloud","Monthly Subscription"]
["GCCLCTSUPG-003","Additional Daily Page Count - +1,000 Pages Per Day - (per Instance, per month)",{"v":100,"d":"$100.00"},{"v":90,"d":"$90.00"},"Cloud","Monthly Subscription"]
["GCCLCTSUPG-004","Additional Daily Page Count - +2,500 Pages Per Day - (per Instance, per month)",{"v":175,"d":"$175.00"},{"v":158,"d":"$158.00"},"Cloud","Monthly Subscription"]
["GCCL1XPGCT-001","One Time Page Count Increase - 10,000 pages",{"v":250,"d":"$250.00"},{"v":225,"d":"$225.00"},"Cloud","Monthly Subscription"]
["GCCLBOOST-001","Cloud Transformation Boost Option Per Month (per month - min 12 months)",{"v":200,"d":"$200.00"},{"v":180,"d":"$180.00"},"Cloud","Monthly Subscription"]
["Additional Web Forms"]
["GCCLCTSFRM-001","Additional GlobalForms Workflows - One  (per instance, per month - 12 months required)",{"v":50,"d":"$50.00"},{"v":45,"d":"$45.00"},"Cloud","Monthly Subscription"]
["GCCLCTSFRM-002","Additional GlobalForms Workflows - Five  (per instance, per month - 12 months required)",{"v":195,"d":"$195.00"},{"v":176,"d":"$176.00"},"Cloud","Monthly Subscription"]
["Integration"]
["GCCLCTSDYN-001","Dynamics 365 GlobalAutomation  (per instance, per month - 12 months required) -  AVAILABLE IN ENTERPRISE ONLY",{"v":95,"d":"$95.00"},{"v":86,"d":"$86.00"},"Cloud","Monthly Subscription"]
["GCCLCTSTB-001","Disaster Recover/Test Bench License  (per instance, per month - 12 months required) ",{"v":1,"d":"$1.00"},{"$f":"ROUND(C192*(1-0.1),1)","v":{"v":0.9,"d":"$0.90"}},"Cloud","Monthly Subscription"]
["GCCLAGAPI-001","Agvance API Calls - 100,000 Agvance API calls per month (per month - min 12 months)",{"v":100,"d":"$100.00"},{"v":90,"d":"$90.00"},"Cloud","Monthly Subscription"]
["Additional User Licensing"]
["GCCLAPPVL-001","GlobalCapture Cloud Approval License (per month - min 12 months)",{"v":35,"d":"$35.00"},{"v":32,"d":"$32.00"},"Cloud","Monthly Subscription"]
[]
["ON PREMISE TRANSFORMATION SERVICES"]
["Vendor Part #","Description","MSRP","NASPO PRICE","Category","Type"]
["Core Transformation Services"]
["S9SCTSSOR-001LT","GlobalCapture Structured Transformation Services (per instance, per month - 12 months required)",{"v":275,"d":"$275.00"},{"v":248,"d":"$248.00"},"On Premise","Monthly Subscription"]
["S9SCTSUOR-001LT","GlobalCapture Unstructured Transformation Services (per instance, per month - 12 months required)",{"v":425,"d":"$425.00"},{"v":383,"d":"$383.00"},"On Premise","Monthly Subscription"]
["S9SCTSENT-002LT","GlobalCapture Enterprise Transformation Services (per instance, per month - 12 months required)",{"v":550,"d":"$550.00"},{"v":495,"d":"$495.00"},"On Premise","Monthly Subscription"]
["System Expansion"]
["S9SCTSUSR-002LT","Addl GlobalCapture User License  (per instance, per month - 12 months required)",{"v":50,"d":"$50.00"},{"v":45,"d":"$45.00"},"On Premise","Monthly Subscription"]
["S9SCTSCOR-001LT","Additional GlobalCapture Processing Cores - Two (2) - per Instance Per month",{"v":150,"d":"$150.00"},{"v":135,"d":"$135.00"},"On Premise","Monthly Subscription"]
["S9SCTSCOR-002LT","Additional GlobalCapture Processing Cores - four (4) - per Instance Per month",{"v":250,"d":"$250.00"},{"v":225,"d":"$225.00"},"On Premise","Monthly Subscription"]
["S9SCTSCOR-003LT","Additional GlobalCapture Processing Cores - six (6) - per Instance Per month",{"v":350,"d":"$350.00"},{"v":315,"d":"$315.00"},"On Premise","Monthly Subscription"]
["S9SCTSSVR-001LT","Additional GlobalCapture Server License - per instance per month - AVAILABLE IN ENTERPRISE ONLY",{"v":175,"d":"$175.00"},{"v":158,"d":"$158.00"},"On Premise","Monthly Subscription"]
["Additional Web Forms"]
["S9SCTSFRM-001LT","Additional GlobalForms Workflows - One  (per instance, per month - 12 months required)",{"v":50,"d":"$50.00"},{"v":45,"d":"$45.00"},"On Premise","Monthly Subscription"]
["S9SCTSFRM-002LT","Additional GlobalForms Workflows - Five  (per instance, per month - 12 months required)",{"v":195,"d":"$195.00"},{"$f":"ROUND(C211*(1-0.1),0)","v":{"v":176,"d":"$176.00"}},"On Premise","Monthly Subscription"]
["Inegration"]
["S9SCTSDYN-001LT","Dynamics 365 GlobalAutomation  (per instance, per month - 12 months required)",{"v":95,"d":"$95.00"},{"v":86,"d":"$86.00"},"On Premise","Monthly Subscription"]
["S9SCTSTB-001LT","Test Bench License  (per instance, per month - 12 months required) ",{"v":1,"d":"$1.00"},{"$f":"ROUND(C214*(1-0.1),1)","v":{"v":0.9,"d":"$0.90"}},"On Premise","Monthly Subscription"]
[]
["ON PREMISE PERPETUAL LICENSE (Require First Year M&S with Purchase)"]
["Vendor Part #","Description","MSRP","NASPO PRICE","Category","Type"]
["Core Transformation Services"]
["S9SCTSSOR-001","GlobalSearch Structured Transformation Services ",{"v":2995,"d":"$2,995.00"},{"v":2696,"d":"$2,696.00"},"On Premise","Perpetual"]
["S9SCTSSOR-001MS","GlobalSearch Structured Transformation Services  - M&S",{"v":50,"d":"$50.00"},{"v":45,"d":"$45.00"},"M&S","Monthly Subscription"]
["S9SCTSUOR-001","GlobalSearch Unstructured Transformation Services ",{"v":3995,"d":"$3,995.00"},{"v":3596,"d":"$3,596.00"},"On Premise","Perpetual"]
["S9SCTSUOR-001MS","GlobalSearch Unstructured Transformation Serv ices    - M&S",{"v":67,"d":"$67.00"},{"v":60,"d":"$60.00"},"M&S","Monthly Subscription"]
["S9SCTSENT-002","GlobalSearch Enterprise Transformation Services ",{"v":8995,"d":"$8,995.00"},{"v":8096,"d":"$8,096.00"},"On Premise","Perpetual"]
["S9SCTSENT-002MS","GlobalSearch Enterprise Transformation Services    - M&S",{"v":150,"d":"$150.00"},{"v":135,"d":"$135.00"},"M&S","Monthly Subscription"]
["System Expansion"]
["S9SCTSUSR-002","Addl GlobalCapture User License  ",{"v":495,"d":"$495.00"},{"v":446,"d":"$446.00"},"On Premise","Perpetual"]
["S9SCTSUSR-002MS","Addl GlobalCapture User License    - M&S",{"v":8,"d":"$8.00"},{"v":7,"d":"$7.00"},"M&S","Monthly Subscription"]
["S9SCTSCOR-001","Additional GlobalCapture Processing Cores -  two (2)",{"v":1995,"d":"$1,995.00"},{"v":1796,"d":"$1,796.00"},"On Premise","Perpetual"]
["S9SCTSCOR-001MS","Additional GlobalCapture Processing Cores -  two (2)    - M&S",{"v":33,"d":"$33.00"},{"v":30,"d":"$30.00"},"M&S","Monthly Subscription"]
["S9SCTSCOR-002","Additional GlobalCapture Processing Cores -  four (4)",{"v":3995,"d":"$3,995.00"},{"v":3596,"d":"$3,596.00"},"On Premise","Perpetual"]
["S9SCTSCOR-002MS","Additional GlobalCapture Processing Cores -  four (4)    - M&S",{"v":67,"d":"$67.00"},{"v":60,"d":"$60.00"},"M&S","Monthly Subscription"]
["S9SCTSCOR-003","Additional GlobalCapture Processing Cores - six (6) ",{"v":5995,"d":"$5,995.00"},{"v":5396,"d":"$5,396.00"},"On Premise","Perpetual"]
["S9SCTSCOR-003MS","Additional GlobalCapture Processing Cores - six (6)     - M&S",{"v":100,"d":"$100.00"},{"v":90,"d":"$90.00"},"M&S","Monthly Subscription"]
["S9SCTSSVR-001","Additional GlobalCapture Server License - AVAILABLE IN ENTERPRISE ONLY",{"v":1250,"d":"$1,250.00"},{"v":1125,"d":"$1,125.00"},"On Premise","Perpetual"]
["S9SCTSSVR-001MS","Additional GlobalCapture Server License   - M&S",{"v":21,"d":"$21.00"},{"v":19,"d":"$19.00"},"M&S","Monthly Subscription"]
["Additional Web Forms"]
["S9SCTSFRM-001","Additional GlobalForms Workflows - One (1)",{"v":995,"d":"$995.00"},{"v":896,"d":"$896.00"},"On Premise","Perpetual"]
["S9SCTSFRM-001MS","Additional GlobalForms Workflows - One (1)  - M&S",{"v":17,"d":"$17.00"},{"v":15,"d":"$15.00"},"M&S","Monthly Subscription"]
["S9SCTSFRM-002","Additional GlobalForms Workflows - Five  (5)",{"v":3995,"d":"$3,995.00"},{"v":3596,"d":"$3,596.00"},"On Premise","Perpetual"]
["S9SCTSFRM-002MS","Additional GlobalForms Workflows - Five  (5)   - M&S",{"v":67,"d":"$67.00"},{"v":60,"d":"$60.00"},"M&S","Monthly Subscription"]
["Integration"]
["S9SCTSDYN-001","Dynamics 365 GlobalAutomation ",{"v":2995,"d":"$2,995.00"},{"v":2696,"d":"$2,696.00"},"On Premise","Perpetual"]
["S9SCTSDYN-001MS","Dynamics 365 GlobalAutomation    - M&S",{"v":50,"d":"$50.00"},{"v":45,"d":"$45.00"},"M&S","Monthly Subscription"]
["S9SCTSTB-001","Test Bench License  ",{"v":1,"d":"$1.00"},{"$f":"ROUND(C244*(1-0.1),1)","v":{"v":0.9,"d":"$0.90"}},"On Premise","Perpetual"]
["S9SCTSTB-001MS","Test Bench License     - M&S",{"v":1,"d":"$1.00"},{"$f":"ROUND(C245*(1-0.1),1)","v":{"v":0.9,"d":"$0.90"}},"M&S","Monthly Subscription"]
[]
["PROFESSIONAL SERVICES"]
["Vendor Part #","Description","MSRP","NASPO PRICE","Category","Type"]
["S9SPROSRV-002","Fixed Cost Remote ECM Services",{"v":1750,"d":"$1,750.00"},{"v":1575,"d":"$1,575.00"},"ProServ","One Time Fee"]
["GBLCAPPROSRV-002","Fixed Cost Remote Capture Services",{"v":1750,"d":"$1,750.00"},{"v":1575,"d":"$1,575.00"},"ProServ","One Time Fee"]
["S9SPROSRV-008","Fixed Cost Remote Forms Service",{"v":1750,"d":"$1,750.00"},{"v":1575,"d":"$1,575.00"},"ProServ","One Time Fee"]
["S9SPROSRV-001","Per Diem On Site Services",{"v":2000,"d":"$2,000.00"},{"v":1800,"d":"$1,800.00"},"ProServ","One Time Fee"]
["S9STRAVEL-002","Per Diem PS Travel Expenses",{"v":350,"d":"$350.00"},{"v":315,"d":"$315.00"},"ProServ","One Time Fee"]
["S9SPROSRV-003","Fixed Cost Remote Services - Half Unit",{"v":900,"d":"$900.00"},{"v":810,"d":"$810.00"},"ProServ","One Time Fee"]
["S9SPROSRV-006","Integration Services",{"v":900,"d":"$900.00"},{"v":810,"d":"$810.00"},"ProServ","One Time Fee"]
["S9SPROSRV-006MS","Integration Services Maintenance & Support",{"v":15,"d":"$15.00"},{"v":14,"d":"$14.00"},"ProServ","One Time Fee"]
["S9SACE-001","Advanced Configuration and Enablement","Call","Call","ProServ","One Time Fee"]
["S9SPROSRV-010","Project Based Data Conversion Services",{"v":1,"d":"$1.00"},{"$f":"ROUND(C258*(1-0.1),1)","v":{"v":0.9,"d":"$0.90"}},"ProServ","One Time Fee"]
[]
["MISC/LEGACY SKUS"]
["Vendor Part #","Description","MSRP","NASPO PRICE","Category","Type"]
["SMBUPGRADE-001","SMB Upgrade",{"v":1,"d":"$1.00"},{"$f":"ROUND(C262*(1-0.1),1)","v":{"v":0.9,"d":"$0.90"}},"ECM","One Time Fee"]
["GSLEGACY-001","Universal SKU For the Addition of Legacy Products to Update Earlier Versions of GlobalSearch",{"v":10,"d":"$10.00"},{"v":9,"d":"$9.00"},"ECM","One Time Fee"]
["GSLEGACY-001MS","Universal SKU For the Addition of Legacy Product M&S  to Update Earlier Versions of GlobalSearch",{"v":0.17,"d":"$0.17"},0,"M&S","One Time Fee"]
["S9SSA-001","Software assurance",{"v":1,"d":"$1.00"},{"$f":"ROUND(C265*(1-0.1),1)","v":{"v":0.9,"d":"$0.90"}},"M&S","One Time Fee"]
["GSC2REN-001","GlobalSearch  Annual Subscription Renewal",{"v":1,"d":"$1.00"},{"$f":"ROUND(C266*(1-0.1),1)","v":{"v":0.9,"d":"$0.90"}},"Cloud","One Time Fee"]
["C2UPGRADE-001","Subscription Upgrade",{"v":1,"d":"$1.00"},{"$f":"ROUND(C267*(1-0.1),1)","v":{"v":0.9,"d":"$0.90"}},"Cloud","One Time Fee"]

{"sheet":"Synappx","index":10,"n_rows":37,"n_cols":5,"rows_kept":37,"merged":[[2,0,2,5],[3,0,3,5],[5,0,9,4],[10,0,10,5],[13,0,13,4],[27,0,27,2],[28,0,28,2],[29,0,29,2],[30,0,30,2],[31,0,31,2],[32,0,32,2],[33,0,33,2],[34,0,34,2],[35,0,35,2],[36,0,36,2]]}
["Return To Table of Contents"]
[]
["Synappx™ Services"]
["Price List"]
[]
["Synapp applications work with your current office technology to bring smart home convenience into the workplace. Remove frustrating technology hassles from meetings. Share or print information right where it’s needed. Get smarter about your meeting spaces, all to drive better collaboration. "]
[]
[]
[]
[]
[]
[]
["Product Code","Description","Suggested Retail Price","NASPO","Type"]
["Synappx Go"]
["SW-COLLABSUITEY1","Synappx Go: 1 Room, 20 Users x 1 Year Subscription",{"v":549,"d":"$549.00"},{"$f":"ROUND(C15*(1-0.1),0)","v":{"v":494,"d":"$494.00"}},"Subscription"]
["SW-COLLABSUITEY3","Synappx Go: 1 Room, 20 Users x 3 Year Subscription",{"v":1304,"d":"$1,304.00"},{"$f":"ROUND(C16*(1-0.1),0)","v":{"v":1174,"d":"$1,174.00"}},"Subscription"]
["SW-COLLABTRIAL","Synappx Go: 1 Room, 20 Users x 90 Day Trial","No Fee","No Fee","Trial"]
["Additional Synappx Go User Licenses"]
["SW-S02U01Y1-S","Synappx Go: 1 User x 1  Year Subscription",{"v":39,"d":"$39.00"},{"$f":"ROUND(C19*(1-0.1),0)","v":{"v":35,"d":"$35.00"}},"Subscription"]
["SW-S02U01Y3-S","Synappx Go: 1 User x 3 Year Subscription",{"v":99,"d":"$99.00"},{"$f":"ROUND(C20*(1-0.1),0)","v":{"v":89,"d":"$89.00"}},"Subscription"]
["Additional Synappx Go Meeting Room Licenses"]
["SW-S01R01Y1","Synappx Meeting: 1 Room x 1 Year Subscription",{"v":119,"d":"$119.00"},{"$f":"ROUND(C22*(1-0.1),0)","v":{"v":107,"d":"$107.00"}},"Subscription"]
["SW-S01R01Y3","Synappx Meeting: 1 Room x 3 Year Subscription",{"v":340,"d":"$340.00"},{"$f":"ROUND(C23*(1-0.1),0)","v":{"v":306,"d":"$306.00"}},"Subscription"]
["Synappx NFC Tags"]
["SYNAPPX-NFC100","Synappx NFC Tags 100 Count (Blue)\n",{"v":199,"d":"$199.00"},{"$f":"ROUND(C25*(1-0.1),0)","v":{"v":179,"d":"$179.00"}},"One Time Fee"]
["SYNAPPX-NFC100BLK","Synappx NFC Tags 100 Count (Black)\n",{"v":199,"d":"$199.00"},{"$f":"ROUND(C26*(1-0.1),0)","v":{"v":179,"d":"$179.00"}},"Accessory"]
[]
[]
[]
["SHARP ELECTRONICS CORPORATION"]
["100 Paragon Drive"]
["Montvale, NJ 07645"]
["Phone: 201-529-8200"]
[]
["©2025 Sharp Electronics Corporation. All rights reserved."]
["Pricing, design and specifications subject to change without notice."]
["Sharp and Synappx are registered trademarks of Sharp Corporation.  Windows is  a registered trademark of Microsoft Corporation in the United states and other countries.  All other trademarks are the property of their respective owners."]

{"sheet":"Software Services","index":11,"n_rows":5,"n_cols":1,"rows_kept":5}
["Return To Table of Contents"]
[]
[]
[]
["Pending future product offerings"]